Workbook

Sheet Clavet
A1: =Kerrobert!A1 -> Group: Global WYAMZ - Monthly Monthly: 01/2019 Type: AVG 1 Hr.
A3: Date & Time | B3: Clavet | C3: Clavet | D3: Clavet | E3: Clavet | F3: Clavet | G3: Clavet | H3: Clavet | I3: Clavet | J3: Clavet | K3: Clavet
B4: NO | C4: NO2 | D4: NOX | E4: O3 | F4: PM25 | G4: PRECIP | H4: TEMPERAT | I4: WS | J4: WD | K4: RH
B5: ppb | C5: ppb | D5: ppb | E5: ppb | F5: ug/m3(L) | G5: mm | H5: C° | I5: m/s | J5: Deg | K5: %RH
A6: 2019/06/01 01:00:00 | B6: 0.158 | C6: 8.534 | D6: 8.693 | E6: 26.681 | F6: 13.712 | G6: 0 | H6: 10.116 | I6: 0.447 | J6: 63.271 | K6: 58.076 | L6: A | M6: A
A7: 2019/06/01 02:00:00 | B7: 0.103 | C7: 10.542 | D7: 10.647 | E7: 20.671 | F7: 13.172 | G7: 0 | H7: 8.894 | I7: 0.517 | J7: 41.95 | K7: 64.626 | L7: 20 | M7: 2
A8: 2019/06/01 03:00:00 | B8: 0.425 | C8: 12.505 | D8: 12.932 | E8: 15.454 | F8: 13.291 | G8: 0 | H8: 8.115 | I8: 0.244 | J8: 75.154 | K8: 69.921 | L8: 20 | M8: A
A9: 2019/06/01 04:00:00 | B9: 0.587 | C9: 12.951 | D9: 13.54 | E9: 16.132 | F9: 12.67 | G9: 0 | H9: 7.463 | I9: 0.382 | J9: 62.219 | K9: 73.229 | L9: 18 | M9: 2
A10: 2019/06/01 05:00:00 | B10: 0.379 | C10: 11.736 | D10: 12.117 | E10: 15.315 | F10: 13.3 | G10: 0 | H10: 6.967 | I10: 0.343 | J10: 82.364 | K10: 76.418 | L10: 14 | M10: 2
A11: 2019/06/01 06:00:00 | B11: 2.48 | C11: 11.913 | D11: 14.394 | E11: 14.418 | F11: 13.076 | G11: 0 | H11: 7.06 | I11: 0.196 | J11: 89.871 | K11: 72.906 | L11: 9 | M11: 2
A12: 2019/06/01 07:00:00 | B12: 3.174 | C12: 8.374 | D12: 11.55 | E12: 18.931 | F12: 12.438 | G12: 0 | H12: 10.186 | I12: 0.584 | J12: 41.658 | K12: 64.668 | L12: 11 | M12: 2
A13: 2019/06/01 08:00:00 | B13: 1.969 | C13: 5.803 | D13: 7.774 | E13: 31.864 | F13: 10.453 | G13: 0 | H13: 14.102 | I13: 0.96 | J13: 48.955 | K13: 51.221 | L13: A | M13: 2
A14: 2019/06/01 09:00:00 | B14: 0.653 | C14: 2.469 | D14: 3.125 | E14: 42.734 | F14: 7.329 | G14: 0 | H14: 17.373 | I14: 1.109 | J14: 83.405 | K14: 37.708 | L14: 17 | M14: 2
A15: 2019/06/01 10:00:00 | B15: 0.254 | C15: 1.105 | D15: 1.36 | E15: 47.124 | F15: 3.49 | G15: 0 | H15: 19.628 | I15: 1.284 | J15: 59.832 | K15: 28.277 | L15: 19 | M15: 2
A16: 2019/06/01 11:00:00 | B16: 0.19 | C16: 0.807 | D16: 1 | E16: 48.832 | F16: 3.914 | G16: 0 | H16: 20.434 | I16: 1.856 | J16: 60.573 | K16: 25.638 | L16: 20 | M16: 2
A17: 2019/06/01 12:00:00 | B17: 0.181 | C17: 1.004 | D17: 1.186 | E17: 51.047 | F17: 5.546 | G17: 0 | H17: 21.219 | I17: 1.627 | J17: 78.61 | K17: 23.57 | L17: 21 | M17: 2
A18: 2019/06/01 13:00:00 | B18: 0.076 | C18: 0.883 | D18: 0.961 | E18: 53.679 | F18: 4.867 | G18: 0 | H18: 21.776 | I18: 1.417 | J18: 78.096 | K18: 21.417 | L18: 23 | M18: 3
A19: 2019/06/01 14:00:00 | B19: 0.057 | C19: 0.853 | D19: 0.913 | E19: 55.036 | F19: 4.112 | G19: 0 | H19: 22.432 | I19: 1.085 | J19: 92.812 | K19: 19.476 | L19: 24 | M19: 3
A20: 2019/06/01 15:00:00 | B20: 0.056 | C20: 0.888 | D20: 0.946 | E20: 56.493 | F20: 4.734 | G20: 0 | H20: 22.691 | I20: 0.813 | J20: 117.474 | K20: 19.225 | L20: 24 | M20: 3
A21: 2019/06/01 16:00:00 | B21: 0.052 | C21: 1.003 | D21: 1.057 | E21: 57.783 | F21: 6.878 | G21: 0 | H21: 23.306 | I21: 0.947 | J21: 95.237 | K21: 19.223 | L21: 25 | M21: 3
A22: 2019/06/01 17:00:00 | B22: 0.114 | C22: 1.153 | D22: 1.268 | E22: 58.57 | F22: 7.523 | G22: 0 | H22: 23.672 | I22: 0.903 | J22: 106.772 | K22: 19.353 | L22: 25 | M22: 3
A23: 2019/06/01 18:00:00 | B23: 0.068 | C23: 1.112 | D23: 1.182 | E23: 59.177 | F23: 7.061 | G23: 0 | H23: 23.499 | I23: 1.385 | J23: 104.326 | K23: 19.892 | L23: 25 | M23: 3
A24: 2019/06/01 19:00:00 | B24: 0.14 | C24: 1.359 | D24: 1.501 | E24: 60.034 | F24: 8.049 | G24: 0 | H24: 22.939 | I24: 1.456 | J24: 111.101 | K24: 20.816 | L24: 22 | M24: 3
A25: 2019/06/01 20:00:00 | B25: -0.02 | C25: 1.58 | D25: 1.561 | E25: 58.87 | F25: 7.636 | G25: 0 | H25: 21.892 | I25: 2.034 | J25: 99.16 | K25: 22.518 | L25: 20 | M25: 3
A26: 2019/06/01 21:00:00 | B26: 0.003 | C26: 2.405 | D26: 2.41 | E26: 51.782 | F26: 5.24 | G26: 0 | H26: 19.577 | I26: 1.98 | J26: 106.483 | K26: 25.924 | L26: 20 | M26: 3
A27: 2019/06/01 22:00:00 | B27: -0.146 | C27: 3.973 | D27: 3.827 | E27: 43.305 | F27: 9.552 | G27: 0 | H27: 16.941 | I27: 1.729 | J27: 107.024 | K27: 30.15 | L27: 20 | M27: 3
A28: 2019/06/01 23:00:00 | B28: Z | C28: Z | D28: Z | E28: Z | F28: 11.506 | G28: 0 | H28: 15.368 | I28: 2.138 | J28: 107.079 | K28: 33.528 | L28: 20 | M28: 3
A29: 2019/06/02 00:00:00 | B29: 0.015 | C29: 4.439 | D29: 4.457 | E29: 35.028 | F29: 13.484 | G29: 0 | H29: 14.174 | I29: 2.344 | J29: 108.323 | K29: 37.855 | L29: 18 | M29: 2
A30: 2019/06/02 01:00:00 | B30: 0.06 | C30: 4.056 | D30: 4.117 | E30: 34.833 | F30: 6.787 | G30: 0 | H30: 13.296 | I30: 2.45 | J30: 107.465 | K30: 41.763 | L30: 14 | M30: 2
A31: 2019/06/02 02:00:00 | B31: -0.031 | C31: 4.134 | D31: 4.104 | E31: 33.285 | F31: 6.173 | G31: 0 | H31: 12.675 | I31: 2.307 | J31: 107.486 | K31: 41.533 | L31: 13 | M31: 2
A32: 2019/06/02 03:00:00 | B32: -0.022 | C32: 4.625 | D32: 4.604 | E32: 29.834 | F32: 6.312 | G32: 0 | H32: 11.511 | I32: 2.354 | J32: 107.182 | K32: 45.137 | L32: 11 | M32: 2
A33: 2019/06/02 04:00:00 | B33: 0.045 | C33: 4.9 | D33: 4.944 | E33: 28.151 | F33: 6.404 | G33: 0 | H33: 10.991 | I33: 2.323 | J33: 108.614 | K33: 47.974 | L33: 9 | M33: 2
A34: 2019/06/02 05:00:00 | B34: -0.016 | C34: 5.015 | D34: 4.998 | E34: 27.937 | F34: 6.377 | G34: 0 | H34: 10.821 | I34: 2.266 | J34: 115.651 | K34: 48.604 | L34: 9 | M34: 2
A35: 2019/06/02 06:00:00 | B35: 0.325 | C35: 5.07 | D35: 5.396 | E35: 25.399 | F35: 5.688 | G35: 0 | H35: 10.516 | I35: 2.527 | J35: 107.429 | K35: 50.468 | L35: 6 | M35: 2
A36: 2019/06/02 07:00:00 | B36: 0.619 | C36: 4.804 | D36: 5.423 | E36: 25.518 | F36: 5.522 | G36: 0 | H36: 11.176 | I36: 2.205 | J36: 113.988 | K36: 51.444 | L36: A | M36: 2
A37: 2019/06/02 08:00:00 | B37: 0.942 | C37: 4.075 | D37: 5.018 | E37: 27.345 | F37: 6.214 | G37: 0 | H37: 13.317 | I37: 2.231 | J37: 117.349 | K37: 47.889 | L37: 9 | M37: 2
A38: 2019/06/02 09:00:00 | B38: 1.255 | C38: 3.316 | D38: 4.571 | E38: 31.077 | F38: 7.923 | G38: 0 | H38: 16.473 | I38: 2.584 | J38: 112.839 | K38: 41.368 | L38: 12 | M38: 2
A39: 2019/06/02 10:00:00 | B39: 2.17 | C39: 4.171 | D39: 6.341 | E39: 32.877 | F39: 9.671 | G39: 0 | H39: 18.653 | I39: 2.641 | J39: 134.022 | K39: 37.688 | L39: 14 | M39: 2
A40: 2019/06/02 11:00:00 | B40: 0.853 | C40: 2.382 | D40: 3.235 | E40: 41.535 | F40: 11.719 | G40: 0 | H40: 22.013 | I40: 2.854 | J40: 141.458 | K40: 34.126 | L40: 16 | M40: 2
A41: 2019/06/02 12:00:00 | B41: 0.466 | C41: 2.108 | D41: 2.573 | E41: 47.563 | F41: 12.297 | G41: 0 | H41: 24.708 | I41: 2.567 | J41: 147.607 | K41: 31.422 | L41: 16 | M41: 2
A42: 2019/06/02 13:00:00 | B42: 0.498 | C42: 2.04 | D42: 2.537 | E42: 58.639 | F42: 20.252 | G42: 0 | H42: 27.7 | I42: 2.83 | J42: 162.989 | K42: 27.929 | L42: 19 | M42: 2
A43: 2019/06/02 14:00:00 | B43: 0.956 | C43: 3.74 | D43: 4.695 | E43: 68.336 | F43: 33.592 | G43: 0 | H43: 29.774 | I43: 2.92 | J43: 168.572 | K43: 23.681 | L43: 19 | M43: 2
A44: 2019/06/02 15:00:00 | B44: 0.157 | C44: 1.598 | D44: 1.755 | E44: 76.172 | F44: 38.909 | G44: 0 | H44: 31.254 | I44: 2.968 | J44: 196.529 | K44: 22.462 | L44: 20 | M44: 2
A45: 2019/06/02 16:00:00 | B45: 0.155 | C45: 1.944 | D45: 2.098 | E45: 74.686 | F45: 25.514 | G45: 0 | H45: 31.344 | I45: 2.097 | J45: 179.863 | K45: 21.27 | L45: 22 | M45: 3
A46: 2019/06/02 17:00:00 | B46: 0.117 | C46: 1.378 | D46: 1.494 | E46: 75.051 | F46: 27.089 | G46: 0 | H46: 32.011 | I46: 2.753 | J46: 196.865 | K46: 19.933 | L46: 23 | M46: 3
A47: 2019/06/02 18:00:00 | B47: 0.119 | C47: 1.763 | D47: 1.881 | E47: 71.207 | F47: 22.414 | G47: 0 | H47: 31.698 | I47: 2.285 | J47: 207.538 | K47: 19.138 | L47: 23 | M47: 3
A48: 2019/06/02 19:00:00 | B48: 0.256 | C48: 2.485 | D48: 2.739 | E48: 73.352 | F48: 19.308 | G48: 0 | H48: 30.865 | I48: 4.044 | J48: 310.252 | K48: 21.151 | L48: 24 | M48: 3
A49: 2019/06/02 20:00:00 | B49: 0.043 | C49: 2.236 | D49: 2.278 | E49: 68.95 | F49: 17.515 | G49: 0 | H49: 28.969 | I49: 4.446 | J49: 327.124 | K49: 24.349 | L49: 22 | M49: 3
A50: 2019/06/02 21:00:00 | B50: 0.263 | C50: 3.918 | D50: 4.18 | E50: 46.407 | F50: 9.204 | G50: 0 | H50: 23.808 | I50: 3.552 | J50: 338.778 | K50: 31.583 | L50: 20 | M50: 3
A51: 2019/06/02 22:00:00 | B51: Z | C51: Z | D51: Z | E51: Z | F51: 9.185 | G51: 0 | H51: 20.591 | I51: 2.387 | J51: 354.082 | K51: 37.217 | L51: 27 | M51: 3
A52: 2019/06/02 23:00:00 | B52: 0.046 | C52: 3.892 | D52: 3.936 | E52: 39.194 | F52: 8.606 | G52: 0 | H52: 18.129 | I52: 2.166 | J52: 20.321 | K52: 43.481 | L52: 10 | M52: 3
A53: 2019/06/03 00:00:00 | B53: 0.105 | C53: 4.956 | D53: 5.059 | E53: 32.501 | F53: 16.809 | G53: 0 | H53: 15.654 | I53: 1.305 | J53: 352.249 | K53: 51.311 | L53: 8 | M53: 3
A54: 2019/06/03 01:00:00 | B54: 0.12 | C54: 6.949 | D54: 7.068 | E54: 27.422 | F54: 20.4 | G54: 0 | H54: 13.893 | I54: 2.007 | J54: 329.737 | K54: 56.222 | L54: 9 | M54: 2
A55: 2019/06/03 02:00:00 | B55: 0.181 | C55: 7.469 | D55: 7.648 | E55: 23.234 | F55: 15.365 | G55: 0 | H55: 12.141 | I55: 2.22 | J55: 3.956 | K55: 63.164 | L55: 10 | M55: 2
A56: 2019/06/03 03:00:00 | B56: 0.202 | C56: 5.567 | D56: 5.768 | E56: 21.227 | F56: 11.416 | G56: 0 | H56: 11.307 | I56: 1.637 | J56: 18.134 | K56: 67.542 | L56: 12 | M56: 2
A57: 2019/06/03 04:00:00 | B57: 0.433 | C57: 4.636 | D57: 5.068 | E57: 19.345 | F57: 7.613 | G57: 0 | H57: 9.906 | I57: 1.333 | J57: 30.627 | K57: 72.937 | L57: 13 | M57: 2
A58: 2019/06/03 05:00:00 | B58: 0.395 | C58: 5.686 | D58: 6.079 | E58: 14.372 | F58: 6.982 | G58: 0 | H58: 8.506 | I58: 0.514 | J58: 103.055 | K58: 77.107 | L58: 10 | M58: 2
A59: 2019/06/03 06:00:00 | B59: 1.804 | C59: 6.538 | D59: 8.34 | E59: 12.145 | F59: 6.378 | G59: 0 | H59: 9.107 | I59: 0.371 | J59: 352.688 | K59: 75.364 | L59: A | M59: 2
A60: 2019/06/03 07:00:00 | B60: 4.46 | C60: 6.306 | D60: 10.764 | E60: 13.202 | F60: 11.156 | G60: 0 | H60: 11.347 | I60: 0.557 | J60: 348.642 | K60: 68.405 | L60: 17 | M60: 2
A61: 2019/06/03 08:00:00 | B61: 3.041 | C61: 4.393 | D61: 7.432 | E61: 19.975 | F61: 12.509 | G61: 0 | H61: 14.051 | I61: 1.112 | J61: 32.104 | K61: 59.125 | L61: 17 | M61: 2
A62: 2019/06/03 09:00:00 | B62: 3.702 | C62: 4.054 | D62: 7.753 | E62: 24.306 | F62: 12.697 | G62: 0 | H62: 15.836 | I62: 1.923 | J62: 22.251 | K62: 53.693 | L62: 17 | M62: 2
A63: 2019/06/03 10:00:00 | B63: 2.105 | C63: 3.003 | D63: 5.104 | E63: 29.849 | F63: 28.441 | G63: 0 | H63: 18.805 | I63: 1.77 | J63: 51.203 | K63: 46.206 | L63: 19 | M63: 2
A64: 2019/06/03 11:00:00 | B64: 0.993 | C64: 2.96 | D64: 3.952 | E64: 43.021 | F64: 47.536 | G64: 0 | H64: 22.711 | I64: 2.317 | J64: 74.611 | K64: 36.865 | L64: 19 | M64: 2
A65: 2019/06/03 12:00:00 | B65: 0.899 | C65: 3.182 | D65: 4.08 | E65: 48.512 | F65: 24.152 | G65: 0 | H65: 24.973 | I65: 2.625 | J65: 87.669 | K65: 32.91 | L65: 20 | M65: 2
A66: 2019/06/03 13:00:00 | B66: 0.373 | C66: 2.326 | D66: 2.697 | E66: 65.765 | F66: 20.499 | G66: 0 | H66: 28.635 | I66: 2.511 | J66: 110.914 | K66: 25.499 | L66: 20 | M66: 2
A67: 2019/06/03 14:00:00 | B67: 0.14 | C67: 2.034 | D67: 2.173 | E67: 78.398 | F67: 25.545 | G67: 0 | H67: 30.802 | I67: 2.059 | J67: 117.51 | K67: 22.067 | L67: 23 | M67: 3
A68: 2019/06/03 15:00:00 | B68: 0.031 | C68: 1.753 | D68: 1.782 | E68: 81.676 | F68: 19.724 | G68: 0 | H68: 32.685 | I68: 1.623 | J68: 122.182 | K68: 19.177 | L68: 27 | M68: 3
A69: 2019/06/03 16:00:00 | B69: 0.504 | C69: 2.351 | D69: 2.853 | E69: 76.604 | F69: 15.165 | G69: 0 | H69: 33.219 | I69: 2.785 | J69: 232.793 | K69: 17.563 | L69: 25 | M69: 3
A70: 2019/06/03 17:00:00 | B70: 0.306 | C70: 2.253 | D70: 2.557 | E70: 76.824 | F70: 11.425 | G70: 0 | H70: 33.5 | I70: 4.021 | J70: 224.899 | K70: 13.729 | L70: 27 | M70: 3
A71: 2019/06/03 18:00:00 | B71: 0.057 | C71: 1.371 | D71: 1.426 | E71: 79.108 | F71: 9.234 | G71: 0 | H71: 33.387 | I71: 3.65 | J71: 218.508 | K71: 12.423 | L71: 25 | M71: 3
A72: 2019/06/03 19:00:00 | B72: 0.139 | C72: 1.835 | D72: 1.973 | E72: 73.232 | F72: 9.944 | G72: 0 | H72: 32.771 | I72: 3.116 | J72: 235.622 | K72: 16.216 | L72: 24 | M72: 3
A73: 2019/06/03 20:00:00 | B73: 0.264 | C73: 3.758 | D73: 4.02 | E73: 69.008 | F73: 9.53 | G73: 0 | H73: 31.78 | I73: 2.978 | J73: 226.037 | K73: 16.634 | L73: 23 | M73: 3
A74: 2019/06/03 21:00:00 | B74: Z | C74: Z | D74: Z | E74: Z | F74: 31.1 | G74: 0 | H74: 27.166 | I74: 3.716 | J74: 346.349 | K74: 29.38 | L74: 22 | M74: 3
A75: 2019/06/03 22:00:00 | B75: 0.054 | C75: 2.394 | D75: 2.446 | E75: 48.64 | F75: 31.271 | G75: 0 | H75: 20.884 | I75: 5.762 | J75: 15.955 | K75: 45.802 | L75: 20 | M75: 2
A76: 2019/06/03 23:00:00 | B76: 0.058 | C76: 2.616 | D76: 2.672 | E76: 43.368 | F76: 17.333 | G76: 0 | H76: 19.495 | I76: 2.797 | J76: 15.247 | K76: 51.182 | L76: 18 | M76: 2
A77: 2019/06/04 00:00:00 | B77: 0.107 | C77: 4.535 | D77: 4.641 | E77: 37.75 | F77: 15.553 | G77: 0 | H77: 17.51 | I77: 2.837 | J77: 353.593 | K77: 58.895 | L77: 15 | M77: 2
A78: 2019/06/04 01:00:00 | B78: -0.058 | C78: 3.718 | D78: 3.66 | E78: 38.419 | F78: 17.118 | G78: 0 | H78: 16.367 | I78: 3.508 | J78: 3.99 | K78: 65.147 | L78: 12 | M78: 2
A79: 2019/06/04 02:00:00 | B79: -0.027 | C79: 2.926 | D79: 2.896 | E79: 32.435 | F79: 17.511 | G79: 0 | H79: 15.737 | I79: 3.438 | J79: 334.142 | K79: 66.518 | L79: 13 | M79: 2
A80: 2019/06/04 03:00:00 | B80: 0.079 | C80: 2.55 | D80: 2.628 | E80: 32.199 | F80: 21.345 | G80: 0 | H80: 15.178 | I80: 3.558 | J80: 339.783 | K80: 67.621 | L80: 11 | M80: 2
A81: 2019/06/04 04:00:00 | B81: 0.124 | C81: 2.451 | D81: 2.574 | E81: 31.823 | F81: 26.715 | G81: 0 | H81: 13.902 | I81: 3.181 | J81: 338.671 | K81: 69.012 | L81: 9 | M81: 2
A82: 2019/06/04 05:00:00 | B82: 0.001 | C82: 2.858 | D82: 2.859 | E82: 30.011 | F82: 26.798 | G82: 0 | H82: 12.568 | I82: 2.472 | J82: 331.046 | K82: 71.544 | L82: A | M82: 2
A83: 2019/06/04 06:00:00 | B83: 0.405 | C83: 3.749 | D83: 4.152 | E83: 29.678 | F83: 31.942 | G83: 0 | H83: 11.607 | I83: 3.055 | J83: 316.893 | K83: 72.773 | L83: 8 | M83: 1
A84: 2019/06/04 07:00:00 | B84: 0.671 | C84: 3.675 | D84: 4.344 | E84: 36.357 | F84: 33.646 | G84: 0 | H84: 12.313 | I84: 3.371 | J84: 315.127 | K84: 66.354 | L84: 10 | M84: 1
A85: 2019/06/04 08:00:00 | B85: 0.739 | C85: 3.918 | D85: 4.656 | E85: 42.729 | F85: 22.428 | G85: 0 | H85: 13.425 | I85: 2.753 | J85: 311.047 | K85: 58.193 | L85: 10 | M85: 1
A86: 2019/06/04 09:00:00 | B86: 1.518 | C86: 3.777 | D86: 5.295 | E86: 47.721 | F86: 17.822 | G86: 0 | H86: 15.629 | I86: 3.965 | J86: 312.398 | K86: 45.992 | L86: 13 | M86: 2
A87: 2019/06/04 10:00:00 | B87: 0.705 | C87: 2.86 | D87: 3.565 | E87: 54.451 | F87: 7.674 | G87: 0 | H87: 18.041 | I87: 5.29 | J87: 317.813 | K87: 30.189 | L87: 16 | M87: 2
A88: 2019/06/04 11:00:00 | B88: 0.95 | C88: 2.202 | D88: 3.151 | E88: 53.306 | F88: 11.837 | G88: 0 | H88: 19.268 | I88: 4.3 | J88: 318.525 | K88: 27.987 | L88: 18 | M88: 2
A89: 2019/06/04 12:00:00 | B89: 0.727 | C89: 1.795 | D89: 2.521 | E89: 53.525 | F89: 5.428 | G89: 0 | H89: 20.051 | I89: 4.328 | J89: 321.857 | K89: 25.535 | L89: 20 | M89: 2
A90: 2019/06/04 13:00:00 | B90: 0.739 | C90: 1.777 | D90: 2.514 | E90: 55.707 | F90: 5.516 | G90: 0 | H90: 20.852 | I90: 3.232 | J90: 307.461 | K90: 24.478 | L90: 21 | M90: 2
A91: 2019/06/04 14:00:00 | B91: 0.274 | C91: 1.469 | D91: 1.743 | E91: 57.468 | F91: 2.891 | G91: 0 | H91: 21.853 | I91: 3.059 | J91: 305.746 | K91: 22.556 | L91: 22 | M91: 3
A92: 2019/06/04 15:00:00 | B92: 0.05 | C92: 1.369 | D92: 1.418 | E92: 57.989 | F92: 2.703 | G92: 0 | H92: 22.672 | I92: 2.527 | J92: 281.288 | K92: 21.671 | L92: 23 | M92: 3
A93: 2019/06/04 16:00:00 | B93: 0.499 | C93: 1.74 | D93: 2.239 | E93: 59.498 | F93: 3.806 | G93: 0 | H93: 23.237 | I93: 2.726 | J93: 277.861 | K93: 20.706 | L93: 23 | M93: 3
A94: 2019/06/04 17:00:00 | B94: 0.438 | C94: 1.664 | D94: 2.101 | E94: 61.982 | F94: 3.191 | G94: 0 | H94: 23.319 | I94: 2.64 | J94: 289.256 | K94: 20.448 | L94: 23 | M94: 3
A95: 2019/06/04 18:00:00 | B95: 0.433 | C95: 1.777 | D95: 2.21 | E95: 62.353 | F95: 3.884 | G95: 0 | H95: 23.423 | I95: 2.278 | J95: 285.569 | K95: 20.293 | L95: 22 | M95: 3
A96: 2019/06/04 19:00:00 | B96: 1.613 | C96: 1.871 | D96: 3.484 | E96: 62.522 | F96: 3.38 | G96: 0 | H96: 23.047 | I96: 2.15 | J96: 272.894 | K96: 20.619 | L96: 21 | M96: 3
A97: 2019/06/04 20:00:00 | B97: Z | C97: Z | D97: Z | E97: Z | F97: 3.788 | G97: 0 | H97: 22.358 | I97: 1.128 | J97: 270.463 | K97: 21.936 | L97: 20 | M97: 2
A98: 2019/06/04 21:00:00 | B98: 0.952 | C98: 6.633 | D98: 7.585 | E98: 48.921 | F98: 9.999 | G98: 0 | H98: 21.221 | I98: 0.766 | J98: 315.219 | K98: 25.761 | L98: 19 | M98: 2
A99: 2019/06/04 22:00:00 | B99: 0.037 | C99: 7.069 | D99: 7.105 | E99: 39.743 | F99: 8.612 | G99: 0 | H99: 18.118 | I99: 0.44 | J99: 67.511 | K99: 33.4 | L99: 15 | M99: 2
A100: 2019/06/04 23:00:00 | B100: 0.14 | C100: 9.204 | D100: 9.344 | E100: 37.466 | F100: 9.386 | G100: 0 | H100: 16.378 | I100: 0.728 | J100: 86.135 | K100: 35.253 | L100: 12 | M100: 2
A101: 2019/06/05 00:00:00 | B101: -0.065 | C101: 8.851 | D101: 8.785 | E101: 33.372 | F101: 9.819 | G101: 0.01 | H101: 14.963 | I101: 0.951 | J101: 96.935 | K101: 41.144 | L101: 13 | M101: 2
A102: 2019/06/05 01:00:00 | B102: -0.057 | C102: 5.377 | D102: 5.319 | E102: 41.372 | F102: 8.028 | G102: 0.08 | H102: 15.537 | I102: 2.313 | J102: 3.37 | K102: 43.373 | L102: 12 | M102: 2
A103: 2019/06/05 02:00:00 | B103: 0.136 | C103: 3.518 | D103: 3.653 | E103: 44.279 | F103: 4.457 | G103: 0.19 | H103: 14.728 | I103: 1.492 | J103: 5.252 | K103: 50.138 | L103: 12 | M103: 2
A104: 2019/06/05 03:00:00 | B104: -0.002 | C104: 3.482 | D104: 3.479 | E104: 39.984 | F104: 4.117 | G104: 0 | H104: 12.985 | I104: 2.057 | J104: 37.384 | K104: 64.323 | L104: 11 | M104: 2
A105: 2019/06/05 04:00:00 | B105: 0.056 | C105: 2.779 | D105: 2.834 | E105: 42.068 | F105: 3.965 | G105: 0 | H105: 12.606 | I105: 2.572 | J105: 27.064 | K105: 66.23 | L105: A | M105: 2
A106: 2019/06/05 05:00:00 | B106: -0.053 | C106: 2.868 | D106: 2.814 | E106: 43.199 | F106: 2.961 | G106: 0 | H106: 11.964 | I106: 2.686 | J106: 18.344 | K106: 68.386 | L106: 6 | M106: 1
A107: 2019/06/05 06:00:00 | B107: 0.168 | C107: 3.078 | D107: 3.245 | E107: 43.318 | F107: 2.822 | G107: 0 | H107: 11.651 | I107: 2.46 | J107: 36.866 | K107: 71.035 | L107: 7 | M107: 1
A108: 2019/06/05 07:00:00 | B108: 0.021 | C108: 2.564 | D108: 2.582 | E108: 45.22 | F108: 2.44 | G108: 0 | H108: 12.874 | I108: 1.904 | J108: 51.014 | K108: 66.692 | L108: 7 | M108: 1
A109: 2019/06/05 08:00:00 | B109: 1.53 | C109: 3.182 | D109: 4.71 | E109: 48.177 | F109: 2.594 | G109: 0 | H109: 15.453 | I109: 1.736 | J109: 31.73 | K109: 56.472 | L109: 13 | M109: 1
A110: 2019/06/05 09:00:00 | B110: 1.651 | C110: 2.525 | D110: 4.175 | E110: 51.796 | F110: 3.876 | G110: 0 | H110: 17.517 | I110: 2.324 | J110: 1.476 | K110: 47.883 | L110: 18 | M110: 2
A111: 2019/06/05 10:00:00 | B111: 1.672 | C111: 3.116 | D111: 4.785 | E111: 53.85 | F111: 7.701 | G111: 0 | H111: 18.847 | I111: 2.816 | J111: 339.49 | K111: 42.628 | L111: 20 | M111: 2
A112: 2019/06/05 11:00:00 | B112: 2.697 | C112: 3.714 | D112: 6.41 | E112: 57.33 | F112: 8.667 | G112: 0 | H112: 20.052 | I112: 2.209 | J112: 335.013 | K112: 36.903 | L112: 21 | M112: 2
A113: 2019/06/05 12:00:00 | B113: 0.613 | C113: 2.375 | D113: 2.985 | E113: 61.687 | F113: 4.154 | G113: 0 | H113: 20.394 | I113: 2.77 | J113: 312.236 | K113: 34.185 | L113: 22 | M113: 2
A114: 2019/06/05 13:00:00 | B114: 0.327 | C114: 1.823 | D114: 2.147 | E114: 61.439 | F114: 3.861 | G114: 0 | H114: 21.613 | I114: 2.888 | J114: 328.664 | K114: 26.895 | L114: 23 | M114: 2
A115: 2019/06/05 14:00:00 | B115: 0.331 | C115: 1.375 | D115: 1.704 | E115: 59.827 | F115: 3.445 | G115: 0 | H115: 22.676 | I115: 2.466 | J115: 307.423 | K115: 22.127 | L115: 23 | M115: 2
A116: 2019/06/05 15:00:00 | B116: 0.54 | C116: 1.61 | D116: 2.148 | E116: 60.901 | F116: 3.158 | G116: 0 | H116: 23.013 | I116: 2.582 | J116: 306.558 | K116: 19.427 | L116: 23 | M116: 3
A117: 2019/06/05 16:00:00 | B117: 0.729 | C117: 1.835 | D117: 2.561 | E117: 61.631 | F117: 3.751 | G117: 0 | H117: 23.621 | I117: 2.469 | J117: 321.042 | K117: 18.423 | L117: 23 | M117: 3
A118: 2019/06/05 17:00:00 | B118: 0.225 | C118: 1.319 | D118: 1.541 | E118: 63.118 | F118: 2.733 | G118: 0 | H118: 23.718 | I118: 1.894 | J118: 302.914 | K118: 17.018 | L118: 24 | M118: 3
A119: 2019/06/05 18:00:00 | B119: 0.142 | C119: 1.18 | D119: 1.319 | E119: 63.572 | F119: 2.992 | G119: 0 | H119: 23.673 | I119: 2.067 | J119: 312.03 | K119: 17.636 | L119: 24 | M119: 3
A120: 2019/06/05 19:00:00 | B120: Z | C120: Z | D120: Z | E120: Z | F120: 2.725 | G120: 0 | H120: 23.417 | I120: 1.8 | J120: 319.192 | K120: 18.875 | L120: 23 | M120: 3
A121: 2019/06/05 20:00:00 | B121: 0.109 | C121: 1.769 | D121: 1.875 | E121: 63.177 | F121: 2.661 | G121: 0 | H121: 23.219 | I121: 0.843 | J121: 351.604 | K121: 19.486 | L121: 23 | M121: 3
A122: 2019/06/05 21:00:00 | B122: -0.065 | C122: 1.625 | D122: 1.557 | E122: 59.027 | F122: 4.149 | G122: 0 | H122: 21.194 | I122: 0.915 | J122: 62.431 | K122: 23.444 | L122: 21 | M122: 3
A123: 2019/06/05 22:00:00 | B123: -0.024 | C123: 3.971 | D123: 3.945 | E123: 49.352 | F123: 5.948 | G123: 0 | H123: 17.619 | I123: 1.064 | J123: 73.265 | K123: 28.938 | L123: 18 | M123: 3
A124: 2019/06/05 23:00:00 | B124: 0.033 | C124: 6.413 | D124: 6.444 | E124: 40.645 | F124: 4.691 | G124: 0 | H124: 15.433 | I124: 1.479 | J124: 82.027 | K124: 34.625 | L124: 15 | M124: 2
A125: 2019/06/06 00:00:00 | B125: 0.018 | C125: 6.202 | D125: 6.217 | E125: 40.74 | F125: 7.003 | G125: 0 | H125: 15.777 | I125: 1.594 | J125: 102.896 | K125: 33.743 | L125: 15 | M125: 2
A126: 2019/06/06 01:00:00 | B126: 0.09 | C126: 6.285 | D126: 6.373 | E126: 38.236 | F126: 5.324 | G126: 0 | H126: 14.877 | I126: 1.548 | J126: 114.127 | K126: 36.923 | L126: 12 | M126: 2
A127: 2019/06/06 02:00:00 | B127: 0.034 | C127: 6.546 | D127: 6.577 | E127: 37.501 | F127: 4.621 | G127: 0 | H127: 14.625 | I127: 1.648 | J127: 121.343 | K127: 37.932 | L127: 12 | M127: 2
A128: 2019/06/06 03:00:00 | B128: 0.086 | C128: 6.58 | D128: 6.665 | E128: 35.311 | F128: 3.366 | G128: 0 | H128: 14.735 | I128: 1.543 | J128: 71.255 | K128: 38.317 | L128: A | M128: 2
A129: 2019/06/06 04:00:00 | B129: 0.051 | C129: 5.539 | D129: 5.587 | E129: 35.311 | F129: 3.493 | G129: 0 | H129: 14.174 | I129: 2.117 | J129: 88.018 | K129: 40.404 | L129: 8 | M129: 2
A130: 2019/06/06 05:00:00 | B130: 0.118 | C130: 4.461 | D130: 4.579 | E130: 38.464 | F130: 3.675 | G130: 0 | H130: 14.884 | I130: 2.857 | J130: 97.244 | K130: 37.094 | L130: 9 | M130: 2
A131: 2019/06/06 06:00:00 | B131: 0.161 | C131: 3.81 | D131: 3.968 | E131: 40.893 | F131: 4.969 | G131: 0 | H131: 15.129 | I131: 3.09 | J131: 107.093 | K131: 36.426 | L131: 7 | M131: 2
A132: 2019/06/06 07:00:00 | B132: 0.502 | C132: 4.462 | D132: 4.962 | E132: 38.849 | F132: 4.64 | G132: 0 | H132: 15.12 | I132: 2.541 | J132: 133.303 | K132: 38.526 | L132: 8 | M132: 2
A133: 2019/06/06 08:00:00 | B133: 0.388 | C133: 3.494 | D133: 3.882 | E133: 44.714 | F133: 4.853 | G133: 0 | H133: 16.854 | I133: 2.479 | J133: 143.791 | K133: 36.236 | L133: 15 | M133: 2
A134: 2019/06/06 09:00:00 | B134: 1.23 | C134: 3.071 | D134: 4.3 | E134: 43.792 | F134: 6.243 | G134: 0 | H134: 19.017 | I134: 3.047 | J134: 175.55 | K134: 32.943 | L134: 21 | M134: 2
A135: 2019/06/06 10:00:00 | B135: 0.438 | C135: 2.066 | D135: 2.503 | E135: 43.767 | F135: 5.011 | G135: 0 | H135: 20.577 | I135: 3.526 | J135: 183.984 | K135: 31.293 | L135: 24 | M135: 2
A136: 2019/06/06 11:00:00 | B136: 0.66 | C136: 2.671 | D136: 3.33 | E136: 44.791 | F136: 4.892 | G136: 0 | H136: 21.582 | I136: 3.339 | J136: 180.064 | K136: 31.931 | L136: 25 | M136: 3
A137: 2019/06/06 12:00:00 | B137: 0.314 | C137: 1.366 | D137: 1.679 | E137: 49.615 | F137: 3.5 | G137: 0 | H137: 23.222 | I137: 2.916 | J137: 186.019 | K137: 29.278 | L137: 25 | M137: 3
A138: 2019/06/06 13:00:00 | B138: 0.245 | C138: 1.556 | D138: 1.801 | E138: 48.365 | F138: 4.32 | G138: 0 | H138: 22.153 | I138: 3.055 | J138: 196.821 | K138: 33.536 | L138: 26 | M138: 3
A139: 2019/06/06 14:00:00 | B139: 0.55 | C139: 2.25 | D139: 2.8 | E139: 48.717 | F139: 4.054 | G139: 0 | H139: 22.789 | I139: 2.006 | J139: 200.179 | K139: 31.919 | L139: 26 | M139: 3
A140: 2019/06/06 15:00:00 | B140: 0.414 | C140: 1.876 | D140: 2.289 | E140: 48.761 | F140: 4.194 | G140: 0 | H140: 23.452 | I140: 1.375 | J140: 326.977 | K140: 33.614 | L140: 26 | M140: 3
A141: 2019/06/06 16:00:00 | B141: 0.309 | C141: 1.39 | D141: 1.699 | E141: 50.222 | F141: 5.369 | G141: 0 | H141: 24.601 | I141: 0.879 | J141: 140.601 | K141: 32.5 | L141: 26 | M141: 3
A142: 2019/06/06 17:00:00 | B142: 0.403 | C142: 1.197 | D142: 1.6 | E142: 51.414 | F142: 4.389 | G142: 0 | H142: 24.58 | I142: 1.498 | J142: 156.274 | K142: 32.883 | L142: 27 | M142: 3
A143: 2019/06/06 18:00:00 | B143: Z | C143: Z | D143: Z | E143: Z | F143: 3.822 | G143: 0 | H143: 25.217 | I143: 1.472 | J143: 155.673 | K143: 29.786 | L143: 27 | M143: 3
A144: 2019/06/06 19:00:00 | B144: 0.284 | C144: 1.39 | D144: 1.674 | E144: 54.671 | F144: 6.003 | G144: 0 | H144: 24.59 | I144: 1.561 | J144: 132.515 | K144: 30.471 | L144: 26 | M144: 3
A145: 2019/06/06 20:00:00 | B145: 0.268 | C145: 1.664 | D145: 1.934 | E145: 56.683 | F145: 6.454 | G145: 0 | H145: 23.455 | I145: 2.26 | J145: 118.435 | K145: 32.481 | L145: 23 | M145: 3
A146: 2019/06/06 21:00:00 | B146: 0.236 | C146: 2.722 | D146: 2.959 | E146: 54.588 | F146: 7.537 | G146: 0 | H146: 22.17 | I146: 1.883 | J146: 104.901 | K146: 37.644 | L146: 23 | M146: 3
A147: 2019/06/06 22:00:00 | B147: 0.269 | C147: 4.156 | D147: 4.426 | E147: 46.536 | F147: 9.429 | G147: 0 | H147: 19.445 | I147: 1.727 | J147: 94.607 | K147: 48.093 | L147: 21 | M147: 3
A148: 2019/06/06 23:00:00 | B148: 0.063 | C148: 4.787 | D148: 4.849 | E148: 39.042 | F148: 11.878 | G148: 0 | H148: 17.607 | I148: 1.075 | J148: 89.885 | K148: 56.376 | L148: 21 | M148: 3
A149: 2019/06/07 00:00:00 | B149: 0.192 | C149: 4.707 | D149: 4.898 | E149: 34.044 | F149: 12.344 | G149: 0 | H149: 16.772 | I149: 1.12 | J149: 106.876 | K149: 61.685 | L149: 23 | M149: 3
A150: 2019/06/07 01:00:00 | B150: 0.501 | C150: 10.132 | D150: 10.63 | E150: 25.869 | F150: 11.154 | G150: 0 | H150: 16.233 | I150: 0.573 | J150: 143.276 | K150: 65.005 | L150: 23 | M150: 3
A151: 2019/06/07 02:00:00 | B151: 0.45 | C151: 8.058 | D151: 8.507 | E151: 22.5 | F151: 11.182 | G151: 0 | H151: 15.568 | I151: 0.554 | J151: 49.426 | K151: 67.85 | L151: A | M151: 3
A152: 2019/06/07 03:00:00 | B152: 0.293 | C152: 8.857 | D152: 9.149 | E152: 18.996 | F152: 10.578 | G152: 1 | H152: 15.271 | I152: 0.337 | J152: 124.067 | K152: 71.949 | L152: 22 | M152: 3
A153: 2019/06/07 04:00:00 | B153: 0.553 | C153: 10.839 | D153: 11.391 | E153: 15.799 | F153: 9.471 | G153: 0.07 | H153: 14.656 | I153: 0.655 | J153: 114.666 | K153: 80.46 | L153: 19 | M153: 3
A154: 2019/06/07 05:00:00 | B154: 1.398 | C154: 9.841 | D154: 11.237 | E154: 21.067 | F154: 7.406 | G154: 0.67 | H154: 15.04 | I154: 1.485 | J154: 247.744 | K154: 77.941 | L154: 17 | M154: 3
A155: 2019/06/07 06:00:00 | B155: 0.439 | C155: 6.439 | D155: 6.877 | E155: 25.311 | F155: 7.079 | G155: 0 | H155: 14.153 | I155: 2.007 | J155: 308.556 | K155: 83.116 | L155: 14 | M155: 3
A156: 2019/06/07 07:00:00 | B156: 0.907 | C156: 8.027 | D156: 8.933 | E156: 23.453 | F156: 6.862 | G156: 0 | H156: 14.229 | I156: 0.517 | J156: 318.149 | K156: 82.315 | L156: 14 | M156: 2
A157: 2019/06/07 08:00:00 | B157: 1.999 | C157: 7.865 | D157: 9.863 | E157: 22.177 | F157: 7.804 | G157: 0 | H157: 15.13 | I157: 0.729 | J157: 89.2 | K157: 80.455 | L157: 14 | M157: 2
A158: 2019/06/07 09:00:00 | B158: 2.605 | C158: 5.843 | D158: 8.447 | E158: 30.42 | F158: 9.888 | G158: 0 | H158: 17.115 | I158: 1.08 | J158: 237.9 | K158: 71.135 | L158: 16 | M158: 2
A159: 2019/06/07 10:00:00 | B159: 2.1 | C159: 4.13 | D159: 6.23 | E159: 44.585 | F159: 7.8 | G159: 0 | H159: 17.809 | I159: 2.064 | J159: 230.001 | K159: 64.66 | L159: 17 | M159: 2
A160: 2019/06/07 11:00:00 | B160: 0.81 | C160: 2.396 | D160: 3.205 | E160: 50.069 | F160: 5.016 | G160: 0 | H160: 18.792 | I160: 2.78 | J160: 207.275 | K160: 58.328 | L160: 21 | M160: 2
A161: 2019/06/07 12:00:00 | B161: 0.634 | C161: 2.718 | D161: 3.35 | E161: 48.921 | F161: 7.519 | G161: 0 | H161: 19.72 | I161: 4.07 | J161: 224.222 | K161: 52.829 | L161: 22 | M161: 3
A162: 2019/06/07 13:00:00 | B162: 0.835 | C162: 3.194 | D162: 4.027 | E162: 50.419 | F162: 8.697 | G162: 0 | H162: 18.868 | I162: 3.786 | J162: 235.131 | K162: 53.489 | L162: 23 | M162: 3
A163: 2019/06/07 14:00:00 | B163: 1.065 | C163: 2.934 | D163: 3.998 | E163: 52.495 | F163: 7.898 | G163: 0 | H163: 18.707 | I163: 4.261 | J163: 230.634 | K163: 51.43 | L163: 23 | M163: 3
A164: 2019/06/07 15:00:00 | B164: 0.429 | C164: 2.394 | D164: 2.822 | E164: 50.462 | F164: 6.548 | G164: 0 | H164: 18.177 | I164: 4.633 | J164: 238.085 | K164: 49.917 | L164: 25 | M164: 3
A165: 2019/06/07 16:00:00 | B165: 1.079 | C165: 2.938 | D165: 4.015 | E165: 54.288 | F165: 4.812 | G165: 0 | H165: 18.911 | I165: 4.503 | J165: 236.53 | K165: 44.092 | L165: 25 | M165: 3
A166: 2019/06/07 17:00:00 | B166: Z | C166: Z | D166: Z | E166: Z | F166: 4.469 | G166: 0 | H166: 19.64 | I166: 4.261 | J166: 243.464 | K166: 37.36 | L166: 25 | M166: 3
A167: 2019/06/07 18:00:00 | B167: 0.623 | C167: 2.536 | D167: 3.158 | E167: 52.607 | F167: 4.817 | G167: 0 | H167: 18.586 | I167: 3.655 | J167: 251.564 | K167: 40.222 | L167: 26 | M167: 3
A168: 2019/06/07 19:00:00 | B168: 0.578 | C168: 2.094 | D168: 2.669 | E168: 50.541 | F168: 4.094 | G168: 0 | H168: 17.896 | I168: 3.264 | J168: 258.256 | K168: 40.687 | L168: 27 | M168: 3
A169: 2019/06/07 20:00:00 | B169: 0.267 | C169: 1.55 | D169: 1.816 | E169: 48.281 | F169: AF | G169: AF | H169: 16.7 | I169: AF | J169: AF | K169: AF | L169: 25 | M169: 3
A170: 2019/06/07 21:00:00 | B170: 0.293 | C170: 2.039 | D170: 2.331 | E170: 41.459 | F170: 4.798 | G170: 0 | H170: 15.218 | I170: 3.097 | J170: 247.317 | K170: 46.358 | L170: 22 | M170: 3
A171: 2019/06/07 22:00:00 | B171: 0.219 | C171: 2.126 | D171: 2.344 | E171: 35.6 | F171: 4.464 | G171: 0 | H171: 12.858 | I171: 2.894 | J171: 243.791 | K171: 51.125 | L171: 20 | M171: 3
A172: 2019/06/07 23:00:00 | B172: 0.206 | C172: 1.678 | D172: 1.883 | E172: 34.72 | F172: 3.072 | G172: 0 | H172: 10.142 | I172: 3.64 | J172: 236.617 | K172: 52.555 | L172: 19 | M172: 3
A173: 2019/06/08 00:00:00 | B173: 0.308 | C173: 1.866 | D173: 2.172 | E173: 27.536 | F173: 2.357 | G173: 0 | H173: 7.984 | I173: 3.413 | J173: 237.216 | K173: 59.178 | L173: 19 | M173: 3
A174: 2019/06/08 01:00:00 | B174: 0.118 | C174: 2.034 | D174: 2.15 | E174: 20.894 | F174: 1.359 | G174: 0 | H174: 7.074 | I174: 4.12 | J174: 240.795 | K174: 69.598 | L174: A | M174: 2
A175: 2019/06/08 02:00:00 | B175: 0.556 | C175: 1.7 | D175: 2.254 | E175: 21.065 | F175: 1.67 | G175: 0 | H175: 6.476 | I175: 3.978 | J175: 245.694 | K175: 70.21 | L175: 15 | M175: 2
A176: 2019/06/08 03:00:00 | B176: 0.173 | C176: 1.127 | D176: 1.298 | E176: 22.563 | F176: 1.108 | G176: 0 | H176: 5.649 | I176: 3.101 | J176: 265.306 | K176: 71.01 | L176: 20 | M176: 2
A177: 2019/06/08 04:00:00 | B177: 0.358 | C177: 2.19 | D177: 2.545 | E177: 21.563 | F177: 0.932 | G177: 0 | H177: 5.173 | I177: 2.443 | J177: 282.482 | K177: 73.295 | L177: 15 | M177: 3
A178: 2019/06/08 05:00:00 | B178: 0.66 | C178: 2.497 | D178: 3.155 | E178: 20.28 | F178: 1.138 | G178: 0 | H178: 4.951 | I178: 2.311 | J178: 254.673 | K178: 73.999 | L178: 14 | M178: 3
A179: 2019/06/08 06:00:00 | B179: 1.49 | C179: 3.472 | D179: 4.959 | E179: 19.96 | F179: AF | G179: AF | H179: 5.168 | I179: AF | J179: AF | K179: AF | L179: 13 | M179: 2
A180: 2019/06/08 07:00:00 | B180: 0.638 | C180: 1.648 | D180: 2.283 | E180: 23.379 | F180: 1.579 | G180: 0 | H180: 6.251 | I180: 4.087 | J180: 306.928 | K180: 71.26 | L180: 11 | M180: 2
A181: 2019/06/08 08:00:00 | B181: 0.412 | C181: 1.362 | D181: 1.773 | E181: 24.407 | F181: 4.196 | G181: 0 | H181: 6.791 | I181: 3.915 | J181: 301.651 | K181: 68.727 | L181: 14 | M181: 2
A182: 2019/06/08 09:00:00 | B182: 0.929 | C182: 1.452 | D182: 2.379 | E182: 24.713 | F182: 3.63 | G182: 0 | H182: 7.639 | I182: 3.797 | J182: 302.567 | K182: 64.23 | L182: 17 | M182: 2
A183: 2019/06/08 10:00:00 | B183: 1.457 | C183: 1.294 | D183: 2.749 | E183: 25.752 | F183: 4.324 | G183: 0 | H183: 9.427 | I183: 4.59 | J183: 313.733 | K183: 56.511 | L183: 19 | M183: 2
A184: 2019/06/08 11:00:00 | B184: 1.559 | C184: 1.507 | D184: 3.064 | E184: 26.973 | F184: 4.629 | G184: 0 | H184: 10.849 | I184: 3.836 | J184: 310.052 | K184: 50.813 | L184: 20 | M184: 2
A185: 2019/06/08 12:00:00 | B185: 0.835 | C185: 1.093 | D185: 1.925 | E185: 32.614 | F185: 3.727 | G185: 0 | H185: 12.638 | I185: 3.76 | J185: 328.451 | K185: 41.757 | L185: 22 | M185: 2
A186: 2019/06/08 13:00:00 | B186: 0.725 | C186: 0.883 | D186: 1.607 | E186: 34.595 | F186: 3.378 | G186: 0 | H186: 13.712 | I186: 3.802 | J186: 300.99 | K186: 35.198 | L186: 23 | M186: 2
A187: 2019/06/08 14:00:00 | B187: 0.681 | C187: 0.722 | D187: 1.402 | E187: 41.365 | F187: 3.647 | G187: 0 | H187: 14.755 | I187: 4.259 | J187: 305.964 | K187: 30.34 | L187: 24 | M187: 3
A188: 2019/06/08 15:00:00 | B188: 0.475 | C188: 0.698 | D188: 1.171 | E188: 42.769 | F188: 3.483 | G188: 0 | H188: 15.133 | I188: 4.83 | J188: 317.816 | K188: 29.093 | L188: 26 | M188: 3
A189: 2019/06/08 16:00:00 | B189: Z | C189: Z | D189: Z | E189: Z | F189: 3.327 | G189: 0 | H189: 15.163 | I189: 4.762 | J189: 310.75 | K189: 29.367 | L189: 26 | M189: 3
A190: 2019/06/08 17:00:00 | B190: 0.674 | C190: 0.861 | D190: 1.533 | E190: 42.404 | F190: 2.732 | G190: 0 | H190: 15.268 | I190: 4.955 | J190: 314.312 | K190: 29.62 | L190: 28 | M190: 3
A191: 2019/06/08 18:00:00 | B191: 0.468 | C191: 0.755 | D191: 1.222 | E191: 42.056 | F191: 2.673 | G191: 0 | H191: 15.226 | I191: 5.043 | J191: 315.681 | K191: 29.801 | L191: 29 | M191: 3
A192: 2019/06/08 19:00:00 | B192: 0.126 | C192: 0.598 | D192: 0.722 | E192: 42.095 | F192: 2.281 | G192: 0 | H192: 14.439 | I192: 4.504 | J192: 309.496 | K192: 30.909 | L192: 28 | M192: 3
A193: 2019/06/08 20:00:00 | B193: -0.003 | C193: 0.772 | D193: 0.769 | E193: 42.057 | F193: 3.636 | G193: 0 | H193: 13.853 | I193: 3.663 | J193: 309.879 | K193: 32.292 | L193: 27 | M193: 3
A194: 2019/06/08 21:00:00 | B194: 0.017 | C194: 1.655 | D194: 1.671 | E194: 41.212 | F194: 7.144 | G194: 0 | H194: 13.716 | I194: 2.79 | J194: 307.164 | K194: 33.506 | L194: 22 | M194: 3
A195: 2019/06/08 22:00:00 | B195: 0.357 | C195: 3.046 | D195: 3.401 | E195: 35.922 | F195: 11.807 | G195: 0 | H195: 11.855 | I195: 1.388 | J195: 245.875 | K195: 38.879 | L195: 20 | M195: 3
A196: 2019/06/08 23:00:00 | B196: 0.115 | C196: 4.17 | D196: 4.284 | E196: 33.335 | F196: 11.25 | G196: 0 | H196: 10.847 | I196: 1.151 | J196: 247.583 | K196: 42.206 | L196: 17 | M196: 3
A197: 2019/06/09 00:00:00 | B197: 0.049 | C197: 4.559 | D197: 4.607 | E197: 30.781 | F197: 12.381 | G197: 0 | H197: 9.233 | I197: 0.791 | J197: 227.629 | K197: 47.679 | L197: A | M197: 3
A198: 2019/06/09 01:00:00 | B198: 0.061 | C198: 6.153 | D198: 6.215 | E198: 24.374 | F198: 12.55 | G198: 0 | H198: 7.689 | I198: 0.499 | J198: 182.835 | K198: 53.357 | L198: 15 | M198: 3
A199: 2019/06/09 02:00:00 | B199: 0.759 | C199: 6.854 | D199: 7.614 | E199: 22.036 | F199: 10.251 | G199: 0 | H199: 7.088 | I199: 1.247 | J199: 201.101 | K199: 56.171 | L199: 17 | M199: 3
A200: 2019/06/09 03:00:00 | B200: 0.66 | C200: 4.189 | D200: 4.849 | E200: 30.629 | F200: 8.448 | G200: 0.16 | H200: 8.319 | I200: 2.976 | J200: 242.086 | K200: 60.459 | L200: 16 | M200: 3
A201: 2019/06/09 04:00:00 | B201: 0.081 | C201: 1.562 | D201: 1.643 | E201: 37.305 | F201: 8.571 | G201: 0.3 | H201: 7.809 | I201: 2.908 | J201: 230.987 | K201: 79.096 | L201: 14 | M201: 2
... 532 more rows

Sheet Kerrobert
A1: Group: Global WYAMZ - Monthly Monthly: 01/2019 Type: AVG 1 Hr.
A3: Date & Time | B3: Kerrobert | C3: Kerrobert | D3: Kerrobert | E3: Kerrobert | F3: Kerrobert | G3: Kerrobert | H3: Kerrobert | I3: Kerrobert
B4: SO2 | C4: H2S | D4: PM25 | E4: PRECIP | F4: TEMPERAT | G4: RH | H4: WS | I4: WD
B5: ppb | C5: ppb | D5: ug/m3(L) | E5: mm | F5: C° | G5: %RH | H5: m/s | I5: Deg
A6: 2019/06/01 01:00:00 | B6: -0.561 | C6: 0.295 | D6: 12.604 | E6: PF | F6: PF | G6: PF | H6: PF | I6: PF
A7: 2019/06/01 02:00:00 | B7: -0.533 | C7: 0.491 | D7: 10.466 | E7: PF | F7: PF | G7: PF | H7: PF | I7: PF
A8: 2019/06/01 03:00:00 | B8: -0.525 | C8: 0.295 | D8: 9.947 | E8: PF | F8: PF | G8: PF | H8: PF | I8: PF
A9: 2019/06/01 04:00:00 | B9: -0.664 | C9: 0.512 | D9: 10.995 | E9: PF | F9: PF | G9: PF | H9: PF | I9: PF
A10: 2019/06/01 05:00:00 | B10: -0.618 | C10: 0.378 | D10: 11.128 | E10: PF | F10: PF | G10: PF | H10: PF | I10: PF
A11: 2019/06/01 06:00:00 | B11: -0.639 | C11: 0.296 | D11: 11.894 | E11: PF | F11: PF | G11: PF | H11: PF | I11: PF
A12: 2019/06/01 07:00:00 | B12: -0.576 | C12: 0.24 | D12: 12.4 | E12: PF | F12: PF | G12: PF | H12: PF | I12: PF
A13: 2019/06/01 08:00:00 | B13: -0.629 | C13: 0.288 | D13: 9.794 | E13: PF | F13: PF | G13: PF | H13: PF | I13: PF
A14: 2019/06/01 09:00:00 | B14: -0.657 | C14: 0.492 | D14: 9.105 | E14: PF | F14: PF | G14: PF | H14: PF | I14: PF
A15: 2019/06/01 10:00:00 | B15: -0.605 | C15: 0.144 | D15: 7.267 | E15: PF | F15: PF | G15: PF | H15: PF | I15: PF
A16: 2019/06/01 11:00:00 | B16: -0.598 | C16: 0.096 | D16: 8.434 | E16: PF | F16: PF | G16: PF | H16: PF | I16: PF
A17: 2019/06/01 12:00:00 | B17: -0.607 | C17: 0.022 | D17: 11.557 | E17: PF | F17: PF | G17: PF | H17: PF | I17: PF
A18: 2019/06/01 13:00:00 | B18: -0.577 | C18: 0.072 | D18: 15.314 | E18: PF | F18: PF | G18: PF | H18: PF | I18: PF
A19: 2019/06/01 14:00:00 | B19: -0.533 | C19: 0.051 | D19: 24.684 | E19: PF | F19: PF | G19: PF | H19: PF | I19: PF
A20: 2019/06/01 15:00:00 | B20: -0.546 | C20: 0.114 | D20: 32.88 | E20: PF | F20: PF | G20: PF | H20: PF | I20: PF
A21: 2019/06/01 16:00:00 | B21: -0.547 | C21: 0.145 | D21: 39.644 | E21: PF | F21: PF | G21: PF | H21: PF | I21: PF
A22: 2019/06/01 17:00:00 | B22: -0.509 | C22: 0.152 | D22: 38.897 | E22: PF | F22: PF | G22: PF | H22: PF | I22: PF
A23: 2019/06/01 18:00:00 | B23: -0.494 | C23: 0.076 | D23: 34.298 | E23: PF | F23: PF | G23: PF | H23: PF | I23: PF
A24: 2019/06/01 19:00:00 | B24: -0.522 | C24: 0.13 | D24: 37.175 | E24: PF | F24: PF | G24: PF | H24: PF | I24: PF
A25: 2019/06/01 20:00:00 | B25: -0.563 | C25: 0.134 | D25: 36.299 | E25: PF | F25: PF | G25: PF | H25: PF | I25: PF
A26: 2019/06/01 21:00:00 | B26: -0.579 | C26: 0.162 | D26: 34.715 | E26: PF | F26: PF | G26: PF | H26: PF | I26: PF
A27: 2019/06/01 22:00:00 | B27: -0.59 | C27: 0.09 | D27: 22.614 | E27: PF | F27: PF | G27: PF | H27: PF | I27: PF
A28: 2019/06/01 23:00:00 | B28: Z | C28: Z | D28: 11.415 | E28: PF | F28: PF | G28: PF | H28: PF | I28: PF
A29: 2019/06/02 00:00:00 | B29: -0.587 | C29: 0.114 | D29: 8.366 | E29: PF | F29: PF | G29: PF | H29: PF | I29: PF
A30: 2019/06/02 01:00:00 | B30: -0.642 | C30: 0.125 | D30: 10.626 | E30: PF | F30: PF | G30: PF | H30: PF | I30: PF
A31: 2019/06/02 02:00:00 | B31: -0.639 | C31: 0.139 | D31: 6.899 | E31: PF | F31: PF | G31: PF | H31: PF | I31: PF
A32: 2019/06/02 03:00:00 | B32: -0.684 | C32: 0.18 | D32: 5.361 | E32: PF | F32: PF | G32: PF | H32: PF | I32: PF
A33: 2019/06/02 04:00:00 | B33: -0.685 | C33: 0.371 | D33: 12.262 | E33: PF | F33: PF | G33: PF | H33: PF | I33: PF
A34: 2019/06/02 05:00:00 | B34: -0.625 | C34: 0.699 | D34: 17.766 | E34: PF | F34: PF | G34: PF | H34: PF | I34: PF
A35: 2019/06/02 06:00:00 | B35: -0.673 | C35: 0.602 | D35: 14.376 | E35: PF | F35: PF | G35: PF | H35: PF | I35: PF
A36: 2019/06/02 07:00:00 | B36: -0.668 | C36: 0.462 | D36: 13.372 | E36: PF | F36: PF | G36: PF | H36: PF | I36: PF
A37: 2019/06/02 08:00:00 | B37: -0.615 | C37: 0.414 | D37: 15.79 | E37: PF | F37: PF | G37: PF | H37: PF | I37: PF
A38: 2019/06/02 09:00:00 | B38: -0.585 | C38: 0.397 | D38: 18.543 | E38: PF | F38: PF | G38: PF | H38: PF | I38: PF
A39: 2019/06/02 10:00:00 | B39: -0.536 | C39: 0.282 | D39: 21.183 | E39: PF | F39: PF | G39: PF | H39: PF | I39: PF
A40: 2019/06/02 11:00:00 | B40: -0.508 | C40: 0.181 | D40: 17.86 | E40: PF | F40: PF | G40: PF | H40: PF | I40: PF
A41: 2019/06/02 12:00:00 | B41: -0.423 | C41: 0.173 | D41: 22.19 | E41: PF | F41: PF | G41: PF | H41: PF | I41: PF
A42: 2019/06/02 13:00:00 | B42: -0.253 | C42: 0.221 | D42: 29.053 | E42: PF | F42: PF | G42: PF | H42: PF | I42: PF
A43: 2019/06/02 14:00:00 | B43: -0.222 | C43: 0.169 | D43: 31.384 | E43: PF | F43: PF | G43: PF | H43: PF | I43: PF
A44: 2019/06/02 15:00:00 | B44: -0.353 | C44: 0.2 | D44: 33.899 | E44: PF | F44: PF | G44: PF | H44: PF | I44: PF
A45: 2019/06/02 16:00:00 | B45: -0.245 | C45: 0.223 | D45: 34.803 | E45: PF | F45: PF | G45: PF | H45: PF | I45: PF
A46: 2019/06/02 17:00:00 | B46: -0.302 | C46: 0.177 | D46: 34.234 | E46: PF | F46: PF | G46: PF | H46: PF | I46: PF
A47: 2019/06/02 18:00:00 | B47: -0.317 | C47: 0.157 | D47: 32.413 | E47: PF | F47: PF | G47: PF | H47: PF | I47: PF
A48: 2019/06/02 19:00:00 | B48: -0.379 | C48: 0.18 | D48: 26.812 | E48: PF | F48: PF | G48: PF | H48: PF | I48: PF
A49: 2019/06/02 20:00:00 | B49: -0.41 | C49: 0.153 | D49: 23.743 | E49: PF | F49: PF | G49: PF | H49: PF | I49: PF
A50: 2019/06/02 21:00:00 | B50: -0.408 | C50: 0.186 | D50: 20.376 | E50: PF | F50: PF | G50: PF | H50: PF | I50: PF
A51: 2019/06/02 22:00:00 | B51: Z | C51: Z | D51: 18.235 | E51: PF | F51: PF | G51: PF | H51: PF | I51: PF
A52: 2019/06/02 23:00:00 | B52: -0.332 | C52: 0.517 | D52: 17.517 | E52: PF | F52: PF | G52: PF | H52: PF | I52: PF
A53: 2019/06/03 00:00:00 | B53: -0.364 | C53: 0.542 | D53: 19.819 | E53: PF | F53: PF | G53: PF | H53: PF | I53: PF
A54: 2019/06/03 01:00:00 | B54: -0.507 | C54: 0.286 | D54: 20.605 | E54: PF | F54: PF | G54: PF | H54: PF | I54: PF
A55: 2019/06/03 02:00:00 | B55: -0.51 | C55: 0.51 | D55: 21.395 | E55: PF | F55: PF | G55: PF | H55: PF | I55: PF
A56: 2019/06/03 03:00:00 | B56: -0.471 | C56: 0.876 | D56: 18.87 | E56: PF | F56: PF | G56: PF | H56: PF | I56: PF
A57: 2019/06/03 04:00:00 | B57: -0.491 | C57: 0.847 | D57: 14.684 | E57: PF | F57: PF | G57: PF | H57: PF | I57: PF
A58: 2019/06/03 05:00:00 | B58: -0.532 | C58: 0.465 | D58: 7.263 | E58: PF | F58: PF | G58: PF | H58: PF | I58: PF
A59: 2019/06/03 06:00:00 | B59: -0.52 | C59: 0.507 | D59: 5.782 | E59: PF | F59: PF | G59: PF | H59: PF | I59: PF
A60: 2019/06/03 07:00:00 | B60: -0.551 | C60: 0.75 | D60: 4.803 | E60: PF | F60: PF | G60: PF | H60: PF | I60: PF
A61: 2019/06/03 08:00:00 | B61: -0.45 | C61: 0.965 | D61: 4.354 | E61: PF | F61: PF | G61: PF | H61: PF | I61: PF
A62: 2019/06/03 09:00:00 | B62: -0.471 | C62: 0.744 | D62: 4.496 | E62: PF | F62: PF | G62: PF | H62: PF | I62: PF
A63: 2019/06/03 10:00:00 | B63: -0.388 | C63: 0.434 | D63: 5.97 | E63: PF | F63: PF | G63: PF | H63: PF | I63: PF
A64: 2019/06/03 11:00:00 | B64: -0.327 | C64: 0.327 | D64: 6.726 | E64: PF | F64: PF | G64: PF | H64: PF | I64: PF
A65: 2019/06/03 12:00:00 | B65: -0.285 | C65: 0.186 | D65: 8.378 | E65: PF | F65: PF | G65: PF | H65: PF | I65: PF
A66: 2019/06/03 13:00:00 | B66: -0.428 | C66: 0.067 | D66: 7.674 | E66: PF | F66: PF | G66: PF | H66: PF | I66: PF
A67: 2019/06/03 14:00:00 | B67: -0.367 | C67: 0.093 | D67: 11.783 | E67: PF | F67: PF | G67: PF | H67: PF | I67: PF
A68: 2019/06/03 15:00:00 | B68: -0.27 | C68: 0.101 | D68: 14.508 | E68: PF | F68: PF | G68: PF | H68: PF | I68: PF
A69: 2019/06/03 16:00:00 | B69: -0.085 | C69: 0.089 | D69: 20.156 | E69: PF | F69: PF | G69: PF | H69: PF | I69: PF
A70: 2019/06/03 17:00:00 | B70: 0.092 | C70: 0.178 | D70: 23.065 | E70: PF | F70: PF | G70: PF | H70: PF | I70: PF
A71: 2019/06/03 18:00:00 | B71: -0.257 | C71: 0.044 | D71: 29.551 | E71: PF | F71: PF | G71: PF | H71: PF | I71: PF
A72: 2019/06/03 19:00:00 | B72: -0.197 | C72: -0.011 | D72: 27.035 | E72: PF | F72: PF | G72: PF | H72: PF | I72: PF
A73: 2019/06/03 20:00:00 | B73: -0.291 | C73: -0.015 | D73: 25.416 | E73: PF | F73: PF | G73: PF | H73: PF | I73: PF
A74: 2019/06/03 21:00:00 | B74: Z | C74: Z | D74: 41.942 | E74: PF | F74: PF | G74: PF | H74: PF | I74: PF
A75: 2019/06/03 22:00:00 | B75: -0.379 | C75: 0.193 | D75: 36.742 | E75: PF | F75: PF | G75: PF | H75: PF | I75: PF
A76: 2019/06/03 23:00:00 | B76: -0.413 | C76: 0.133 | D76: 36.651 | E76: PF | F76: PF | G76: PF | H76: PF | I76: PF
A77: 2019/06/04 00:00:00 | B77: -0.393 | C77: 0.117 | D77: 31.817 | E77: PF | F77: PF | G77: PF | H77: PF | I77: PF
A78: 2019/06/04 01:00:00 | B78: -0.37 | C78: 0.111 | D78: 23.897 | E78: PF | F78: PF | G78: PF | H78: PF | I78: PF
A79: 2019/06/04 02:00:00 | B79: -0.257 | C79: 0.201 | D79: 18.421 | E79: PF | F79: PF | G79: PF | H79: PF | I79: PF
A80: 2019/06/04 03:00:00 | B80: -0.269 | C80: 0.271 | D80: 11.2 | E80: PF | F80: PF | G80: PF | H80: PF | I80: PF
A81: 2019/06/04 04:00:00 | B81: -0.322 | C81: 0.282 | D81: 2.124 | E81: PF | F81: PF | G81: PF | H81: PF | I81: PF
A82: 2019/06/04 05:00:00 | B82: -0.328 | C82: 0.44 | D82: 2.343 | E82: PF | F82: PF | G82: PF | H82: PF | I82: PF
A83: 2019/06/04 06:00:00 | B83: -0.291 | C83: 0.598 | D83: 3.314 | E83: PF | F83: PF | G83: PF | H83: PF | I83: PF
A84: 2019/06/04 07:00:00 | B84: -0.18 | C84: 0.69 | D84: 2.955 | E84: PF | F84: PF | G84: PF | H84: PF | I84: PF
A85: 2019/06/04 08:00:00 | B85: -0.179 | C85: 0.928 | D85: 2.416 | E85: PF | F85: PF | G85: PF | H85: PF | I85: PF
A86: 2019/06/04 09:00:00 | B86: -0.116 | C86: 0.497 | D86: 1.286 | E86: PF | F86: PF | G86: PF | H86: PF | I86: PF
A87: 2019/06/04 10:00:00 | B87: -0.208 | C87: 0.18 | D87: 1.293 | E87: PF | F87: PF | G87: PF | H87: PF | I87: PF
A88: 2019/06/04 11:00:00 | B88: -0.203 | C88: 0.234 | D88: 1.148 | E88: PF | F88: PF | G88: PF | H88: PF | I88: PF
A89: 2019/06/04 12:00:00 | B89: -0.179 | C89: 0.086 | D89: 1.147 | E89: PF | F89: PF | G89: PF | H89: PF | I89: PF
A90: 2019/06/04 13:00:00 | B90: -0.17 | C90: 0.124 | D90: 1.631 | E90: PF | F90: PF | G90: PF | H90: PF | I90: PF
A91: 2019/06/04 14:00:00 | B91: -0.215 | C91: 0.214 | D91: 1.899 | E91: PF | F91: PF | G91: PF | H91: PF | I91: PF
A92: 2019/06/04 15:00:00 | B92: -0.162 | C92: 0.199 | D92: 2.641 | E92: PF | F92: PF | G92: PF | H92: PF | I92: PF
A93: 2019/06/04 16:00:00 | B93: -0.205 | C93: 0.238 | D93: 4.423 | E93: PF | F93: PF | G93: PF | H93: PF | I93: PF
A94: 2019/06/04 17:00:00 | B94: -0.157 | C94: 0.209 | D94: 4.541 | E94: PF | F94: PF | G94: PF | H94: PF | I94: PF
A95: 2019/06/04 18:00:00 | B95: -0.179 | C95: 0.199 | D95: 4.915 | E95: PF | F95: PF | G95: PF | H95: PF | I95: PF
A96: 2019/06/04 19:00:00 | B96: -0.234 | C96: 0.211 | D96: 5.187 | E96: PF | F96: PF | G96: PF | H96: PF | I96: PF
A97: 2019/06/04 20:00:00 | B97: Z | C97: Z | D97: 5.24 | E97: PF | F97: PF | G97: PF | H97: PF | I97: PF
A98: 2019/06/04 21:00:00 | B98: -0.186 | C98: 0.276 | D98: 5.889 | E98: PF | F98: PF | G98: PF | H98: PF | I98: PF
A99: 2019/06/04 22:00:00 | B99: -0.219 | C99: 0.251 | D99: 3.25 | E99: PF | F99: PF | G99: PF | H99: PF | I99: PF
A100: 2019/06/04 23:00:00 | B100: -0.198 | C100: 0.261 | D100: 2.33 | E100: PF | F100: PF | G100: PF | H100: PF | I100: PF
A101: 2019/06/05 00:00:00 | B101: -0.167 | C101: 0.287 | D101: 1.509 | E101: PF | F101: PF | G101: PF | H101: PF | I101: PF
A102: 2019/06/05 01:00:00 | B102: -0.141 | C102: 0.293 | D102: 1.757 | E102: PF | F102: PF | G102: PF | H102: PF | I102: PF
A103: 2019/06/05 02:00:00 | B103: -0.166 | C103: 0.434 | D103: 1.758 | E103: PF | F103: PF | G103: PF | H103: PF | I103: PF
A104: 2019/06/05 03:00:00 | B104: -0.172 | C104: 0.472 | D104: 1.801 | E104: 0.01 | F104: 9.88 | G104: 78.833 | H104: 2.088 | I104: 45.4
A105: 2019/06/05 04:00:00 | B105: -0.203 | C105: 0.341 | D105: 1.753 | E105: 0 | F105: 9.601 | G105: 78.878 | H105: 1.76 | I105: 41.626
A106: 2019/06/05 05:00:00 | B106: -0.146 | C106: 0.391 | D106: 2.283 | E106: 0 | F106: 8.615 | G106: 80.24 | H106: 1.292 | I106: 326.626
A107: 2019/06/05 06:00:00 | B107: -0.189 | C107: 1.043 | D107: 3.875 | E107: 0 | F107: 7.088 | G107: 84.392 | H107: 1.637 | I107: 310.77
A108: 2019/06/05 07:00:00 | B108: -0.132 | C108: 0.988 | D108: 3.933 | E108: 0 | F108: 7.758 | G108: 84.486 | H108: 1.424 | I108: 303.754
A109: 2019/06/05 08:00:00 | B109: 0.018 | C109: 0.858 | D109: 2.634 | E109: 0 | F109: 10.661 | G109: 70.788 | H109: 1.08 | I109: 326.201
A110: 2019/06/05 09:00:00 | B110: -0.156 | C110: 0.37 | D110: 0.99 | E110: 0 | F110: 12.71 | G110: 49.932 | H110: 0.843 | I110: 355.948
A111: 2019/06/05 10:00:00 | B111: 0.023 | C111: 0.29 | D111: 1.038 | E111: 0 | F111: 16.215 | G111: 45.939 | H111: 1.482 | I111: 296.496
A112: 2019/06/05 11:00:00 | B112: 0.001 | C112: 0.171 | D112: 1.346 | E112: 0 | F112: 17.788 | G112: 37.745 | H112: 1.418 | I112: 311.284
A113: 2019/06/05 12:00:00 | B113: -0.09 | C113: 0.067 | D113: 1.75 | E113: 0 | F113: 18.913 | G113: 25.121 | H113: 1.037 | I113: 334.003
A114: 2019/06/05 13:00:00 | B114: -0.04 | C114: -0.008 | D114: 2.789 | E114: 0 | F114: 20.205 | G114: 22.217 | H114: 1.553 | I114: 303.532
A115: 2019/06/05 14:00:00 | B115: -0.1 | C115: -0.004 | D115: 4.946 | E115: 0 | F115: 21.254 | G115: 20.646 | H115: 1.025 | I115: 285.204
A116: 2019/06/05 15:00:00 | B116: -0.058 | C116: 0.066 | D116: 7.33 | E116: 0 | F116: 22.191 | G116: 19.931 | H116: 0.505 | I116: 270.519
A117: 2019/06/05 16:00:00 | B117: -0.149 | C117: 0.071 | D117: 9.376 | E117: 0 | F117: 22.202 | G117: 18.368 | H117: 2.132 | I117: 233.688
A118: 2019/06/05 17:00:00 | B118: -0.066 | C118: 0.015 | D118: 11.006 | E118: 0 | F118: 22.532 | G118: 19.567 | H118: 1.868 | I118: 240.131
A119: 2019/06/05 18:00:00 | B119: -0.106 | C119: -0.006 | D119: 9.163 | E119: 0 | F119: 22.649 | G119: 20.423 | H119: 3.142 | I119: 203.491
A120: 2019/06/05 19:00:00 | B120: Z | C120: Z | D120: 7.82 | E120: 0 | F120: 22.63 | G120: 21.281 | H120: 2.208 | I120: 202.219
A121: 2019/06/05 20:00:00 | B121: -0.186 | C121: -0.009 | D121: 5.428 | E121: 0 | F121: 20.113 | G121: 20.344 | H121: 1.524 | I121: 181.765
A122: 2019/06/05 21:00:00 | B122: -0.162 | C122: 0.066 | D122: 7.451 | E122: 0 | F122: 20.567 | G122: 26.985 | H122: 1.822 | I122: 122.851
A123: 2019/06/05 22:00:00 | B123: -0.168 | C123: 0.064 | D123: 3.888 | E123: 0 | F123: 17.329 | G123: 36.347 | H123: 2.015 | I123: 103.989
A124: 2019/06/05 23:00:00 | B124: -0.109 | C124: 0.014 | D124: 2.692 | E124: 0 | F124: 16.374 | G124: 36.051 | H124: 1.393 | I124: 31.138
A125: 2019/06/06 00:00:00 | B125: -0.084 | C125: 0.241 | D125: 1.323 | E125: 0 | F125: 17.141 | G125: 35.17 | H125: 4.403 | I125: 52.686
A126: 2019/06/06 01:00:00 | B126: -0.147 | C126: 0.364 | D126: 1.281 | E126: 0 | F126: 16.581 | G126: 34.918 | H126: 5.337 | I126: 72.623
A127: 2019/06/06 02:00:00 | B127: -0.048 | C127: 0.192 | D127: 1.395 | E127: 0 | F127: 15.904 | G127: 33.98 | H127: 5.376 | I127: 88.368
A128: 2019/06/06 03:00:00 | B128: -0.129 | C128: 0.067 | D128: 1.32 | E128: 0 | F128: 15.3 | G128: 33.397 | H128: 4.733 | I128: 109.51
A129: 2019/06/06 04:00:00 | B129: -0.103 | C129: 0.068 | D129: 1.403 | E129: 0 | F129: 13.872 | G129: 37.663 | H129: 3.957 | I129: 128.704
A130: 2019/06/06 05:00:00 | B130: -0.175 | C130: 0.227 | D130: 2.772 | E130: 0 | F130: 12.447 | G130: 41.682 | H130: 2.624 | I130: 158.334
A131: 2019/06/06 06:00:00 | B131: -0.128 | C131: 0.646 | D131: 3.897 | E131: 0 | F131: 10.535 | G131: 50.131 | H131: 1.869 | I131: 219.9
A132: 2019/06/06 07:00:00 | B132: -0.13 | C132: 0.202 | D132: 4.072 | E132: 0 | F132: 13.455 | G132: 47.345 | H132: 4.088 | I132: 225.943
A133: 2019/06/06 08:00:00 | B133: -0.018 | C133: 0.065 | D133: 3.979 | E133: 0 | F133: 14.593 | G133: 46.124 | H133: 5.703 | I133: 219.671
A134: 2019/06/06 09:00:00 | B134: 0.029 | C134: 0.152 | D134: 4.626 | E134: 0 | F134: 15.429 | G134: 44.118 | H134: 5.668 | I134: 226.548
A135: 2019/06/06 10:00:00 | B135: -0.041 | C135: 0.026 | D135: 2.913 | E135: 0 | F135: 19.049 | G135: 36.48 | H135: 5.893 | I135: 244.748
A136: 2019/06/06 11:00:00 | B136: -0.085 | C136: 0.024 | D136: 2.84 | E136: 0 | F136: 21.628 | G136: 31.396 | H136: 6.872 | I136: 260.985
A137: 2019/06/06 12:00:00 | B137: -0.17 | C137: 0.033 | D137: 3.463 | E137: 0 | F137: 22.734 | G137: 28.857 | H137: 5.879 | I137: 264.173
A138: 2019/06/06 13:00:00 | B138: -0.143 | C138: -0.013 | D138: 6.226 | E138: 0 | F138: 23.861 | G138: 26.643 | H138: 4.745 | I138: 250.82
A139: 2019/06/06 14:00:00 | B139: -0.151 | C139: 0.011 | D139: 9.186 | E139: 0 | F139: 24.133 | G139: 24.571 | H139: 4.966 | I139: 240.705
A140: 2019/06/06 15:00:00 | B140: -0.141 | C140: -0.013 | D140: 11.036 | E140: 0 | F140: 23.492 | G140: 24.962 | H140: 5.042 | I140: 225.02
A141: 2019/06/06 16:00:00 | B141: -0.086 | C141: -0.007 | D141: 10.975 | E141: 0 | F141: 23.76 | G141: 24.279 | H141: 4.633 | I141: 225.468
A142: 2019/06/06 17:00:00 | B142: -0.087 | C142: -0.054 | D142: 10.751 | E142: 0 | F142: 24.023 | G142: 23.597 | H142: 4.105 | I142: 229.523
A143: 2019/06/06 18:00:00 | B143: Z | C143: Z | D143: 10.594 | E143: 0 | F143: 24.463 | G143: 22.678 | H143: 3.017 | I143: 256.459
A144: 2019/06/06 19:00:00 | B144: 0.054 | C144: 0.064 | D144: 9.368 | E144: 0 | F144: 24.058 | G144: 23.399 | H144: 2.5 | I144: 262.571
A145: 2019/06/06 20:00:00 | B145: 0.075 | C145: 0.039 | D145: 10.066 | E145: 0 | F145: 23.035 | G145: 26.707 | H145: 1.824 | I145: 322.137
A146: 2019/06/06 21:00:00 | B146: 0.006 | C146: 0.097 | D146: 8.011 | E146: 0 | F146: 20.532 | G146: 32.737 | H146: 0.744 | I146: 349.81
A147: 2019/06/06 22:00:00 | B147: 0.011 | C147: 0.074 | D147: 5.817 | E147: 0 | F147: 18.664 | G147: 39.084 | H147: 0.765 | I147: 6.652
A148: 2019/06/06 23:00:00 | B148: 0.034 | C148: 0.116 | D148: 4.734 | E148: 0 | F148: 17.584 | G148: 44.462 | H148: 1.201 | I148: 28.581
A149: 2019/06/07 00:00:00 | B149: -0.01 | C149: 0.18 | D149: 4.427 | E149: 0 | F149: 16.131 | G149: 52.963 | H149: 1.511 | I149: 353.825
A150: 2019/06/07 01:00:00 | B150: -0.103 | C150: 0.214 | D150: 4.023 | E150: 0 | F150: 14.535 | G150: 60.735 | H150: 1.852 | I150: 10.378
A151: 2019/06/07 02:00:00 | B151: -0.051 | C151: 0.247 | D151: 4.221 | E151: 0.3 | F151: 13.498 | G151: 68.005 | H151: 1.999 | I151: 49.812
A152: 2019/06/07 03:00:00 | B152: -0.102 | C152: 0.601 | D152: 4.593 | E152: 0.25 | F152: 12.456 | G152: 74.409 | H152: 1.274 | I152: 33.683
A153: 2019/06/07 04:00:00 | B153: -0.077 | C153: 0.459 | D153: 4.509 | E153: 0.04 | F153: 11.553 | G153: 77.506 | H153: 1.067 | I153: 347.652
A154: 2019/06/07 05:00:00 | B154: -0.092 | C154: 0.456 | D154: 4.139 | E154: 0 | F154: 10.784 | G154: 79.318 | H154: 1.561 | I154: 3.076
A155: 2019/06/07 06:00:00 | B155: -0.112 | C155: 0.45 | D155: 5.061 | E155: 0 | F155: 9.688 | G155: 82.421 | H155: 1.55 | I155: 8.832
A156: 2019/06/07 07:00:00 | B156: -0.022 | C156: 0.474 | D156: 5.767 | E156: 0 | F156: 9.433 | G156: 83.706 | H156: 1.32 | I156: 323.857
A157: 2019/06/07 08:00:00 | B157: -0.058 | C157: 0.509 | D157: 8.838 | E157: 0 | F157: 11.168 | G157: 80.387 | H157: 2.03 | I157: 309.327
A158: 2019/06/07 09:00:00 | B158: -0.058 | C158: 0.565 | D158: 9.338 | E158: 0 | F158: 11.013 | G158: 80.594 | H158: 3.451 | I158: 290.941
A159: 2019/06/07 10:00:00 | B159: -0.065 | C159: 0.597 | D159: AF | E159: 0 | F159: 10.817 | G159: 78.191 | H159: 3.355 | I159: 293.402
A160: 2019/06/07 11:00:00 | B160: -0.095 | C160: 0.458 | D160: 11.686 | E160: 0 | F160: 9.691 | G160: 67.781 | H160: 4.542 | I160: 281.799
A161: 2019/06/07 12:00:00 | B161: -0.047 | C161: 0.613 | D161: AF | E161: 0 | F161: 10.672 | G161: 75.557 | H161: 4.589 | I161: 282.633
A162: 2019/06/07 13:00:00 | B162: -0.039 | C162: 0.626 | D162: AF | E162: 0 | F162: 11.5 | G162: 70.057 | H162: 5.87 | I162: 272.907
A163: 2019/06/07 14:00:00 | B163: -0.054 | C163: 0.565 | D163: AF | E163: 0 | F163: 11.47 | G163: 67.26 | H163: 6.186 | I163: 275.128
A164: 2019/06/07 15:00:00 | B164: -0.057 | C164: 0.426 | D164: 3.091 | E164: 0 | F164: 11.344 | G164: 65.287 | H164: 6.618 | I164: 273.875
A165: 2019/06/07 16:00:00 | B165: -0.039 | C165: 0.459 | D165: 1.219 | E165: 0 | F165: 12.478 | G165: 58.332 | H165: 5.824 | I165: 286.88
A166: 2019/06/07 17:00:00 | B166: Z | C166: Z | D166: 12.269 | E166: 0 | F166: 12.521 | G166: 54.336 | H166: 5.518 | I166: 288.518
A167: 2019/06/07 18:00:00 | B167: -0.016 | C167: 0.307 | D167: 3.162 | E167: 0 | F167: 11.088 | G167: 53.883 | H167: 6.768 | I167: 282.001
A168: 2019/06/07 19:00:00 | B168: -0.059 | C168: 0.243 | D168: 0.122 | E168: 0 | F168: 9.774 | G168: 53.108 | H168: 7.121 | I168: 281.136
A169: 2019/06/07 20:00:00 | B169: -0.1 | C169: 0.274 | D169: 0.121 | E169: 0 | F169: 7.776 | G169: 57.938 | H169: 6.766 | I169: 283.342
A170: 2019/06/07 21:00:00 | B170: -0.114 | C170: 0.299 | D170: 0.11 | E170: 0 | F170: 5.29 | G170: 72.998 | H170: 5.004 | I170: 293.428
A171: 2019/06/07 22:00:00 | B171: -0.107 | C171: 0.311 | D171: 0.11 | E171: 0 | F171: 4.146 | G171: 75.371 | H171: 4.146 | I171: 295.347
A172: 2019/06/07 23:00:00 | B172: -0.035 | C172: 0.286 | D172: 0.111 | E172: 0 | F172: 3.125 | G172: 76.213 | H172: 3.562 | I172: 299.623
A173: 2019/06/08 00:00:00 | B173: -0.062 | C173: 0.351 | D173: 0.207 | E173: 0 | F173: 2.971 | G173: 77.393 | H173: 3.375 | I173: 306.835
A174: 2019/06/08 01:00:00 | B174: -0.044 | C174: 0.243 | D174: 0.167 | E174: 0 | F174: 2.971 | G174: 81.225 | H174: 4.322 | I174: 316.852
A175: 2019/06/08 02:00:00 | B175: -0.043 | C175: 0.25 | D175: 0.682 | E175: 0 | F175: 2.983 | G175: 77.918 | H175: 3.103 | I175: 317.359
A176: 2019/06/08 03:00:00 | B176: -0.032 | C176: 0.221 | D176: 25.212 | E176: 0 | F176: 3.816 | G176: 77.224 | H176: 3.202 | I176: 305.429
A177: 2019/06/08 04:00:00 | B177: -0.057 | C177: 0.275 | D177: 1.757 | E177: 0 | F177: 3.231 | G177: 80.242 | H177: 3.561 | I177: 296.025
A178: 2019/06/08 05:00:00 | B178: -0.008 | C178: 0.286 | D178: 1.717 | E178: 0 | F178: 3.987 | G178: 78.034 | H178: 3.413 | I178: 300.736
A179: 2019/06/08 06:00:00 | B179: 0.01 | C179: 0.266 | D179: 0.837 | E179: 0 | F179: 4.016 | G179: 77.16 | H179: 2.593 | I179: 308.576
A180: 2019/06/08 07:00:00 | B180: 0.038 | C180: 0.298 | D180: 5.19 | E180: 0 | F180: 4.911 | G180: 74.624 | H180: 2.56 | I180: 306.761
A181: 2019/06/08 08:00:00 | B181: 0.036 | C181: 0.285 | D181: 2.929 | E181: 0 | F181: 6.267 | G181: 55.477 | H181: 2.755 | I181: 320.168
A182: 2019/06/08 09:00:00 | B182: 0.068 | C182: 0.154 | D182: 3.66 | E182: 0 | F182: 8.613 | G182: 54.717 | H182: 2.885 | I182: 324.342
A183: 2019/06/08 10:00:00 | B183: 0.035 | C183: 0.123 | D183: 0.276 | E183: 0 | F183: 8.764 | G183: 47.226 | H183: 3.535 | I183: 321.084
A184: 2019/06/08 11:00:00 | B184: -0.017 | C184: 0.164 | D184: 0.179 | E184: 0 | F184: 9.798 | G184: 42.579 | H184: 3.668 | I184: 321.148
A185: 2019/06/08 12:00:00 | B185: -0.018 | C185: 0.165 | D185: 0.108 | E185: 0 | F185: 10.559 | G185: 35.428 | H185: 3.098 | I185: 323.918
A186: 2019/06/08 13:00:00 | B186: 0.009 | C186: 0.132 | D186: 12.551 | E186: 0 | F186: 12.266 | G186: 35.365 | H186: 3.507 | I186: 325.681
A187: 2019/06/08 14:00:00 | B187: 0.048 | C187: 0.093 | D187: 1.926 | E187: 0 | F187: 13.098 | G187: 34.498 | H187: 3.557 | I187: 313.651
A188: 2019/06/08 15:00:00 | B188: 0.005 | C188: 0.138 | D188: 2.679 | E188: 0 | F188: 13.373 | G188: 32.333 | H188: 3.412 | I188: 318.816
A189: 2019/06/08 16:00:00 | B189: Z | C189: Z | D189: 3.817 | E189: 0 | F189: 14.002 | G189: 30.716 | H189: 3.594 | I189: 318.914
A190: 2019/06/08 17:00:00 | B190: -0.015 | C190: 0.177 | D190: 4.767 | E190: 0 | F190: 14.423 | G190: 31.23 | H190: 3.243 | I190: 323.234
A191: 2019/06/08 18:00:00 | B191: 0.007 | C191: 0.111 | D191: 4.026 | E191: 0 | F191: 14.931 | G191: 29.316 | H191: 3.41 | I191: 316.815
A192: 2019/06/08 19:00:00 | B192: -0.013 | C192: 0.094 | D192: 4.095 | E192: 0 | F192: 14.628 | G192: 30.097 | H192: 2.306 | I192: 333.778
A193: 2019/06/08 20:00:00 | B193: -0.011 | C193: 0.059 | D193: 4.686 | E193: 0 | F193: 13.946 | G193: 32.544 | H193: 2.039 | I193: 329.419
A194: 2019/06/08 21:00:00 | B194: -0.019 | C194: 0.054 | D194: 3.851 | E194: 0 | F194: 13.027 | G194: 34.833 | H194: 1.128 | I194: 326.094
A195: 2019/06/08 22:00:00 | B195: 0.011 | C195: 0.127 | D195: 3.445 | E195: 0 | F195: 11.213 | G195: 39.484 | H195: 0.602 | I195: 314.131
A196: 2019/06/08 23:00:00 | B196: -0.057 | C196: 0.14 | D196: 4.139 | E196: 0.01 | F196: 10.409 | G196: 49.84 | H196: 2.236 | I196: 315.901
A197: 2019/06/09 00:00:00 | B197: -0.084 | C197: 0.076 | D197: 6.18 | E197: 0.44 | F197: 9.049 | G197: 71.889 | H197: 1.934 | I197: 308.987
A198: 2019/06/09 01:00:00 | B198: -0.029 | C198: 0.229 | D198: 5.041 | E198: 0 | F198: 8.21 | G198: 77.513 | H198: 1.371 | I198: 313.834
A199: 2019/06/09 02:00:00 | B199: -0.046 | C199: 0.327 | D199: 6.095 | E199: 0 | F199: 7.254 | G199: 80.919 | H199: 1.229 | I199: 296.765
A200: 2019/06/09 03:00:00 | B200: -0.098 | C200: 0.266 | D200: 34.19 | E200: 0 | F200: 5.085 | G200: 83.109 | H200: 1.184 | I200: 298.75
A201: 2019/06/09 04:00:00 | B201: -0.079 | C201: 0.358 | D201: 42.54 | E201: 0 | F201: 3.849 | G201: 83.485 | H201: 1.755 | I201: 287.759
... 532 more rows

Sheet Maidstone
A1: =Kerrobert!A1 -> Group: Global WYAMZ - Monthly Monthly: 01/2019 Type: AVG 1 Hr.
A3: Date & Time | B3: Maidstone | C3: Maidstone | D3: Maidstone | E3: Maidstone | F3: Maidstone | G3: Maidstone | H3: Maidstone | I3: Maidstone | J3: Maidstone | K3: Maidstone | L3: Maidstone
B4: SO2 | C4: NO | D4: NO2 | E4: NOX | F4: H2S | G4: PM25 | H4: PRECIP | I4: TEMPERAT | J4: RH | K4: WS | L4: WD
B5: ppb | C5: ppb | D5: ppb | E5: ppb | F5: ppb | G5: ug/m3(L) | H5: mm | I5: C° | J5: %RH | K5: m/s | L5: Deg
A6: 2019/06/01 01:00:00 | B6: -0.055 | C6: 0.029 | D6: 7.072 | E6: 7.099 | F6: 0.536 | G6: 12.294 | H6: 0 | I6: 6.589 | J6: 80.656 | K6: 0.154 | L6: 240.465 | M6: 3 | N6: A
A7: 2019/06/01 02:00:00 | B7: 0.016 | C7: 0.245 | D7: 7.784 | E7: 8.027 | F7: 1.043 | G7: 12.49 | H7: 0 | I7: 5.865 | J7: 85.985 | K7: 0.318 | L7: 277.027 | M7: 4 | N7: A
A8: 2019/06/01 03:00:00 | B8: -0.059 | C8: 0.392 | D8: 9.513 | E8: 9.902 | F8: 1.435 | G8: 12.691 | H8: 0 | I8: 5.207 | J8: 87.537 | K8: 0.315 | L8: 288.496 | M8: 4 | N8: A
A9: 2019/06/01 04:00:00 | B9: -0.036 | C9: 0.451 | D9: 10.067 | E9: 10.516 | F9: 2.18 | G9: 12.491 | H9: 0 | I9: 4.798 | J9: 87.741 | K9: 0.301 | L9: 281.064 | M9: 4 | N9: A
A10: 2019/06/01 05:00:00 | B10: -0.084 | C10: 0.502 | D10: 11.283 | E10: 11.783 | F10: 3.464 | G10: 11.978 | H10: 0 | I10: 4.819 | J10: 87.084 | K10: 0.226 | L10: 218.542 | M10: 3 | N10: A
A11: 2019/06/01 06:00:00 | B11: 0.037 | C11: 1.582 | D11: 10.974 | E11: 12.555 | F11: 3.432 | G11: 11.313 | H11: 0 | I11: 4.517 | J11: 87.418 | K11: 0.216 | L11: 277.405 | M11: 3 | N11: A
A12: 2019/06/01 07:00:00 | B12: -0.068 | C12: 3.262 | D12: 10.551 | E12: 13.812 | F12: 4.866 | G12: 9.91 | H12: 0 | I12: 5.988 | J12: 84.249 | K12: 0.693 | L12: 150.236 | M12: 3 | N12: A
A13: 2019/06/01 08:00:00 | B13: 0.227 | C13: 2.82 | D13: 6.809 | E13: 9.628 | F13: 3.19 | G13: 8.491 | H13: 0 | I13: 8.886 | J13: 75.098 | K13: 1.618 | L13: 126.355 | M13: A | N13: A
A14: 2019/06/01 09:00:00 | B14: 3.416 | C14: 2.106 | D14: 4.362 | E14: 6.467 | F14: 1.278 | G14: 7.652 | H14: 0 | I14: 11.738 | J14: 64.825 | K14: 1.923 | L14: 125.849 | M14: 2 | N14: A
A15: 2019/06/01 10:00:00 | B15: 4.012 | C15: 1.196 | D15: 2.914 | E15: 4.108 | F15: 0.408 | G15: 6.569 | H15: 0 | I15: 15.004 | J15: 52.091 | K15: 2.818 | L15: 142.086 | M15: 2 | N15: A
A16: 2019/06/01 11:00:00 | B16: 0.156 | C16: 0.767 | D16: 2.38 | E16: 3.145 | F16: 0.256 | G16: 6.251 | H16: 0 | I16: 17.619 | J16: 43.995 | K16: 3.239 | L16: 144.885 | M16: 2 | N16: A
A17: 2019/06/01 12:00:00 | B17: 0.078 | C17: 0.134 | D17: 1.123 | E17: 1.254 | F17: 0.025 | G17: 5.353 | H17: 0 | I17: 19.469 | J17: 35.074 | K17: 4.131 | L17: 155.235 | M17: 2 | N17: A
A18: 2019/06/01 13:00:00 | B18: 0.093 | C18: 0.147 | D18: 0.93 | E18: 1.076 | F18: -0.007 | G18: 5.005 | H18: 0 | I18: 21.139 | J18: 30.496 | K18: 3.579 | L18: 137.769 | M18: 2 | N18: A
A19: 2019/06/01 14:00:00 | B19: 0.202 | C19: 0.056 | D19: 0.902 | E19: 0.957 | F19: -0.108 | G19: 5.83 | H19: 0 | I19: 22.34 | J19: 28.602 | K19: 3.794 | L19: 142.311 | M19: 2 | N19: A
A20: 2019/06/01 15:00:00 | B20: 0.233 | C20: 0.093 | D20: 0.849 | E20: 0.941 | F20: -0.052 | G20: 6.491 | H20: 0 | I20: 23.157 | J20: 26.281 | K20: 3.992 | L20: 140.458 | M20: 2 | N20: A
A21: 2019/06/01 16:00:00 | B21: 0.155 | C21: 0.099 | D21: 0.916 | E21: 1.016 | F21: -0.058 | G21: 6.13 | H21: 0 | I21: 23.341 | J21: 25.264 | K21: 3.938 | L21: 138.242 | M21: 2 | N21: A
A22: 2019/06/01 17:00:00 | B22: 0.122 | C22: 0.148 | D22: 1.176 | E22: 1.323 | F22: -0.062 | G22: 6.611 | H22: 0 | I22: 23.831 | J22: 24.546 | K22: 4.003 | L22: 138.536 | M22: 2 | N22: A
A23: 2019/06/01 18:00:00 | B23: 0.099 | C23: 0.219 | D23: 1.224 | E23: 1.443 | F23: -0.125 | G23: 8.392 | H23: 0 | I23: 23.77 | J23: 24.723 | K23: 4.06 | L23: 139.316 | M23: 2 | N23: A
A24: 2019/06/01 19:00:00 | B24: 0.208 | C24: 0.18 | D24: 1.452 | E24: 1.632 | F24: -0.09 | G24: 11.39 | H24: 0 | I24: 23.403 | J24: 26.262 | K24: 3.595 | L24: 141.529 | M24: 2 | N24: A
A25: 2019/06/01 20:00:00 | B25: 0.836 | C25: 0.125 | D25: 1.577 | E25: 1.702 | F25: -0.151 | G25: 12.385 | H25: 0 | I25: 22.406 | J25: 27.518 | K25: 3.421 | L25: 133.173 | M25: 2 | N25: A
A26: 2019/06/01 21:00:00 | B26: 6.098 | C26: 0.087 | D26: 2.306 | E26: 2.393 | F26: -0.064 | G26: 11.918 | H26: 0 | I26: 20.519 | J26: 30.351 | K26: 3.093 | L26: 126.529 | M26: 2 | N26: A
A27: 2019/06/01 22:00:00 | B27: 7.22 | C27: 0.04 | D27: 2.787 | E27: 2.827 | F27: -0.173 | G27: 13.229 | H27: 0 | I27: 19.355 | J27: 31.285 | K27: 3.236 | L27: 128.821 | M27: 4 | N27: A
A28: 2019/06/01 23:00:00 | B28: Z | C28: Z | D28: Z | E28: Z | F28: Z | G28: 14.657 | H28: 0 | I28: 17.932 | J28: 32.808 | K28: 3.142 | L28: 127.673 | M28: 4 | N28: A
A29: 2019/06/02 00:00:00 | B29: 2.811 | C29: 0.073 | D29: 3.186 | E29: 3.26 | F29: 0.411 | G29: 11.432 | H29: 0 | I29: 16.447 | J29: 35.041 | K29: 3.386 | L29: 124.552 | M29: 4 | N29: A
A30: 2019/06/02 01:00:00 | B30: 5.582 | C30: 0.043 | D30: 2.942 | E30: 2.984 | F30: 0.136 | G30: 10.535 | H30: 0 | I30: 15.906 | J30: 36.274 | K30: 4.091 | L30: 137.742 | M30: 6 | N30: A
A31: 2019/06/02 02:00:00 | B31: 0.383 | C31: 0.075 | D31: 3.11 | E31: 3.185 | F31: 0.133 | G31: 10.313 | H31: 0 | I31: 15.05 | J31: 40.099 | K31: 4.692 | L31: 146.862 | M31: 6 | N31: A
A32: 2019/06/02 03:00:00 | B32: 0.022 | C32: 0.1 | D32: 2.768 | E32: 2.866 | F32: 0.309 | G32: 9.725 | H32: 0 | I32: 14.304 | J32: 42.601 | K32: 3.72 | L32: 142.24 | M32: 7 | N32: A
A33: 2019/06/02 04:00:00 | B33: 6.556 | C33: 0.156 | D33: 3.934 | E33: 4.089 | F33: 0.732 | G33: 10.094 | H33: 0 | I33: 13.233 | J33: 45.889 | K33: 3.454 | L33: 132.188 | M33: 9 | N33: A
A34: 2019/06/02 05:00:00 | B34: 4.604 | C34: 0.137 | D34: 3.753 | E34: 3.89 | F34: 0.824 | G34: 19.498 | H34: 0.08 | I34: 12.407 | J34: 50.6 | K34: 3.544 | L34: 132.703 | M34: 8 | N34: A
A35: 2019/06/02 06:00:00 | B35: 0.309 | C35: 0.2 | D35: 3.859 | E35: 4.057 | F35: 1.121 | G35: 16.16 | H35: 0 | I35: 11.901 | J35: 53.708 | K35: 3.598 | L35: 131.386 | M35: 9 | N35: A
A36: 2019/06/02 07:00:00 | B36: 5.091 | C36: 0.515 | D36: 4.305 | E36: 4.819 | F36: 1.363 | G36: 14.955 | H36: 0 | I36: 12.167 | J36: 55.412 | K36: 2.918 | L36: 135.198 | M36: A | N36: A
A37: 2019/06/02 08:00:00 | B37: 4.537 | C37: 0.903 | D37: 3.597 | E37: 4.498 | F37: 0.619 | G37: 19.329 | H37: 0 | I37: 12.612 | J37: 57.279 | K37: 2.274 | L37: 76.733 | M37: 19 | N37: A
A38: 2019/06/02 09:00:00 | B38: 0.56 | C38: 1.395 | D38: 3.244 | E38: 4.638 | F38: 0.321 | G38: 14.309 | H38: 0 | I38: 14.811 | J38: 51.089 | K38: 3.462 | L38: 112.823 | M38: 21 | N38: A
A39: 2019/06/02 10:00:00 | B39: 1.02 | C39: 1.245 | D39: 3.009 | E39: 4.254 | F39: 0.36 | G39: 15.416 | H39: 0 | I39: 17.049 | J39: 47.248 | K39: 2.383 | L39: 123.041 | M39: 19 | N39: A
A40: 2019/06/02 11:00:00 | B40: 2.597 | C40: 1.025 | D40: 3.079 | E40: 4.104 | F40: 0.317 | G40: 17.452 | H40: 0 | I40: 19.203 | J40: 43.194 | K40: 0.696 | L40: 114.539 | M40: 14 | N40: A
A41: 2019/06/02 12:00:00 | B41: 1.912 | C41: 0.561 | D41: 2.999 | E41: 3.559 | F41: 0.179 | G41: 22.066 | H41: 0 | I41: 20.767 | J41: 39.813 | K41: 1.397 | L41: 350.599 | M41: 11 | N41: A
A42: 2019/06/02 13:00:00 | B42: 0.962 | C42: 0.334 | D42: 2.854 | E42: 3.187 | F42: 0.161 | G42: 23.515 | H42: 0 | I42: 21.778 | J42: 38.251 | K42: 2.799 | L42: 356.291 | M42: 10 | N42: A
A43: 2019/06/02 14:00:00 | B43: 0.602 | C43: 0.286 | D43: 2.669 | E43: 2.953 | F43: 0.099 | G43: 23.142 | H43: 0 | I43: 22.539 | J43: 37.591 | K43: 2.97 | L43: 355.865 | M43: 10 | N43: A
A44: 2019/06/02 15:00:00 | B44: 0.589 | C44: 0.22 | D44: 2.429 | E44: 2.647 | F44: 0.196 | G44: 20.869 | H44: 0 | I44: 22.928 | J44: 37.974 | K44: 3.049 | L44: 345.24 | M44: 10 | N44: A
A45: 2019/06/02 16:00:00 | B45: 0.613 | C45: 0.229 | D45: 2.095 | E45: 2.323 | F45: 0.172 | G45: 19.84 | H45: 0 | I45: 22.575 | J45: 39.761 | K45: 3.885 | L45: 344.615 | M45: 9 | N45: A
A46: 2019/06/02 17:00:00 | B46: 0.413 | C46: 0.123 | D46: 1.714 | E46: 1.836 | F46: 0.163 | G46: 19.57 | H46: 0 | I46: 22.477 | J46: 39.11 | K46: 3.519 | L46: 358.893 | M46: 9 | N46: A
A47: 2019/06/02 18:00:00 | B47: 0.37 | C47: 0.167 | D47: 1.719 | E47: 1.884 | F47: 0.078 | G47: 20.698 | H47: 0 | I47: 22.432 | J47: 38.75 | K47: 3.097 | L47: 1.906 | M47: 9 | N47: A
A48: 2019/06/02 19:00:00 | B48: 0.406 | C48: 0.123 | D48: 1.696 | E48: 1.817 | F48: -0.041 | G48: 18.578 | H48: 0 | I48: 22.81 | J48: 37.899 | K48: 2.664 | L48: 17.276 | M48: 9 | N48: A
A49: 2019/06/02 20:00:00 | B49: 0.394 | C49: 0.059 | D49: 1.806 | E49: 1.862 | F49: 0.123 | G49: 18.477 | H49: 0 | I49: 22.129 | J49: 37.326 | K49: 1.769 | L49: 17.289 | M49: 9 | N49: A
A50: 2019/06/02 21:00:00 | B50: 0.326 | C50: 0.165 | D50: 3.258 | E50: 3.422 | F50: 0.17 | G50: 19.432 | H50: 0 | I50: 20.071 | J50: 45.426 | K50: 1.268 | L50: 7.233 | M50: 9 | N50: A
A51: 2019/06/02 22:00:00 | B51: Z | C51: Z | D51: Z | E51: Z | F51: Z | G51: 25.089 | H51: 0 | I51: 16.856 | J51: 56.867 | K51: 0.746 | L51: 342.739 | M51: 9 | N51: A
A52: 2019/06/02 23:00:00 | B52: 0.386 | C52: 0.262 | D52: 8.34 | E52: 8.6 | F52: 0.157 | G52: 30.189 | H52: 0 | I52: 14.31 | J52: 63.352 | K52: 1.382 | L52: 336.525 | M52: 4 | N52: A
A53: 2019/06/03 00:00:00 | B53: 0.313 | C53: 0.12 | D53: 8.987 | E53: 9.106 | F53: 0.223 | G53: 23.448 | H53: 0 | I53: 14.12 | J53: 60.715 | K53: 1.338 | L53: 342.174 | M53: 2 | N53: A
A54: 2019/06/03 01:00:00 | B54: 0.193 | C54: 0.19 | D54: 6.802 | E54: 6.992 | F54: 0.552 | G54: 22.891 | H54: 0 | I54: 11.307 | J54: 70.989 | K54: 0.218 | L54: 158.757 | M54: 2 | N54: A
A55: 2019/06/03 02:00:00 | B55: 0.164 | C55: 0.155 | D55: 8.276 | E55: 8.431 | F55: 1.107 | G55: 23.317 | H55: 0 | I55: 12.392 | J55: 69.386 | K55: 0.521 | L55: 144.852 | M55: 3 | N55: A
A56: 2019/06/03 03:00:00 | B56: 0.2 | C56: 0.274 | D56: 10.229 | E56: 10.504 | F56: 1.183 | G56: 22.301 | H56: 0.12 | I56: 12.155 | J56: 72.899 | K56: 0.556 | L56: 86.882 | M56: 3 | N56: A
A57: 2019/06/03 04:00:00 | B57: 0.07 | C57: 0.277 | D57: 10.261 | E57: 10.538 | F57: 0.987 | G57: 19.813 | H57: 0 | I57: 12.188 | J57: 73.651 | K57: 0.261 | L57: 32.369 | M57: 3 | N57: A
A58: 2019/06/03 05:00:00 | B58: 0.016 | C58: 0.329 | D58: 8.576 | E58: 8.905 | F58: 0.902 | G58: 18.318 | H58: 0 | I58: 11.766 | J58: 74.912 | K58: 1.26 | L58: 315.74 | M58: 3 | N58: A
A59: 2019/06/03 06:00:00 | B59: 0.113 | C59: 0.526 | D59: 8.039 | E59: 8.565 | F59: 1.16 | G59: 16.307 | H59: 0.04 | I59: 11.485 | J59: 75.895 | K59: 0.619 | L59: 324.31 | M59: A | N59: A
A60: 2019/06/03 07:00:00 | B60: 0.123 | C60: 0.834 | D60: 6.328 | E60: 7.163 | F60: 1.623 | G60: 17.593 | H60: 0 | I60: 12.359 | J60: 76.377 | K60: 0.576 | L60: 6.346 | M60: 4 | N60: A
A61: 2019/06/03 08:00:00 | B61: 0.139 | C61: 1.112 | D61: 5.372 | E61: 6.484 | F61: 1.14 | G61: 14.026 | H61: 0 | I61: 13.997 | J61: 68.435 | K61: 3.553 | L61: 97.581 | M61: 4 | N61: A
A62: 2019/06/03 09:00:00 | B62: 0.05 | C62: 0.819 | D62: 3.21 | E62: 4.03 | F62: 0.645 | G62: 10.129 | H62: 0 | I62: 15.812 | J62: 58.708 | K62: 3.712 | L62: 106.08 | M62: 3 | N62: A
A63: 2019/06/03 10:00:00 | B63: 0.162 | C63: 0.435 | D63: 2.803 | E63: 3.24 | F63: 0.241 | G63: 9.959 | H63: 0.02 | I63: 16.893 | J63: 55.787 | K63: 1.729 | L63: 91.55 | M63: 2 | N63: A
A64: 2019/06/03 11:00:00 | B64: 0.346 | C64: 0.404 | D64: 2.443 | E64: 2.848 | F64: 0.22 | G64: 10.454 | H64: 0.44 | I64: 16.75 | J64: 58.454 | K64: 4.112 | L64: 116.44 | M64: 2 | N64: A
A65: 2019/06/03 12:00:00 | B65: 0.359 | C65: 0.358 | D65: 1.896 | E65: 2.254 | F65: 0.248 | G65: 11.739 | H65: 0.01 | I65: 17.814 | J65: 55.486 | K65: 3.912 | L65: 116.792 | M65: 2 | N65: A
A66: 2019/06/03 13:00:00 | B66: 0.516 | C66: 0.338 | D66: 1.539 | E66: 1.879 | F66: 0.103 | G66: 10.814 | H66: 0 | I66: 21.314 | J66: 43.797 | K66: 3.324 | L66: 121.441 | M66: 2 | N66: A
A67: 2019/06/03 14:00:00 | B67: 0.744 | C67: 0.317 | D67: 1.781 | E67: 2.101 | F67: 0.055 | G67: 8.783 | H67: 0 | I67: 23.926 | J67: 34.565 | K67: 4.668 | L67: 128.867 | M67: 1 | N67: A
A68: 2019/06/03 15:00:00 | B68: 1.18 | C68: 0.276 | D68: 1.837 | E68: 2.114 | F68: 0.155 | G68: 7.379 | H68: 0 | I68: 24.346 | J68: 33.895 | K68: 3.113 | L68: 130.616 | M68: 1 | N68: A
A69: 2019/06/03 16:00:00 | B69: 1.054 | C69: 0.31 | D69: 1.838 | E69: 2.149 | F69: 0.204 | G69: 9.562 | H69: 0 | I69: 25.814 | J69: 32.036 | K69: 0.953 | L69: 132.046 | M69: 1 | N69: A
A70: 2019/06/03 17:00:00 | B70: 0.679 | C70: 0.305 | D70: 1.975 | E70: 2.283 | F70: -0.035 | G70: 9.154 | H70: 0 | I70: 26.517 | J70: 31.02 | K70: 1.459 | L70: 295.456 | M70: 1 | N70: A
A71: 2019/06/03 18:00:00 | B71: 0.409 | C71: 0.341 | D71: 1.974 | E71: 2.317 | F71: 0.056 | G71: 10.479 | H71: 0 | I71: 25.97 | J71: 32.835 | K71: 3.247 | L71: 304.32 | M71: 1 | N71: A
A72: 2019/06/03 19:00:00 | B72: 0.429 | C72: 0.283 | D72: 1.991 | E72: 2.277 | F72: -0.009 | G72: 15.348 | H72: 0 | I72: 24.287 | J72: 39.521 | K72: 5.572 | L72: 315.78 | M72: 1 | N72: A
A73: 2019/06/03 20:00:00 | B73: 0.429 | C73: 0.309 | D73: 1.407 | E73: 1.72 | F73: 0.024 | G73: 21.434 | H73: 0 | I73: 20.039 | J73: 47.659 | K73: 6.521 | L73: 319.905 | M73: 1 | N73: A
A74: 2019/06/03 21:00:00 | B74: Z | C74: Z | D74: Z | E74: Z | F74: Z | G74: 35.65 | H74: 0 | I74: 17.302 | J74: 50.48 | K74: 5.142 | L74: 326.765 | M74: 1 | N74: A
A75: 2019/06/03 22:00:00 | B75: 0.44 | C75: 0.258 | D75: 2.634 | E75: 2.897 | F75: 0.349 | G75: 33.375 | H75: 0 | I75: 15.348 | J75: 56.109 | K75: 3.591 | L75: 329.422 | M75: 2 | N75: A
A76: 2019/06/03 23:00:00 | B76: 0.366 | C76: 0.242 | D76: 2.042 | E76: 2.287 | F76: 0.324 | G76: 27.331 | H76: 0 | I76: 13.66 | J76: 59.632 | K76: 2.484 | L76: 318.007 | M76: 3 | N76: A
A77: 2019/06/04 00:00:00 | B77: 0.545 | C77: 0.312 | D77: 3.581 | E77: 3.897 | F77: 0.614 | G77: 32.725 | H77: 0 | I77: 11.336 | J77: 70.741 | K77: 0.912 | L77: 301.307 | M77: 3 | N77: A
A78: 2019/06/04 01:00:00 | B78: 0.406 | C78: 0.252 | D78: 3.666 | E78: 3.923 | F78: 0.601 | G78: 30.521 | H78: 0 | I78: 10.589 | J78: 71.565 | K78: 1.536 | L78: 280.774 | M78: 3 | N78: A
A79: 2019/06/04 02:00:00 | B79: 0.231 | C79: 0.275 | D79: 5.439 | E79: 5.718 | F79: 0.927 | G79: 34.109 | H79: 0 | I79: 9.125 | J79: 77.116 | K79: 1.485 | L79: 255.27 | M79: 3 | N79: A
A80: 2019/06/04 03:00:00 | B80: 0.188 | C80: 0.325 | D80: 6.302 | E80: 6.63 | F80: 0.961 | G80: 30.973 | H80: 0 | I80: 7.494 | J80: 78.265 | K80: 0.914 | L80: 275.411 | M80: 3 | N80: A
A81: 2019/06/04 04:00:00 | B81: 0.161 | C81: 0.255 | D81: 4.861 | E81: 5.118 | F81: 0.764 | G81: 18.789 | H81: 0 | I81: 6.199 | J81: 79.471 | K81: 0.804 | L81: 280.113 | M81: 3 | N81: A
A82: 2019/06/04 05:00:00 | B82: 0.241 | C82: 0.313 | D82: 5.153 | E82: 5.471 | F82: 1.926 | G82: 12.421 | H82: 0 | I82: 4.775 | J82: 81.75 | K82: 0.391 | L82: 200.981 | M82: A | N82: A
A83: 2019/06/04 06:00:00 | B83: 0.13 | C83: 0.762 | D83: 6.536 | E83: 7.302 | F83: 1.506 | G83: 10.628 | H83: 0 | I83: 5.824 | J83: 82.126 | K83: 0.699 | L83: 258.308 | M83: 3 | N83: A
A84: 2019/06/04 07:00:00 | B84: 0.238 | C84: 1.726 | D84: 5.773 | E84: 7.502 | F84: 1.378 | G84: 8.981 | H84: 0 | I84: 9.066 | J84: 71.131 | K84: 2.106 | L84: 260.6 | M84: 2 | N84: A
A85: 2019/06/04 08:00:00 | B85: 0.882 | C85: 2.279 | D85: 4.956 | E85: 7.239 | F85: 1.557 | G85: 13.431 | H85: 0 | I85: 11.875 | J85: 59.638 | K85: 2.368 | L85: 281.269 | M85: 2 | N85: A
A86: 2019/06/04 09:00:00 | B86: 1.02 | C86: 2.102 | D86: 3.658 | E86: 5.765 | F86: 1.171 | G86: 20.062 | H86: 0 | I86: 15.04 | J86: 47.674 | K86: 2.317 | L86: 274.134 | M86: 2 | N86: A
A87: 2019/06/04 10:00:00 | B87: 1.012 | C87: 1.235 | D87: 2.441 | E87: 3.681 | F87: 0.565 | G87: 25.65 | H87: 0 | I87: 17.265 | J87: 39.197 | K87: 2.997 | L87: 277.095 | M87: 2 | N87: A
A88: 2019/06/04 11:00:00 | B88: 0.628 | C88: 0.62 | D88: 1.401 | E88: 2.024 | F88: 0.213 | G88: 17.567 | H88: 0 | I88: 18.584 | J88: 30.96 | K88: 3.118 | L88: 275.116 | M88: 2 | N88: A
A89: 2019/06/04 12:00:00 | B89: 0.273 | C89: 0.469 | D89: 1.02 | E89: 1.495 | F89: 0.141 | G89: 23.372 | H89: 0 | I89: 19.804 | J89: 26.835 | K89: 3.734 | L89: 284.719 | M89: 2 | N89: A
A90: 2019/06/04 13:00:00 | B90: 0.311 | C90: 0.517 | D90: 1.199 | E90: 1.719 | F90: 0.079 | G90: 15.712 | H90: 0 | I90: 19.467 | J90: 28.434 | K90: 3.73 | L90: 288.401 | M90: 2 | N90: A
A91: 2019/06/04 14:00:00 | B91: 0.399 | C91: 0.38 | D91: 1.169 | E91: 1.552 | F91: 0.273 | G91: 13.88 | H91: 0 | I91: 19.611 | J91: 27.36 | K91: 3.942 | L91: 291.914 | M91: 2 | N91: A
A92: 2019/06/04 15:00:00 | B92: 0.406 | C92: 0.787 | D92: 1.202 | E92: 1.994 | F92: 0.101 | G92: 11.045 | H92: 0 | I92: 19.982 | J92: 26.397 | K92: 4.01 | L92: 290.663 | M92: 2 | N92: A
A93: 2019/06/04 16:00:00 | B93: 0.369 | C93: 0.841 | D93: 0.714 | E93: 1.559 | F93: 0.026 | G93: 15.115 | H93: 0 | I93: 20.831 | J93: 24.832 | K93: 3.234 | L93: 278.549 | M93: 2 | N93: A
A94: 2019/06/04 17:00:00 | B94: 0.462 | C94: 0.329 | D94: 0.839 | E94: 1.172 | F94: -0.013 | G94: 12.64 | H94: 0 | I94: 20.267 | J94: 26.749 | K94: 3.336 | L94: 292.676 | M94: 2 | N94: A
A95: 2019/06/04 18:00:00 | B95: 0.364 | C95: 0.594 | D95: 1.086 | E95: 1.685 | F95: 0.048 | G95: 13.283 | H95: 0 | I95: 20.488 | J95: 25.557 | K95: 2.622 | L95: 281.019 | M95: 2 | N95: A
A96: 2019/06/04 19:00:00 | B96: 0.361 | C96: 0.205 | D96: 1.094 | E96: 1.304 | F96: 0.132 | G96: 14.323 | H96: 0 | I96: 20.855 | J96: 25.358 | K96: 2.19 | L96: 281.877 | M96: 2 | N96: A
A97: 2019/06/04 20:00:00 | B97: Z | C97: Z | D97: Z | E97: Z | F97: Z | G97: 13.136 | H97: 0 | I97: 19.46 | J97: 29.235 | K97: 1.537 | L97: 284.417 | M97: 2 | N97: A
A98: 2019/06/04 21:00:00 | B98: 0.398 | C98: 0.046 | D98: 2.823 | E98: 2.873 | F98: 0.122 | G98: 9.166 | H98: 0.01 | I98: 18.045 | J98: 34.069 | K98: 1.127 | L98: 286.175 | M98: 2 | N98: A
A99: 2019/06/04 22:00:00 | B99: 0.162 | C99: 0.055 | D99: 1.599 | E99: 1.658 | F99: 0.044 | G99: 9.488 | H99: 0 | I99: 15.72 | J99: 40.546 | K99: 4.476 | L99: 333.002 | M99: 4 | N99: A
A100: 2019/06/04 23:00:00 | B100: 0.167 | C100: 0.053 | D100: 1.325 | E100: 1.382 | F100: 0.054 | G100: 8.825 | H100: 0.06 | I100: 14.217 | J100: 49.49 | K100: 4.539 | L100: 319.587 | M100: 4 | N100: A
A101: 2019/06/05 00:00:00 | B101: 0.069 | C101: 0.048 | D101: 1.396 | E101: 1.447 | F101: 0.03 | G101: 8.449 | H101: 0.42 | I101: 10.602 | J101: 75.2 | K101: 3.25 | L101: 330.357 | M101: 5 | N101: A
A102: 2019/06/05 01:00:00 | B102: -0.039 | C102: 0.074 | D102: 2.248 | E102: 2.325 | F102: 0.351 | G102: 8.181 | H102: 0.57 | I102: 9.761 | J102: 81.075 | K102: 0.369 | L102: 128.166 | M102: 5 | N102: A
A103: 2019/06/05 02:00:00 | B103: 0.058 | C103: 0.122 | D103: 4.49 | E103: 4.614 | F103: 0.596 | G103: 8.109 | H103: 0 | I103: 8.813 | J103: 84.709 | K103: 0.914 | L103: 221.581 | M103: 5 | N103: A
A104: 2019/06/05 03:00:00 | B104: 0.032 | C104: 0.121 | D104: 6.345 | E104: 6.468 | F104: 0.631 | G104: 8.072 | H104: 0 | I104: 8.676 | J104: 85.178 | K104: 0.967 | L104: 263.479 | M104: 5 | N104: A
A105: 2019/06/05 04:00:00 | B105: 0.027 | C105: 0.278 | D105: 6.829 | E105: 7.109 | F105: 0.773 | G105: 9.18 | H105: 0 | I105: 7.359 | J105: 86.713 | K105: 1.112 | L105: 327.897 | M105: A | N105: A
A106: 2019/06/05 05:00:00 | B106: -0.112 | C106: 0.591 | D106: 7.358 | E106: 7.951 | F106: 1.095 | G106: 9.83 | H106: 0 | I106: 6.336 | J106: 88.568 | K106: 0.687 | L106: 280.17 | M106: 4 | N106: A
A107: 2019/06/05 06:00:00 | B107: -0.048 | C107: 0.946 | D107: 7.263 | E107: 8.209 | F107: 1.484 | G107: 10.524 | H107: 0 | I107: 6.675 | J107: 88.403 | K107: 1.36 | L107: 334.603 | M107: 3 | N107: A
A108: 2019/06/05 07:00:00 | B108: 0.046 | C108: 1.244 | D108: 4.824 | E108: 6.07 | F108: 1.374 | G108: 7.701 | H108: 0 | I108: 8.841 | J108: 83.175 | K108: 1.871 | L108: 280.393 | M108: 2 | N108: A
A109: 2019/06/05 08:00:00 | B109: 0.177 | C109: 1.738 | D109: 4.378 | E109: 6.117 | F109: 1.33 | G109: 5.776 | H109: 0 | I109: 11.108 | J109: 74.389 | K109: 2.54 | L109: 291.789 | M109: 2 | N109: A
A110: 2019/06/05 09:00:00 | B110: 0.373 | C110: 2.078 | D110: 4.348 | E110: 6.426 | F110: 1.105 | G110: 5.007 | H110: 0 | I110: 12.848 | J110: 68.084 | K110: 1.544 | L110: 302.082 | M110: 1 | N110: A
A111: 2019/06/05 10:00:00 | B111: 0.995 | C111: 2.005 | D111: 4.102 | E111: 6.107 | F111: 0.987 | G111: 4.2 | H111: 0 | I111: 14.878 | J111: 59.297 | K111: 1.49 | L111: 284.989 | M111: 1 | N111: A
A112: 2019/06/05 11:00:00 | B112: 1.116 | C112: 1.325 | D112: 3.012 | E112: 4.337 | F112: 0.651 | G112: 3.593 | H112: 0 | I112: 16.885 | J112: 48.336 | K112: 1.377 | L112: 270.077 | M112: 1 | N112: A
A113: 2019/06/05 12:00:00 | B113: 0.544 | C113: 0.632 | D113: 1.715 | E113: 2.347 | F113: 0.218 | G113: 3.108 | H113: 0 | I113: 18.264 | J113: 37.358 | K113: 1.659 | L113: 289.954 | M113: 1 | N113: A
A114: 2019/06/05 13:00:00 | B114: 0.352 | C114: 0.428 | D114: 1.324 | E114: 1.752 | F114: 0.052 | G114: 3.05 | H114: 0 | I114: 19.257 | J114: 32.299 | K114: 2.17 | L114: 287.628 | M114: 1 | N114: A
A115: 2019/06/05 14:00:00 | B115: 0.191 | C115: 0.323 | D115: 1.144 | E115: 1.466 | F115: 0.078 | G115: 2.777 | H115: 0 | I115: 20.198 | J115: 29.466 | K115: 1.939 | L115: 286.867 | M115: 1 | N115: A
A116: 2019/06/05 15:00:00 | B116: 0.08 | C116: 0.284 | D116: 0.967 | E116: 1.251 | F116: -0.062 | G116: 2.474 | H116: 0 | I116: 20.704 | J116: 27.907 | K116: 1.994 | L116: 296.224 | M116: 1 | N116: A
A117: 2019/06/05 16:00:00 | B117: 0.147 | C117: 0.331 | D117: 1.045 | E117: 1.375 | F117: 0.078 | G117: 2.513 | H117: 0 | I117: 20.678 | J117: 29.017 | K117: 2.343 | L117: 293.427 | M117: 1 | N117: A
A118: 2019/06/05 17:00:00 | B118: 0.274 | C118: 0.223 | D118: 1.274 | E118: 1.496 | F118: -0.015 | G118: 2.624 | H118: 0 | I118: 20.123 | J118: 30.612 | K118: 2.216 | L118: 317.201 | M118: 1 | N118: A
A119: 2019/06/05 18:00:00 | B119: 0.328 | C119: 0.258 | D119: 1.203 | E119: 1.46 | F119: 0.048 | G119: 2.573 | H119: 0 | I119: 20.179 | J119: 30.673 | K119: 2.171 | L119: 314.382 | M119: 1 | N119: A
A120: 2019/06/05 19:00:00 | B120: Z | C120: Z | D120: Z | E120: Z | F120: Z | G120: 2.635 | H120: 0 | I120: 19.918 | J120: 31.219 | K120: 2.022 | L120: 345.702 | M120: 1 | N120: A
A121: 2019/06/05 20:00:00 | B121: 0.322 | C121: 0.346 | D121: 1.9 | E121: 2.244 | F121: 0.326 | G121: 2.482 | H121: 0 | I121: 19.429 | J121: 32.868 | K121: 1.928 | L121: 9.079 | M121: 1 | N121: A
A122: 2019/06/05 21:00:00 | B122: 0.288 | C122: 0.252 | D122: 1.729 | E122: 1.98 | F122: 0.309 | G122: 3.406 | H122: 0 | I122: 17.192 | J122: 40.807 | K122: 1.262 | L122: 0.385 | M122: 2 | N122: A
A123: 2019/06/05 22:00:00 | B123: 0.257 | C123: 0.273 | D123: 3.208 | E123: 3.478 | F123: 0.187 | G123: 4.529 | H123: 0 | I123: 14.693 | J123: 49.213 | K123: 0.966 | L123: 335.466 | M123: 3 | N123: A
A124: 2019/06/05 23:00:00 | B124: 0.285 | C124: 0.23 | D124: 5.673 | E124: 5.9 | F124: 0.368 | G124: 5.418 | H124: 0 | I124: 14.673 | J124: 48.895 | K124: 1.226 | L124: 343.959 | M124: 3 | N124: A
A125: 2019/06/06 00:00:00 | B125: 0.206 | C125: 0.178 | D125: 5.949 | E125: 6.125 | F125: 0.219 | G125: 6.242 | H125: 0.02 | I125: 14.068 | J125: 54.908 | K125: 0.477 | L125: 325.532 | M125: 3 | N125: A
A126: 2019/06/06 01:00:00 | B126: 0.175 | C126: 0.322 | D126: 7.466 | E126: 7.787 | F126: 0.872 | G126: 8.307 | H126: 0.13 | I126: 11.896 | J126: 73.285 | K126: 0.123 | L126: 152.095 | M126: 4 | N126: A
A127: 2019/06/06 02:00:00 | B127: 0.233 | C127: 0.309 | D127: 7.242 | E127: 7.549 | F127: 1.125 | G127: 7.194 | H127: 1.12 | I127: 13.182 | J127: 62.645 | K127: 1.694 | L127: 25.12 | M127: 5 | N127: A
A128: 2019/06/06 03:00:00 | B128: 0.44 | C128: 0.213 | D128: 5.461 | E128: 5.673 | F128: 0.921 | G128: 7.248 | H128: 0.31 | I128: 11.991 | J128: 72.561 | K128: 1.956 | L128: 47.536 | M128: A | N128: A
A129: 2019/06/06 04:00:00 | B129: 0.515 | C129: 0.158 | D129: 4.755 | E129: 4.913 | F129: 1.168 | G129: 6.935 | H129: 0 | I129: 11.804 | J129: 73.429 | K129: 3.349 | L129: 75.11 | M129: 5 | N129: A
A130: 2019/06/06 05:00:00 | B130: 0.383 | C130: 0.098 | D130: 3.528 | E130: 3.625 | F130: 1.061 | G130: 6.634 | H130: 0 | I130: 11.792 | J130: 71.364 | K130: 3.085 | L130: 65.511 | M130: 5 | N130: A
A131: 2019/06/06 06:00:00 | B131: 0.347 | C131: 0.185 | D131: 2.716 | E131: 2.9 | F131: 0.374 | G131: 5.908 | H131: 0 | I131: 12.048 | J131: 69.519 | K131: 2.671 | L131: 67.853 | M131: 4 | N131: A
A132: 2019/06/06 07:00:00 | B132: 0.526 | C132: 0.292 | D132: 2.505 | E132: 2.796 | F132: 0.787 | G132: 5.554 | H132: 0 | I132: 12.62 | J132: 67.043 | K132: 2.656 | L132: 66.85 | M132: 4 | N132: A
A133: 2019/06/06 08:00:00 | B133: 0.561 | C133: 0.319 | D133: 1.996 | E133: 2.314 | F133: 0.842 | G133: 4.786 | H133: 0 | I133: 13.849 | J133: 63.055 | K133: 3.362 | L133: 66.916 | M133: 3 | N133: A
A134: 2019/06/06 09:00:00 | B134: 0.392 | C134: 0.382 | D134: 1.696 | E134: 2.078 | F134: 0.698 | G134: 4.309 | H134: 0 | I134: 15.043 | J134: 58.375 | K134: 4.281 | L134: 60.641 | M134: 2 | N134: A
A135: 2019/06/06 10:00:00 | B135: 0.568 | C135: 0.343 | D135: 1.385 | E135: 1.727 | F135: 0.817 | G135: 3.739 | H135: 0 | I135: 16.348 | J135: 52.859 | K135: 4.451 | L135: 56.447 | M135: 2 | N135: A
A136: 2019/06/06 11:00:00 | B136: 0.594 | C136: 0.299 | D136: 1.353 | E136: 1.651 | F136: 0.63 | G136: 3.099 | H136: 0 | I136: 17.252 | J136: 49.698 | K136: 4.303 | L136: 60.864 | M136: 1 | N136: A
A137: 2019/06/06 12:00:00 | B137: 0.361 | C137: 0.357 | D137: 1.323 | E137: 1.679 | F137: 0.3 | G137: 2.906 | H137: 0 | I137: 18.16 | J137: 46.984 | K137: 4.068 | L137: 50.393 | M137: 1 | N137: A
A138: 2019/06/06 13:00:00 | B138: 0.489 | C138: 0.288 | D138: 1.297 | E138: 1.584 | F138: 0.356 | G138: 3.07 | H138: 0 | I138: 19.058 | J138: 45.229 | K138: 3.648 | L138: 37.379 | M138: 1 | N138: A
A139: 2019/06/06 14:00:00 | B139: 0.723 | C139: 0.218 | D139: 1.32 | E139: 1.537 | F139: 0.496 | G139: 3.21 | H139: 0 | I139: 19.781 | J139: 42.228 | K139: 2.801 | L139: 37.041 | M139: 2 | N139: A
A140: 2019/06/06 15:00:00 | B140: 0.826 | C140: 0.187 | D140: 1.431 | E140: 1.617 | F140: 0.567 | G140: 2.821 | H140: 0 | I140: 21.037 | J140: 39.757 | K140: 2.323 | L140: 47.442 | M140: 2 | N140: A
A141: 2019/06/06 16:00:00 | B141: 0.488 | C141: 0.139 | D141: 1.333 | E141: 1.472 | F141: 0.425 | G141: 2.288 | H141: 0 | I141: 21.49 | J141: 38.728 | K141: 2.968 | L141: 33.058 | M141: 2 | N141: A
A142: 2019/06/06 17:00:00 | B142: 0.729 | C142: 0.097 | D142: 1.382 | E142: 1.478 | F142: 0.678 | G142: 2.586 | H142: 0 | I142: 21.933 | J142: 37.558 | K142: 2.401 | L142: 20.865 | M142: 2 | N142: A
A143: 2019/06/06 18:00:00 | B143: Z | C143: Z | D143: Z | E143: Z | F143: Z | G143: 3.467 | H143: 0 | I143: 21.535 | J143: 37.275 | K143: 1.741 | L143: 16.477 | M143: 2 | N143: A
A144: 2019/06/06 19:00:00 | B144: 0.034 | C144: 0.183 | D144: 1.729 | E144: 1.911 | F144: 0.003 | G144: 4.709 | H144: 0 | I144: 21.421 | J144: 38.185 | K144: 2.942 | L144: 3.329 | M144: 2 | N144: A
A145: 2019/06/06 20:00:00 | B145: -0.172 | C145: 0.099 | D145: 0.981 | E145: 1.08 | F145: -0.221 | G145: 4.96 | H145: 0 | I145: 20.146 | J145: 41.002 | K145: 4.204 | L145: 13.47 | M145: 2 | N145: A
A146: 2019/06/06 21:00:00 | B146: 0.029 | C146: 0.055 | D146: 0.889 | E146: 0.943 | F146: -0.063 | G146: 6.101 | H146: 0 | I146: 17.972 | J146: 48.067 | K146: 3.841 | L146: 23.177 | M146: 2 | N146: A
A147: 2019/06/06 22:00:00 | B147: -0.032 | C147: 0.019 | D147: 1.413 | E147: 1.432 | F147: -0.015 | G147: 7.192 | H147: 0 | I147: 15.725 | J147: 53.588 | K147: 3.073 | L147: 9.165 | M147: 3 | N147: A
A148: 2019/06/06 23:00:00 | B148: 0.003 | C148: 0.064 | D148: 1.469 | E148: 1.533 | F148: 0.092 | G148: 7.076 | H148: 0 | I148: 13.93 | J148: 57.902 | K148: 2.669 | L148: 0.974 | M148: 4 | N148: A
A149: 2019/06/07 00:00:00 | B149: 0.035 | C149: 0.068 | D149: 1.54 | E149: 1.609 | F149: 0.329 | G149: 9.587 | H149: 0 | I149: 12.799 | J149: 62.987 | K149: 2.721 | L149: 2.241 | M149: 6 | N149: A
A150: 2019/06/07 01:00:00 | B150: 0.191 | C150: 0.115 | D150: 1.315 | E150: 1.431 | F150: 0.343 | G150: 6.603 | H150: 0 | I150: 12.02 | J150: 66.911 | K150: 2.409 | L150: 2.685 | M150: 7 | N150: A
A151: 2019/06/07 02:00:00 | B151: 0.157 | C151: 0.256 | D151: 1.752 | E151: 2.008 | F151: 0.293 | G151: 6.136 | H151: 0 | I151: 11.35 | J151: 70.992 | K151: 3.314 | L151: 348.742 | M151: A | N151: A
A152: 2019/06/07 03:00:00 | B152: 0.097 | C152: 0.118 | D152: 1.157 | E152: 1.275 | F152: 0.261 | G152: 6.17 | H152: 0 | I152: 11.009 | J152: 75.401 | K152: 2.609 | L152: 2.424 | M152: 7 | N152: A
A153: 2019/06/07 04:00:00 | B153: 0.335 | C153: 0.003 | D153: 0.858 | E153: 0.861 | F153: 0.39 | G153: 6.238 | H153: 0 | I153: 11.597 | J153: 76.539 | K153: 3.608 | L153: 15.388 | M153: 8 | N153: A
A154: 2019/06/07 05:00:00 | B154: 0.226 | C154: 0.12 | D154: 0.736 | E154: 0.857 | F154: 0.528 | G154: 6.285 | H154: 0.03 | I154: 11.573 | J154: 78.25 | K154: 3.253 | L154: 18.041 | M154: 8 | N154: A
A155: 2019/06/07 06:00:00 | B155: 0.26 | C155: 0.096 | D155: 0.768 | E155: 0.865 | F155: 0.293 | G155: 6.472 | H155: 0 | I155: 11.248 | J155: 80.523 | K155: 3.323 | L155: 15.908 | M155: 8 | N155: A
A156: 2019/06/07 07:00:00 | B156: 0.13 | C156: 0.169 | D156: 1.196 | E156: 1.366 | F156: 0.333 | G156: 5.857 | H156: 0 | I156: 10.756 | J156: 83.826 | K156: 2.315 | L156: 356.764 | M156: 7 | N156: A
A157: 2019/06/07 08:00:00 | B157: 0.085 | C157: 0.283 | D157: 1.356 | E157: 1.64 | F157: 0.354 | G157: 4.592 | H157: 0 | I157: 9.904 | J157: 87.424 | K157: 3.379 | L157: 350.332 | M157: 4 | N157: A
A158: 2019/06/07 09:00:00 | B158: 0.023 | C158: 0.435 | D158: 1.065 | E158: 1.501 | F158: 0.242 | G158: 4.277 | H158: 0 | I158: 8.777 | J158: 86.896 | K158: 3.811 | L158: 346.891 | M158: 3 | N158: A
A159: 2019/06/07 10:00:00 | B159: 0.079 | C159: 0.297 | D159: 0.719 | E159: 1.017 | F159: 0.302 | G159: 3.983 | H159: 0 | I159: 8.068 | J159: 87.03 | K159: 4.859 | L159: 335.694 | M159: 2 | N159: A
A160: 2019/06/07 11:00:00 | B160: 0.079 | C160: 0.352 | D160: 0.711 | E160: 1.064 | F160: 0.337 | G160: 3.38 | H160: 0 | I160: 7.889 | J160: 86.566 | K160: 4.263 | L160: 329.575 | M160: 1 | N160: A
A161: 2019/06/07 12:00:00 | B161: 0.207 | C161: 0.394 | D161: 0.687 | E161: 1.082 | F161: 0.34 | G161: 3.031 | H161: 0 | I161: 7.583 | J161: 86.239 | K161: 4.61 | L161: 336.692 | M161: 1 | N161: A
A162: 2019/06/07 13:00:00 | B162: 0.163 | C162: 0.346 | D162: 0.473 | E162: 0.821 | F162: 0.213 | G162: 2.505 | H162: 0 | I162: 7.927 | J162: 83.731 | K162: 4.838 | L162: 333.95 | M162: 1 | N162: A
A163: 2019/06/07 14:00:00 | B163: 0.099 | C163: 0.373 | D163: 0.486 | E163: 0.86 | F163: 0.287 | G163: 1.932 | H163: 0 | I163: 8.075 | J163: 81.35 | K163: 3.262 | L163: 326.241 | M163: 1 | N163: A
A164: 2019/06/07 15:00:00 | B164: 0.18 | C164: 0.322 | D164: 0.432 | E164: 0.755 | F164: 0.314 | G164: 1.88 | H164: 0 | I164: 8.014 | J164: 80.867 | K164: 2.781 | L164: 318.385 | M164: 1 | N164: A
A165: 2019/06/07 16:00:00 | B165: 0.053 | C165: 0.36 | D165: 0.466 | E165: 0.828 | F165: 0.266 | G165: 1.74 | H165: 0 | I165: 8.085 | J165: 80.457 | K165: 2.737 | L165: 311.016 | M165: 1 | N165: A
A166: 2019/06/07 17:00:00 | B166: Z | C166: Z | D166: Z | E166: Z | F166: Z | G166: 1.698 | H166: 0 | I166: 8.348 | J166: 78.687 | K166: 2.7 | L166: 309.377 | M166: 2 | N166: A
A167: 2019/06/07 18:00:00 | B167: 0.039 | C167: 0.32 | D167: 0.933 | E167: 1.257 | F167: 0.44 | G167: 1.663 | H167: 0 | I167: 7.918 | J167: 83.248 | K167: 2.911 | L167: 317.897 | M167: 2 | N167: A
A168: 2019/06/07 19:00:00 | B168: 0.024 | C168: 0.372 | D168: 0.511 | E168: 0.886 | F168: 0.291 | G168: 1.653 | H168: 0 | I168: 7.492 | J168: 83.372 | K168: 4.24 | L168: 332.169 | M168: 1 | N168: A
A169: 2019/06/07 20:00:00 | B169: -0.012 | C169: 0.27 | D169: 0.503 | E169: 0.777 | F169: 0.322 | G169: 1.64 | H169: 0 | I169: 5.956 | J169: 83.852 | K169: 4.574 | L169: 320.423 | M169: 2 | N169: A
A170: 2019/06/07 21:00:00 | B170: -0.049 | C170: 0.248 | D170: 0.538 | E170: 0.788 | F170: 0.386 | G170: 1.782 | H170: 0 | I170: 4.177 | J170: 83.785 | K170: 5.001 | L170: 320.738 | M170: 3 | N170: A
A171: 2019/06/07 22:00:00 | B171: 0.021 | C171: 0.22 | D171: 0.945 | E171: 1.167 | F171: 0.269 | G171: 1.948 | H171: 0.04 | I171: 3.248 | J171: 82.816 | K171: 4.703 | L171: 318.524 | M171: 4 | N171: A
A172: 2019/06/07 23:00:00 | B172: AF | C172: AF | D172: AF | E172: AF | F172: AF | G172: 2.087 | H172: 0 | I172: 3.221 | J172: 83.001 | K172: AF | L172: AF | M172: 4 | N172: A
A173: 2019/06/08 00:00:00 | B173: 0.113 | C173: 0.135 | D173: 1.329 | E173: 1.466 | F173: 0.44 | G173: 1.979 | H173: 0.23 | I173: 3.016 | J173: 83.556 | K173: AF | L173: AF | M173: 4 | N173: A
A174: 2019/06/08 01:00:00 | B174: 0.052 | C174: 0.204 | D174: 0.7 | E174: 0.906 | F174: 0.269 | G174: 2.044 | H174: 0.02 | I174: 4.291 | J174: 81.677 | K174: AF | L174: AF | M174: A | N174: A
A175: 2019/06/08 02:00:00 | B175: 0.061 | C175: 0.16 | D175: 0.862 | E175: 1.023 | F175: 0.218 | G175: 2.099 | H175: 0 | I175: 4.483 | J175: 79.808 | K175: 4.108 | L175: 316.198 | M175: 5 | N175: A
A176: 2019/06/08 03:00:00 | B176: AF | C176: AF | D176: AF | E176: AF | F176: AF | G176: 2.045 | H176: 0 | I176: 4.566 | J176: 78.935 | K176: AF | L176: AF | M176: 5 | N176: A
A177: 2019/06/08 04:00:00 | B177: -0.055 | C177: 0.093 | D177: 1.909 | E177: 2.003 | F177: 0.333 | G177: 2.233 | H177: 0 | I177: 4.709 | J177: 79.054 | K177: 2.685 | L177: 284.14 | M177: 4 | N177: A
A178: 2019/06/08 05:00:00 | B178: 0.057 | C178: 0.123 | D178: 2.289 | E178: 2.415 | F178: 0.332 | G178: 2.291 | H178: 0 | I178: 4.793 | J178: 78.033 | K178: 3.059 | L178: 296.626 | M178: 4 | N178: A
A179: 2019/06/08 06:00:00 | B179: 0.136 | C179: 0.299 | D179: 1.975 | E179: 2.274 | F179: 0.301 | G179: 2.334 | H179: 0 | I179: 4.586 | J179: 76.923 | K179: 3.149 | L179: 295.122 | M179: 4 | N179: A
A180: 2019/06/08 07:00:00 | B180: 0.2 | C180: 0.508 | D180: 1.264 | E180: 1.773 | F180: 0.24 | G180: 1.954 | H180: 0 | I180: 5.606 | J180: 72.491 | K180: 3.477 | L180: 308.404 | M180: 4 | N180: A
A181: 2019/06/08 08:00:00 | B181: 0.08 | C181: 0.419 | D181: 0.733 | E181: 1.152 | F181: 0.194 | G181: 1.807 | H181: 0 | I181: 6.446 | J181: 66.561 | K181: 4.226 | L181: 318.467 | M181: 4 | N181: A
A182: 2019/06/08 09:00:00 | B182: 0.04 | C182: 0.46 | D182: 0.477 | E182: 0.938 | F182: 0.038 | G182: 1.796 | H182: 0 | I182: 7.373 | J182: 62.877 | K182: 4.553 | L182: 315.257 | M182: 3 | N182: A
A183: 2019/06/08 10:00:00 | B183: -0.039 | C183: 0.526 | D183: 0.433 | E183: 0.96 | F183: 0.02 | G183: 1.784 | H183: 0 | I183: 8.684 | J183: 59.191 | K183: 4.411 | L183: 315.577 | M183: 3 | N183: A
A184: 2019/06/08 11:00:00 | B184: -0.023 | C184: 0.33 | D184: 0.375 | E184: 0.705 | F184: 0.004 | G184: 1.778 | H184: 0 | I184: 9.642 | J184: 53.873 | K184: 4.483 | L184: 315.054 | M184: 3 | N184: A
A185: 2019/06/08 12:00:00 | B185: 0.005 | C185: 0.293 | D185: 0.359 | E185: 0.652 | F185: 0.02 | G185: 1.792 | H185: 0 | I185: 10.425 | J185: 49.642 | K185: 4.765 | L185: 314.343 | M185: 2 | N185: A
A186: 2019/06/08 13:00:00 | B186: -0.025 | C186: 0.297 | D186: 0.252 | E186: 0.548 | F186: -0.052 | G186: 1.9 | H186: 0 | I186: 11.685 | J186: 43.739 | K186: 5.199 | L186: 314.549 | M186: 2 | N186: A
A187: 2019/06/08 14:00:00 | B187: -0.079 | C187: 0.243 | D187: 0.376 | E187: 0.621 | F187: 0.024 | G187: 2.312 | H187: 0 | I187: 11.795 | J187: 42.768 | K187: 4.707 | L187: 309.675 | M187: 2 | N187: A
A188: 2019/06/08 15:00:00 | B188: -0.105 | C188: 0.2 | D188: 0.557 | E188: 0.756 | F188: -0.037 | G188: 3.275 | H188: 0 | I188: 12.538 | J188: 41.276 | K188: 4.939 | L188: 310.169 | M188: 2 | N188: A
A189: 2019/06/08 16:00:00 | B189: Z | C189: Z | D189: Z | E189: Z | F189: Z | G189: 3.391 | H189: 0 | I189: 13.026 | J189: 40.545 | K189: 4.131 | L189: 314.3 | M189: 2 | N189: A
A190: 2019/06/08 17:00:00 | B190: -0.094 | C190: 0.235 | D190: 0.791 | E190: 1.025 | F190: -0.012 | G190: 3.244 | H190: 0 | I190: 13.524 | J190: 38.921 | K190: 4.436 | L190: 308.882 | M190: 2 | N190: A
A191: 2019/06/08 18:00:00 | B191: -0.083 | C191: 0.157 | D191: 0.611 | E191: 0.768 | F191: -0.02 | G191: 2.79 | H191: 0 | I191: 14.054 | J191: 37.426 | K191: 4.049 | L191: 307.678 | M191: 2 | N191: A
A192: 2019/06/08 19:00:00 | B192: -0.151 | C192: 0.236 | D192: 0.566 | E192: 0.802 | F192: -0.052 | G192: 2.802 | H192: 0 | I192: 13.579 | J192: 38.396 | K192: 3.454 | L192: 315.809 | M192: 3 | N192: A
A193: 2019/06/08 20:00:00 | B193: -0.218 | C193: 0.107 | D193: 0.591 | E193: 0.699 | F193: -0.272 | G193: 2.806 | H193: 0 | I193: 13.811 | J193: 37.249 | K193: 2.968 | L193: 319.348 | M193: 4 | N193: A
A194: 2019/06/08 21:00:00 | B194: -0.371 | C194: 0.206 | D194: 0.908 | E194: 1.113 | F194: -0.533 | G194: 2.722 | H194: 0 | I194: 12.987 | J194: 40.298 | K194: 1.957 | L194: 314.149 | M194: 4 | N194: A
A195: 2019/06/08 22:00:00 | B195: -0.429 | C195: 0.122 | D195: 2.033 | E195: 2.154 | F195: -0.366 | G195: 4.089 | H195: 0 | I195: 10.549 | J195: 48.339 | K195: 1.498 | L195: 268.022 | M195: 4 | N195: A
A196: 2019/06/08 23:00:00 | B196: -0.293 | C196: 0.116 | D196: 3.886 | E196: 4 | F196: -0.268 | G196: 5.452 | H196: 0 | I196: 9.266 | J196: 57.959 | K196: 2.322 | L196: 275.285 | M196: 4 | N196: A
A197: 2019/06/09 00:00:00 | B197: -0.188 | C197: 0.179 | D197: 3.46 | E197: 3.639 | F197: -0.285 | G197: 6.103 | H197: 0 | I197: 8.373 | J197: 64.987 | K197: 1.19 | L197: 293.437 | M197: A | N197: A
A198: 2019/06/09 01:00:00 | B198: -0.106 | C198: 0.226 | D198: 3.734 | E198: 3.96 | F198: -0.205 | G198: 7.359 | H198: 0 | I198: 7.962 | J198: 68.907 | K198: 1.292 | L198: 280.493 | M198: 4 | N198: A
A199: 2019/06/09 02:00:00 | B199: -0.048 | C199: 0.158 | D199: 3.806 | E199: 3.963 | F199: -0.128 | G199: 8.226 | H199: 0 | I199: 8.106 | J199: 70.13 | K199: 1.856 | L199: 274.603 | M199: 3 | N199: A
A200: 2019/06/09 03:00:00 | B200: -0.055 | C200: 0.177 | D200: 3.992 | E200: 4.168 | F200: -0.122 | G200: 8.515 | H200: 0 | I200: 7.352 | J200: 74.577 | K200: 2.274 | L200: 269.252 | M200: 4 | N200: A
A201: 2019/06/09 04:00:00 | B201: -0.217 | C201: 0.164 | D201: 5.148 | E201: 5.31 | F201: 0.16 | G201: 9.392 | H201: 0 | I201: 6.118 | J201: 79.543 | K201: 1.942 | L201: 272.637 | M201: 5 | N201: A
... 532 more rows

Sheet Meadow Lake
A1: =Kerrobert!A1 -> Group: Global WYAMZ - Monthly Monthly: 01/2019 Type: AVG 1 Hr.
A3: Date & Time | B3: Meadow Lake | C3: Meadow Lake | D3: Meadow Lake | E3: Meadow Lake | F3: Meadow Lake | G3: Meadow Lake | H3: Meadow Lake | I3: Meadow Lake | J3: Meadow Lake | K3: Meadow Lake
B4: NO | C4: NO2 | D4: NOX | E4: O3 | F4: PM25 | G4: PRECIP | H4: TEMPERAT | I4: WS | J4: WD | K4: RH
B5: ppb | C5: ppb | D5: ppb | E5: ppb | F5: ug/m3(L) | G5: mm | H5: C° | I5: m/s | J5: Deg | K5: %RH
A6: =Clavet!A6 -> 2019/06/01 01:00:00 | B6: -0.172 | C6: 1.296 | D6: 1.124 | E6: 20.582 | F6: 9.327 | G6: 0 | H6: 7.88 | I6: 0.644 | J6: 132.884 | K6: 73.479 | L6: A | M6: A
A7: =Clavet!A7 -> 2019/06/01 02:00:00 | B7: -0.164 | C7: 0.528 | D7: 0.365 | E7: 25.07 | F7: 5.302 | G7: 0 | H7: 7.86 | I7: 0.638 | J7: 115.9 | K7: 71.335 | L7: 17 | M7: 2
A8: =Clavet!A8 -> 2019/06/01 03:00:00 | B8: -0.113 | C8: 0.364 | D8: 0.251 | E8: 25.61 | F8: 4.925 | G8: 0 | H8: 7.792 | I8: 0.417 | J8: 110.34 | K8: 69.539 | L8: 17 | M8: A
A9: =Clavet!A9 -> 2019/06/01 04:00:00 | B9: -0.246 | C9: 0.415 | D9: 0.169 | E9: 28.197 | F9: 4.485 | G9: 0 | H9: 8.174 | I9: 0.4 | J9: 213.965 | K9: 64.946 | L9: 17 | M9: 2
A10: =Clavet!A10 -> 2019/06/01 05:00:00 | B10: -0.11 | C10: 0.314 | D10: 0.202 | E10: 29.059 | F10: 3.97 | G10: 0 | H10: 8.371 | I10: 0.477 | J10: 153.969 | K10: 62.622 | L10: 18 | M10: 2
A11: =Clavet!A11 -> 2019/06/01 06:00:00 | B11: 0.24 | C11: 0.408 | D11: 0.648 | E11: 28.678 | F11: 4.059 | G11: 0 | H11: 8.479 | I11: 0.579 | J11: 162.247 | K11: 62.097 | L11: 18 | M11: 2
A12: =Clavet!A12 -> 2019/06/01 07:00:00 | B12: 0.198 | C12: 0.28 | D12: 0.478 | E12: 27.897 | F12: 13.326 | G12: 0 | H12: 8.759 | I12: 0.882 | J12: 194.094 | K12: 62.215 | L12: 18 | M12: 2
A13: =Clavet!A13 -> 2019/06/01 08:00:00 | B13: 0.109 | C13: 0.342 | D13: 0.451 | E13: 26.582 | F13: 9.524 | G13: 0 | H13: 9.926 | I13: 0.962 | J13: 216.971 | K13: 61.024 | L13: A | M13: 2
A14: =Clavet!A14 -> 2019/06/01 09:00:00 | B14: -0.057 | C14: 0.387 | D14: 0.329 | E14: 24.327 | F14: 5.192 | G14: 0 | H14: 11.917 | I14: 0.19 | J14: 164.164 | K14: 58.07 | L14: 18 | M14: 2
A15: =Clavet!A15 -> 2019/06/01 10:00:00 | B15: -0.054 | C15: 0.429 | D15: 0.375 | E15: 25.347 | F15: 5.976 | G15: 0 | H15: 14.245 | I15: 1.241 | J15: 98.799 | K15: 53.248 | L15: 19 | M15: 2
A16: =Clavet!A16 -> 2019/06/01 11:00:00 | B16: -0.02 | C16: 0.494 | D16: 0.472 | E16: 29.514 | F16: 4.319 | G16: 0 | H16: 16.453 | I16: 1.515 | J16: 104.716 | K16: 46.315 | L16: 20 | M16: 2
A17: =Clavet!A17 -> 2019/06/01 12:00:00 | B17: -0.097 | C17: 0.471 | D17: 0.373 | E17: 33.663 | F17: 19.406 | G17: 0 | H17: 17.924 | I17: 1.903 | J17: 112.174 | K17: 40.35 | L17: 22 | M17: 2
A18: =Clavet!A18 -> 2019/06/01 13:00:00 | B18: 0.027 | C18: 0.411 | D18: 0.437 | E18: 37.15 | F18: 7.976 | G18: 0 | H18: 18.993 | I18: 2.411 | J18: 110.256 | K18: 36.143 | L18: 22 | M18: 2
A19: =Clavet!A19 -> 2019/06/01 14:00:00 | B19: 0.024 | C19: 0.501 | D19: 0.526 | E19: 40.741 | F19: 17.713 | G19: 0 | H19: 20.064 | I19: 2.328 | J19: 115.787 | K19: 32.784 | L19: 21 | M19: 2
A20: =Clavet!A20 -> 2019/06/01 15:00:00 | B20: -0.053 | C20: 0.494 | D20: 0.441 | E20: 42.906 | F20: 6.247 | G20: 0 | H20: 20.56 | I20: 2.447 | J20: 113.187 | K20: 31.522 | L20: 21 | M20: 2
A21: =Clavet!A21 -> 2019/06/01 16:00:00 | B21: 0.044 | C21: 0.542 | D21: 0.585 | E21: 41.97 | F21: 7.992 | G21: 0 | H21: 20.889 | I21: 2.201 | J21: 119.804 | K21: 32.636 | L21: 21 | M21: 2
A22: =Clavet!A22 -> 2019/06/01 17:00:00 | B22: 0.162 | C22: 0.633 | D22: 0.795 | E22: 42.333 | F22: 6.76 | G22: 0 | H22: 20.935 | I22: 2.846 | J22: 121.264 | K22: 33.321 | L22: 21 | M22: 3
A23: =Clavet!A23 -> 2019/06/01 18:00:00 | B23: 0.088 | C23: 0.841 | D23: 0.928 | E23: 42.884 | F23: 9.313 | G23: 0 | H23: 20.867 | I23: 3.449 | J23: 116.855 | K23: 33.945 | L23: 20 | M23: 3
A24: =Clavet!A24 -> 2019/06/01 19:00:00 | B24: 0.104 | C24: 0.883 | D24: 0.986 | E24: 42.558 | F24: 19.06 | G24: 0 | H24: 20.269 | I24: 3.794 | J24: 116.767 | K24: 34.787 | L24: 20 | M24: 3
A25: =Clavet!A25 -> 2019/06/01 20:00:00 | B25: 0.04 | C25: 0.977 | D25: 1.017 | E25: 41.633 | F25: 13.069 | G25: 0 | H25: 19.167 | I25: 3.164 | J25: 118.175 | K25: 37.752 | L25: 20 | M25: 2
A26: =Clavet!A26 -> 2019/06/01 21:00:00 | B26: 0.102 | C26: 1.094 | D26: 1.196 | E26: 40.962 | F26: 8.704 | G26: 0 | H26: 17.947 | I26: 2.892 | J26: 117.924 | K26: 40.167 | L26: 20 | M26: 2
A27: =Clavet!A27 -> 2019/06/01 22:00:00 | B27: 0.216 | C27: 1.049 | D27: 1.264 | E27: 40.556 | F27: 16.151 | G27: 0 | H27: 16.463 | I27: 3.152 | J27: 119.594 | K27: 41.664 | L27: 20 | M27: 2
A28: =Clavet!A28 -> 2019/06/01 23:00:00 | B28: Z | C28: Z | D28: Z | E28: Z | F28: 18.374 | G28: 0 | H28: 15.782 | I28: 3.638 | J28: 123.582 | K28: 40.796 | L28: 21 | M28: 2
A29: =Clavet!A29 -> 2019/06/02 00:00:00 | B29: 0.038 | C29: 1.299 | D29: 1.337 | E29: 44.449 | F29: 19.491 | G29: 0 | H29: 15.192 | I29: 3.332 | J29: 126.916 | K29: 40.073 | L29: 20 | M29: 2
A30: =Clavet!A30 -> 2019/06/02 01:00:00 | B30: 0.079 | C30: 1.532 | D30: 1.61 | E30: 43.163 | F30: 26.399 | G30: 0 | H30: 14.628 | I30: 3.495 | J30: 126.633 | K30: 39.962 | L30: 19 | M30: 2
A31: =Clavet!A31 -> 2019/06/02 02:00:00 | B31: -0.024 | C31: 1.595 | D31: 1.57 | E31: 40.246 | F31: 20.099 | G31: 0 | H31: 14.056 | I31: 3.873 | J31: 129.316 | K31: 39.09 | L31: 18 | M31: 2
A32: =Clavet!A32 -> 2019/06/02 03:00:00 | B32: 0.034 | C32: 1.357 | D32: 1.389 | E32: 38.316 | F32: 11.054 | G32: 0 | H32: 13.654 | I32: 2.443 | J32: 140.152 | K32: 38.646 | L32: 18 | M32: 2
A33: =Clavet!A33 -> 2019/06/02 04:00:00 | B33: 0.137 | C33: 1.334 | D33: 1.471 | E33: 36.92 | F33: 9.838 | G33: 0 | H33: 13.315 | I33: 3.065 | J33: 118.994 | K33: 40.361 | L33: 17 | M33: 2
A34: =Clavet!A34 -> 2019/06/02 05:00:00 | B34: 0.057 | C34: 1.389 | D34: 1.445 | E34: 36.172 | F34: 10.134 | G34: 0 | H34: 13.054 | I34: 2.534 | J34: 117.813 | K34: 40.87 | L34: 15 | M34: 2
A35: =Clavet!A35 -> 2019/06/02 06:00:00 | B35: 0.059 | C35: 1.358 | D35: 1.416 | E35: 34.124 | F35: 6.495 | G35: 0 | H35: 11.826 | I35: 2.005 | J35: 110.818 | K35: 45.378 | L35: 17 | M35: 2
A36: =Clavet!A36 -> 2019/06/02 07:00:00 | B36: 0.095 | C36: 1.618 | D36: 1.712 | E36: 31.36 | F36: 19.294 | G36: 0 | H36: 12.065 | I36: 1.343 | J36: 114.89 | K36: 48.486 | L36: A | M36: 2
A37: =Clavet!A37 -> 2019/06/02 08:00:00 | B37: 0.303 | C37: 1.869 | D37: 2.171 | E37: 28.904 | F37: 10.623 | G37: 0 | H37: 11.969 | I37: 3.187 | J37: 116.075 | K37: 51.378 | L37: 17 | M37: 2
A38: =Clavet!A38 -> 2019/06/02 09:00:00 | B38: 0.34 | C38: 2.113 | D38: 2.454 | E38: 27.42 | F38: 6.316 | G38: 0 | H38: 12.969 | I38: 3.299 | J38: 116.725 | K38: 51.83 | L38: 18 | M38: 2
A39: =Clavet!A39 -> 2019/06/02 10:00:00 | B39: 0.641 | C39: 2.435 | D39: 3.076 | E39: 26.6 | F39: 9.253 | G39: 0.24 | H39: 13.233 | I39: 2.403 | J39: 117.255 | K39: 53.351 | L39: 18 | M39: 2
A40: =Clavet!A40 -> 2019/06/02 11:00:00 | B40: 0.629 | C40: 2.013 | D40: 2.641 | E40: 27.334 | F40: 7.665 | G40: 0 | H40: 14.252 | I40: 2.38 | J40: 105.748 | K40: 53.474 | L40: 19 | M40: 2
A41: =Clavet!A41 -> 2019/06/02 12:00:00 | B41: 0.707 | C41: 1.814 | D41: 2.522 | E41: 30.508 | F41: 9.359 | G41: 0 | H41: 16.056 | I41: 2.376 | J41: 105.496 | K41: 49.723 | L41: 20 | M41: 2
A42: =Clavet!A42 -> 2019/06/02 13:00:00 | B42: 0.368 | C42: 1.599 | D42: 1.967 | E42: 35.52 | F42: 13.84 | G42: 0 | H42: 18.056 | I42: 1.797 | J42: 119.54 | K42: 47.743 | L42: 22 | M42: 2
A43: =Clavet!A43 -> 2019/06/02 14:00:00 | B43: 0.197 | C43: 1.754 | D43: 1.953 | E43: 42.681 | F43: 14.843 | G43: 0 | H43: 19.694 | I43: 1.581 | J43: 21.006 | K43: 44.285 | L43: 24 | M43: 2
A44: =Clavet!A44 -> 2019/06/02 15:00:00 | B44: 0.111 | C44: 1.716 | D44: 1.827 | E44: 46.464 | F44: 15.789 | G44: 0 | H44: 20.57 | I44: 1.926 | J44: 318.392 | K44: 42.752 | L44: 24 | M44: 3
A45: =Clavet!A45 -> 2019/06/02 16:00:00 | B45: 0.11 | C45: 1.435 | D45: 1.544 | E45: 50.336 | F45: 17.043 | G45: 0 | H45: 20.751 | I45: 1.518 | J45: 318.319 | K45: 42.058 | L45: 23 | M45: 3
A46: =Clavet!A46 -> 2019/06/02 17:00:00 | B46: 0.123 | C46: 1.405 | D46: 1.528 | E46: 50.191 | F46: 13.919 | G46: 0 | H46: 20.65 | I46: 1.534 | J46: 4.399 | K46: 42.663 | L46: 24 | M46: 3
A47: =Clavet!A47 -> 2019/06/02 18:00:00 | B47: 0.095 | C47: 1.406 | D47: 1.5 | E47: 50.277 | F47: 14.107 | G47: 0 | H47: 20.733 | I47: 0.72 | J47: 12.991 | K47: 42.778 | L47: 25 | M47: 3
A48: =Clavet!A48 -> 2019/06/02 19:00:00 | B48: 0.123 | C48: 1.427 | D48: 1.55 | E48: 50.033 | F48: 20.99 | G48: 0 | H48: 20.663 | I48: 0.094 | J48: 135.131 | K48: 44.257 | L48: 25 | M48: 3
A49: =Clavet!A49 -> 2019/06/02 20:00:00 | B49: 0.056 | C49: 1.523 | D49: 1.578 | E49: 47.709 | F49: 40.788 | G49: 0 | H49: 20.232 | I49: 0.647 | J49: 267.181 | K49: 47.815 | L49: 24 | M49: 3
A50: =Clavet!A50 -> 2019/06/02 21:00:00 | B50: -0.056 | C50: 1.63 | D50: 1.573 | E50: 38.595 | F50: 35.179 | G50: 0 | H50: 18.929 | I50: 0.334 | J50: 197.341 | K50: 55.388 | L50: 21 | M50: 3
A51: =Clavet!A51 -> 2019/06/02 22:00:00 | B51: Z | C51: Z | D51: Z | E51: Z | F51: 23.803 | G51: 0 | H51: 15.717 | I51: 0.563 | J51: 159.621 | K51: 67.697 | L51: 20 | M51: 2
A52: =Clavet!A52 -> 2019/06/02 23:00:00 | B52: 0.002 | C52: 1.25 | D52: 1.252 | E52: 31.402 | F52: 25.307 | G52: 0 | H52: 13.547 | I52: 0.675 | J52: 155.611 | K52: 73.515 | L52: 20 | M52: 2
A53: =Clavet!A53 -> 2019/06/03 00:00:00 | B53: -0.062 | C53: 1.04 | D53: 0.978 | E53: 29.084 | F53: 25.678 | G53: 0 | H53: 12.43 | I53: 0.597 | J53: 136.061 | K53: 77.915 | L53: 19 | M53: 2
A54: =Clavet!A54 -> 2019/06/03 01:00:00 | B54: -0.058 | C54: 0.894 | D54: 0.836 | E54: 29.284 | F54: 28.309 | G54: 0 | H54: 12.862 | I54: 0.606 | J54: 129.472 | K54: 75.532 | L54: 18 | M54: 2
A55: =Clavet!A55 -> 2019/06/03 02:00:00 | B55: -0.069 | C55: 0.946 | D55: 0.876 | E55: 31.044 | F55: 25.426 | G55: 0 | H55: 13.052 | I55: 0.664 | J55: 131.145 | K55: 73.573 | L55: 18 | M55: 2
A56: =Clavet!A56 -> 2019/06/03 03:00:00 | B56: -0.014 | C56: 0.862 | D56: 0.847 | E56: 31.26 | F56: 24.608 | G56: 0 | H56: 12.495 | I56: 0.648 | J56: 135.851 | K56: 75.244 | L56: 18 | M56: 2
A57: =Clavet!A57 -> 2019/06/03 04:00:00 | B57: 0.022 | C57: 0.874 | D57: 0.897 | E57: 28.742 | F57: 21.215 | G57: 0 | H57: 11.259 | I57: 0.86 | J57: 128.489 | K57: 76.786 | L57: 18 | M57: 2
A58: =Clavet!A58 -> 2019/06/03 05:00:00 | B58: -0.058 | C58: 0.936 | D58: 0.879 | E58: 25.93 | F58: 15.033 | G58: 0.09 | H58: 11.794 | I58: 0.729 | J58: 130.634 | K58: 72.593 | L58: 19 | M58: 2
A59: =Clavet!A59 -> 2019/06/03 06:00:00 | B59: 0.058 | C59: 1.004 | D59: 1.061 | E59: 25.405 | F59: 9.297 | G59: 0.4 | H59: 11.234 | I59: 0.907 | J59: 168.363 | K59: 72.796 | L59: A | M59: 2
A60: =Clavet!A60 -> 2019/06/03 07:00:00 | B60: 0.08 | C60: 1.139 | D60: 1.219 | E60: 17.641 | F60: 9.175 | G60: 0.95 | H60: 10.512 | I60: 0.328 | J60: 116.32 | K60: 82.936 | L60: 18 | M60: 2
A61: =Clavet!A61 -> 2019/06/03 08:00:00 | B61: 0.145 | C61: 1.291 | D61: 1.436 | E61: 16.729 | F61: 8.914 | G61: 1.09 | H61: 10.236 | I61: 1.088 | J61: 127.486 | K61: 84.684 | L61: 18 | M61: 2
A62: =Clavet!A62 -> 2019/06/03 09:00:00 | B62: 0.022 | C62: 1.063 | D62: 1.085 | E62: 21.3 | F62: 5.802 | G62: 0 | H62: 10.802 | I62: 3.009 | J62: 117.196 | K62: 79.965 | L62: 18 | M62: 2
A63: =Clavet!A63 -> 2019/06/03 10:00:00 | B63: 0.111 | C63: 0.936 | D63: 1.047 | E63: 24.734 | F63: 5.252 | G63: 0.51 | H63: 11.66 | I63: 3.324 | J63: 114.446 | K63: 75.46 | L63: 17 | M63: 2
A64: =Clavet!A64 -> 2019/06/03 11:00:00 | B64: 0.097 | C64: 0.722 | D64: 0.82 | E64: 26.894 | F64: 5.399 | G64: 0.41 | H64: 11.733 | I64: 3.557 | J64: 121.646 | K64: 74.966 | L64: 17 | M64: 2
A65: =Clavet!A65 -> 2019/06/03 12:00:00 | B65: 0.118 | C65: 0.805 | D65: 0.923 | E65: 26.171 | F65: 5.11 | G65: 0 | H65: 13.294 | I65: 3.088 | J65: 79.291 | K65: 70.063 | L65: 19 | M65: 2
A66: =Clavet!A66 -> 2019/06/03 13:00:00 | B66: 0.214 | C66: 1.071 | D66: 1.284 | E66: 26.978 | F66: 7.661 | G66: 0 | H66: 14.88 | I66: 2.997 | J66: 43.398 | K66: 69.138 | L66: 19 | M66: 2
A67: =Clavet!A67 -> 2019/06/03 14:00:00 | B67: 0.359 | C67: 0.669 | D67: 1.028 | E67: 23.849 | F67: 5.958 | G67: 0 | H67: 16.313 | I67: 2.83 | J67: 18.682 | K67: 68.102 | L67: 20 | M67: 2
A68: =Clavet!A68 -> 2019/06/03 15:00:00 | B68: 0.35 | C68: 1.077 | D68: 1.427 | E68: 25.287 | F68: 6.549 | G68: 0 | H68: 17.375 | I68: 2.421 | J68: 26.754 | K68: 65.497 | L68: 21 | M68: 2
A69: =Clavet!A69 -> 2019/06/03 16:00:00 | B69: 0.409 | C69: 0.881 | D69: 1.291 | E69: 27.312 | F69: 7.039 | G69: 0 | H69: 18.34 | I69: 2.62 | J69: 358.26 | K69: 62.343 | L69: 20 | M69: 2
A70: =Clavet!A70 -> 2019/06/03 17:00:00 | B70: 0.235 | C70: 0.828 | D70: 1.064 | E70: 30.82 | F70: 8.921 | G70: 0 | H70: 18.939 | I70: 3.381 | J70: 22.248 | K70: 59.377 | L70: 18 | M70: 2
A71: =Clavet!A71 -> 2019/06/03 18:00:00 | B71: 0.095 | C71: 0.784 | D71: 0.879 | E71: 29.32 | F71: 8.051 | G71: 0 | H71: 18.535 | I71: 3.618 | J71: 32.541 | K71: 60.888 | L71: 16 | M71: 2
A72: =Clavet!A72 -> 2019/06/03 19:00:00 | B72: 0.207 | C72: 0.958 | D72: 1.166 | E72: 29.919 | F72: 7.658 | G72: 0 | H72: 18.155 | I72: 2.433 | J72: 342.559 | K72: 60.662 | L72: 17 | M72: 2
A73: =Clavet!A73 -> 2019/06/03 20:00:00 | B73: 0.199 | C73: 0.822 | D73: 1.022 | E73: 24.729 | F73: 6.504 | G73: 0 | H73: 17.402 | I73: 2.125 | J73: 340.497 | K73: 64.682 | L73: 15 | M73: 2
A74: =Clavet!A74 -> 2019/06/03 21:00:00 | B74: Z | C74: Z | D74: Z | E74: Z | F74: 9.278 | G74: 0 | H74: 16.725 | I74: 2.479 | J74: 302.492 | K74: 65.925 | L74: 15 | M74: 2
A75: =Clavet!A75 -> 2019/06/03 22:00:00 | B75: 0.03 | C75: 1.495 | D75: 1.525 | E75: 26.92 | F75: 16.307 | G75: 0 | H75: 14.956 | I75: 3.01 | J75: 290.437 | K75: 66.692 | L75: 15 | M75: 2
A76: =Clavet!A76 -> 2019/06/03 23:00:00 | B76: 0.061 | C76: 1.703 | D76: 1.762 | E76: 24.962 | F76: 21.013 | G76: 0 | H76: 12.64 | I76: 1.464 | J76: 292.935 | K76: 73.542 | L76: 15 | M76: 2
A77: =Clavet!A77 -> 2019/06/04 00:00:00 | B77: 0.056 | C77: 2.3 | D77: 2.355 | E77: 23.54 | F77: 29.972 | G77: 0 | H77: 10.887 | I77: 0.989 | J77: 271.753 | K77: 78.888 | L77: 15 | M77: 2
A78: =Clavet!A78 -> 2019/06/04 01:00:00 | B78: -0.047 | C78: 1.924 | D78: 1.877 | E78: 28.078 | F78: 40.206 | G78: 0 | H78: 10.099 | I78: 1.278 | J78: 248.768 | K78: 80.543 | L78: 14 | M78: 2
A79: =Clavet!A79 -> 2019/06/04 02:00:00 | B79: -0.115 | C79: 1.921 | D79: 1.805 | E79: 32.23 | F79: 47.161 | G79: 0 | H79: 9.302 | I79: 1.533 | J79: 234.07 | K79: 80.918 | L79: 15 | M79: 2
A80: =Clavet!A80 -> 2019/06/04 03:00:00 | B80: 0.069 | C80: 1.332 | D80: 1.402 | E80: 37.277 | F80: 34.281 | G80: 0 | H80: 9.398 | I80: 2.016 | J80: 214.931 | K80: 77.571 | L80: 15 | M80: 2
A81: =Clavet!A81 -> 2019/06/04 04:00:00 | B81: -0.086 | C81: 1.082 | D81: 0.996 | E81: 37.526 | F81: 22.341 | G81: 0 | H81: 9.243 | I81: 1.979 | J81: 214.967 | K81: 75.669 | L81: 16 | M81: 2
A82: =Clavet!A82 -> 2019/06/04 05:00:00 | B82: 0.023 | C82: 0.989 | D82: 1.013 | E82: 37.104 | F82: 12.964 | G82: 0 | H82: 8.704 | I82: 1.555 | J82: 221.522 | K82: 73.845 | L82: A | M82: 2
A83: =Clavet!A83 -> 2019/06/04 06:00:00 | B83: 0.057 | C83: 0.849 | D83: 0.907 | E83: 36.635 | F83: 7.236 | G83: 0 | H83: 8.639 | I83: 1.666 | J83: 221.689 | K83: 70.909 | L83: 16 | M83: 2
A84: =Clavet!A84 -> 2019/06/04 07:00:00 | B84: 0.039 | C84: 0.895 | D84: 0.934 | E84: 36.838 | F84: 3.65 | G84: 0 | H84: 9.7 | I84: 1.986 | J84: 240.334 | K84: 65.802 | L84: 16 | M84: 2
A85: =Clavet!A85 -> 2019/06/04 08:00:00 | B85: 0.223 | C85: 0.916 | D85: 1.138 | E85: 39.563 | F85: 2.289 | G85: 0 | H85: 11.542 | I85: 2.843 | J85: 247.781 | K85: 58.806 | L85: 17 | M85: 2
A86: =Clavet!A86 -> 2019/06/04 09:00:00 | B86: 0.157 | C86: 0.845 | D86: 1.002 | E86: 40.494 | F86: 1.72 | G86: 0 | H86: 13.282 | I86: 2.946 | J86: 255.408 | K86: 54.427 | L86: 17 | M86: 2
A87: =Clavet!A87 -> 2019/06/04 10:00:00 | B87: 0.196 | C87: 0.663 | D87: 0.859 | E87: 40.981 | F87: 1.398 | G87: 0 | H87: 14.879 | I87: 3.222 | J87: 246.047 | K87: 48.103 | L87: 17 | M87: 2
A88: =Clavet!A88 -> 2019/06/04 11:00:00 | B88: 0.118 | C88: 0.585 | D88: 0.703 | E88: 43.691 | F88: 1.15 | G88: 0 | H88: 16.759 | I88: 3.618 | J88: 250.833 | K88: 40.198 | L88: 17 | M88: 2
A89: =Clavet!A89 -> 2019/06/04 12:00:00 | B89: 0.064 | C89: 0.582 | D89: 0.647 | E89: 45.783 | F89: 1.108 | G89: 0 | H89: 18.137 | I89: 3.557 | J89: 248.882 | K89: 34.863 | L89: 17 | M89: 2
A90: =Clavet!A90 -> 2019/06/04 13:00:00 | B90: 0.133 | C90: 0.583 | D90: 0.716 | E90: 47.32 | F90: 1.112 | G90: 0 | H90: 18.645 | I90: 3.718 | J90: 258.428 | K90: 31.726 | L90: 18 | M90: 2
A91: =Clavet!A91 -> 2019/06/04 14:00:00 | B91: 0.175 | C91: 0.575 | D91: 0.75 | E91: 50.518 | F91: 1.31 | G91: 0 | H91: 19.563 | I91: 4.391 | J91: 269.26 | K91: 29.003 | L91: 20 | M91: 2
A92: =Clavet!A92 -> 2019/06/04 15:00:00 | B92: 0.18 | C92: 0.641 | D92: 0.821 | E92: 51.993 | F92: 1.201 | G92: 0 | H92: 19.903 | I92: 3.941 | J92: 268.488 | K92: 27.723 | L92: 20 | M92: 2
A93: =Clavet!A93 -> 2019/06/04 16:00:00 | B93: 0.13 | C93: 0.556 | D93: 0.685 | E93: 51.285 | F93: 1.35 | G93: 0 | H93: 20.506 | I93: 3.643 | J93: 267.885 | K93: 27.626 | L93: 21 | M93: 2
A94: =Clavet!A94 -> 2019/06/04 17:00:00 | B94: 0.112 | C94: 0.549 | D94: 0.662 | E94: 49.743 | F94: 1.415 | G94: 0 | H94: 20.678 | I94: 3.901 | J94: 272.949 | K94: 25.873 | L94: 19 | M94: 2
A95: =Clavet!A95 -> 2019/06/04 18:00:00 | B95: 0.085 | C95: 0.375 | D95: 0.46 | E95: 48.678 | F95: 1.151 | G95: 0 | H95: 20.65 | I95: 3.833 | J95: 276.982 | K95: 25.673 | L95: 16 | M95: 2
A96: =Clavet!A96 -> 2019/06/04 19:00:00 | B96: 0.156 | C96: 0.449 | D96: 0.604 | E96: 47.811 | F96: 1.242 | G96: 0 | H96: 20.043 | I96: 2.767 | J96: 273.209 | K96: 26.816 | L96: 16 | M96: 2
A97: =Clavet!A97 -> 2019/06/04 20:00:00 | B97: Z | C97: Z | D97: Z | E97: Z | F97: 1.991 | G97: 0 | H97: 18.957 | I97: 1.532 | J97: 257.764 | K97: 31.147 | L97: 17 | M97: 2
A98: =Clavet!A98 -> 2019/06/04 21:00:00 | B98: 0.135 | C98: 0.944 | D98: 1.078 | E98: 42.54 | F98: 10.955 | G98: 0 | H98: 16.81 | I98: 0.558 | J98: 212.831 | K98: 38.263 | L98: 15 | M98: 2
A99: =Clavet!A99 -> 2019/06/04 22:00:00 | B99: 0.217 | C99: 0.63 | D99: 0.847 | E99: 36.338 | F99: 3.99 | G99: 0.02 | H99: 14.902 | I99: 1.246 | J99: 54.259 | K99: 48.732 | L99: 16 | M99: 2
A100: =Clavet!A100 -> 2019/06/04 23:00:00 | B100: -0.024 | C100: 0.688 | D100: 0.663 | E100: 35.086 | F100: 2.607 | G100: 0 | H100: 13.866 | I100: 0.556 | J100: 169.154 | K100: 51.595 | L100: 16 | M100: 2
A101: =Clavet!A101 -> 2019/06/05 00:00:00 | B101: 0.114 | C101: 0.787 | D101: 0.901 | E101: 37.259 | F101: 3.188 | G101: 0.03 | H101: 14.208 | I101: 2.314 | J101: 233.771 | K101: 50.809 | L101: 18 | M101: 2
A102: =Clavet!A102 -> 2019/06/05 01:00:00 | B102: 0.167 | C102: 0.679 | D102: 0.844 | E102: 47.526 | F102: 5.745 | G102: 0 | H102: 13.38 | I102: 0.923 | J102: 219.129 | K102: 53.156 | L102: 18 | M102: 2
A103: =Clavet!A103 -> 2019/06/05 02:00:00 | B103: 0.185 | C103: 0.637 | D103: 0.822 | E103: 47.264 | F103: 1.667 | G103: 0 | H103: 12.203 | I103: 0.93 | J103: 224.727 | K103: 57.808 | L103: 17 | M103: 2
A104: =Clavet!A104 -> 2019/06/05 03:00:00 | B104: 0.144 | C104: 0.686 | D104: 0.829 | E104: 45.536 | F104: 1.494 | G104: 0 | H104: 10.955 | I104: 1.123 | J104: 229.002 | K104: 64.477 | L104: 18 | M104: 2
A105: =Clavet!A105 -> 2019/06/05 04:00:00 | B105: 0.082 | C105: 0.581 | D105: 0.663 | E105: 47.087 | F105: 1.429 | G105: 0 | H105: 11.171 | I105: 1.791 | J105: 216.054 | K105: 63.588 | L105: A | M105: 2
A106: =Clavet!A106 -> 2019/06/05 05:00:00 | B106: 0.041 | C106: 0.736 | D106: 0.777 | E106: 44.603 | F106: 1.637 | G106: 0 | H106: 9.636 | I106: 1.188 | J106: 204.334 | K106: 68.827 | L106: 16 | M106: 2
A107: =Clavet!A107 -> 2019/06/05 06:00:00 | B107: 0.012 | C107: 0.796 | D107: 0.807 | E107: 41.925 | F107: 1.842 | G107: 0 | H107: 8.833 | I107: 1.328 | J107: 207.511 | K107: 72.048 | L107: 16 | M107: 2
A108: =Clavet!A108 -> 2019/06/05 07:00:00 | B108: 0.192 | C108: 1 | D108: 1.191 | E108: 39.338 | F108: 3.081 | G108: 0 | H108: 10.007 | I108: 1.522 | J108: 248.699 | K108: 70.383 | L108: 16 | M108: 2
A109: =Clavet!A109 -> 2019/06/05 08:00:00 | B109: 0.761 | C109: 1.651 | D109: 2.41 | E109: 37.004 | F109: 3.781 | G109: 0 | H109: 11.411 | I109: 1.8 | J109: 257.086 | K109: 67.788 | L109: 18 | M109: 2
A110: =Clavet!A110 -> 2019/06/05 09:00:00 | B110: 0.386 | C110: 1.3 | D110: 1.684 | E110: 37.144 | F110: 3.156 | G110: 0 | H110: 13.024 | I110: 1.979 | J110: 255.969 | K110: 61.411 | L110: 20 | M110: 2
A111: =Clavet!A111 -> 2019/06/05 10:00:00 | B111: 0.359 | C111: 1.164 | D111: 1.52 | E111: 40.639 | F111: 3.553 | G111: 0 | H111: 14.952 | I111: 2.257 | J111: 263.91 | K111: 52.16 | L111: 21 | M111: 2
A112: =Clavet!A112 -> 2019/06/05 11:00:00 | B112: 0.264 | C112: 0.901 | D112: 1.164 | E112: 45.475 | F112: 3.372 | G112: 0 | H112: 16.528 | I112: 2.373 | J112: 270.093 | K112: 43.563 | L112: 21 | M112: 2
A113: =Clavet!A113 -> 2019/06/05 12:00:00 | B113: -0.006 | C113: 0.854 | D113: 0.847 | E113: 44.986 | F113: 3.319 | G113: 0 | H113: 17.627 | I113: 3.071 | J113: 278.895 | K113: 39.582 | L113: 22 | M113: 2
A114: =Clavet!A114 -> 2019/06/05 13:00:00 | B114: 0.168 | C114: 0.576 | D114: 0.743 | E114: 45.089 | F114: 3.404 | G114: 0 | H114: 18.542 | I114: 3.185 | J114: 278.631 | K114: 34.949 | L114: 23 | M114: 2
A115: =Clavet!A115 -> 2019/06/05 14:00:00 | B115: 0.198 | C115: 0.602 | D115: 0.799 | E115: 44.948 | F115: 5.249 | G115: 0 | H115: 19.148 | I115: 3.101 | J115: 268.682 | K115: 32.259 | L115: 23 | M115: 2
A116: =Clavet!A116 -> 2019/06/05 15:00:00 | B116: 0.177 | C116: 0.535 | D116: 0.711 | E116: 45.655 | F116: 7.313 | G116: 0 | H116: 19.28 | I116: 3.046 | J116: 268.624 | K116: 31.075 | L116: 23 | M116: 3
A117: =Clavet!A117 -> 2019/06/05 16:00:00 | B117: 0.176 | C117: 0.483 | D117: 0.658 | E117: 46.707 | F117: 3.481 | G117: 0 | H117: 19.646 | I117: 3.028 | J117: 283.654 | K117: 29.7 | L117: 24 | M117: 3
A118: =Clavet!A118 -> 2019/06/05 17:00:00 | B118: 0.213 | C118: 0.427 | D118: 0.638 | E118: 47.882 | F118: 3.313 | G118: 0 | H118: 20.212 | I118: 2.776 | J118: 270 | K118: 28.058 | L118: 25 | M118: 3
A119: =Clavet!A119 -> 2019/06/05 18:00:00 | B119: 0.163 | C119: 0.568 | D119: 0.728 | E119: 47.071 | F119: 3.318 | G119: 0 | H119: 19.956 | I119: 2.277 | J119: 285.03 | K119: 29.308 | L119: 24 | M119: 3
A120: =Clavet!A120 -> 2019/06/05 19:00:00 | B120: Z | C120: Z | D120: Z | E120: Z | F120: 11.225 | G120: 0.04 | H120: 18.797 | I120: 1.827 | J120: 237.114 | K120: 33.017 | L120: 24 | M120: 3
A121: =Clavet!A121 -> 2019/06/05 20:00:00 | B121: 0.091 | C121: 0.802 | D121: 0.892 | E121: 47.92 | F121: 8.219 | G121: 0 | H121: 17.833 | I121: 0.957 | J121: 212.413 | K121: 40.479 | L121: 24 | M121: 3
A122: =Clavet!A122 -> 2019/06/05 21:00:00 | B122: -0.017 | C122: 1.091 | D122: 1.071 | E122: 42.119 | F122: 6.536 | G122: 0 | H122: 17.693 | I122: 0.688 | J122: 205.062 | K122: 42.955 | L122: 23 | M122: 3
A123: =Clavet!A123 -> 2019/06/05 22:00:00 | B123: 0.074 | C123: 0.867 | D123: 0.938 | E123: 33.578 | F123: 4.193 | G123: 0 | H123: 13.68 | I123: 0.644 | J123: 149.367 | K123: 60.116 | L123: 22 | M123: 3
A124: =Clavet!A124 -> 2019/06/05 23:00:00 | B124: -0.033 | C124: 0.757 | D124: 0.722 | E124: 31.22 | F124: 15.385 | G124: 0 | H124: 11.401 | I124: 0.661 | J124: 157.765 | K124: 67.623 | L124: 20 | M124: 3
A125: =Clavet!A125 -> 2019/06/06 00:00:00 | B125: -0.019 | C125: 1.188 | D125: 1.166 | E125: 27.384 | F125: 10.321 | G125: 0 | H125: 10.198 | I125: 0.466 | J125: 171.135 | K125: 71.296 | L125: 15 | M125: 2
A126: =Clavet!A126 -> 2019/06/06 01:00:00 | B126: 0.082 | C126: 1.267 | D126: 1.347 | E126: 26.692 | F126: 10.074 | G126: 0 | H126: 9.58 | I126: 0.562 | J126: 177.958 | K126: 72.048 | L126: 17 | M126: 2
A127: =Clavet!A127 -> 2019/06/06 02:00:00 | B127: 0.169 | C127: 0.984 | D127: 1.15 | E127: 21.822 | F127: 8.119 | G127: 0 | H127: 9.829 | I127: 0.25 | J127: 105.655 | K127: 72.856 | L127: 19 | M127: 2
A128: =Clavet!A128 -> 2019/06/06 03:00:00 | B128: 0.089 | C128: 0.607 | D128: 0.694 | E128: 29.078 | F128: 6.876 | G128: 0 | H128: 11.227 | I128: 0.223 | J128: 101.819 | K128: 65.747 | L128: A | M128: 2
A129: =Clavet!A129 -> 2019/06/06 04:00:00 | B129: 0.108 | C129: 0.744 | D129: 0.85 | E129: 28.187 | F129: 5.317 | G129: 0 | H129: 10.857 | I129: 0.512 | J129: 148.383 | K129: 68.296 | L129: 18 | M129: 2
A130: =Clavet!A130 -> 2019/06/06 05:00:00 | B130: 0.02 | C130: 0.53 | D130: 0.55 | E130: 34.788 | F130: 4.576 | G130: 0 | H130: 10.767 | I130: 0.593 | J130: 141.258 | K130: 67.847 | L130: 18 | M130: 2
A131: =Clavet!A131 -> 2019/06/06 06:00:00 | B131: 0.104 | C131: 0.638 | D131: 0.739 | E131: 35.776 | F131: 6.404 | G131: 0 | H131: 11.124 | I131: 1.365 | J131: 126.774 | K131: 68.814 | L131: 17 | M131: 2
A132: =Clavet!A132 -> 2019/06/06 07:00:00 | B132: 0.089 | C132: 1.126 | D132: 1.212 | E132: 40.346 | F132: 11.023 | G132: 0.06 | H132: 11.445 | I132: 1.598 | J132: 117.266 | K132: 73.169 | L132: 14 | M132: 2
A133: =Clavet!A133 -> 2019/06/06 08:00:00 | B133: 0.215 | C133: 1.13 | D133: 1.342 | E133: 39.824 | F133: 3.738 | G133: 0 | H133: 11.907 | I133: 1.219 | J133: 97.841 | K133: 73.076 | L133: 18 | M133: 2
A134: =Clavet!A134 -> 2019/06/06 09:00:00 | B134: 0.064 | C134: 0.717 | D134: 0.779 | E134: 35.388 | F134: 3.853 | G134: 0 | H134: 12.544 | I134: 2.265 | J134: 26.249 | K134: 73.578 | L134: 19 | M134: 2
A135: =Clavet!A135 -> 2019/06/06 10:00:00 | B135: 0.055 | C135: 0.685 | D135: 0.737 | E135: 35.344 | F135: 5 | G135: 0 | H135: 13.369 | I135: 3.187 | J135: 37.054 | K135: 68.906 | L135: 23 | M135: 2
A136: =Clavet!A136 -> 2019/06/06 11:00:00 | B136: 0.241 | C136: 0.628 | D136: 0.866 | E136: 32.968 | F136: 6.784 | G136: 0 | H136: 14.678 | I136: 4.164 | J136: 44.632 | K136: 62.963 | L136: 24 | M136: 2
A137: =Clavet!A137 -> 2019/06/06 12:00:00 | B137: 0.271 | C137: 0.641 | D137: 0.91 | E137: 44.061 | F137: 18.159 | G137: 0 | H137: 17.895 | I137: 5.791 | J137: 59.18 | K137: 46.897 | L137: 24 | M137: 3
A138: =Clavet!A138 -> 2019/06/06 13:00:00 | B138: 0.133 | C138: 0.612 | D138: 0.744 | E138: 51.938 | F138: 6.303 | G138: 0 | H138: 18.565 | I138: 6.379 | J138: 50.406 | K138: 42.256 | L138: 23 | M138: 3
A139: =Clavet!A139 -> 2019/06/06 14:00:00 | B139: 0.114 | C139: 0.579 | D139: 0.69 | E139: 55.182 | F139: 3.795 | G139: 0 | H139: 19.636 | I139: 5.526 | J139: 67.758 | K139: 37.288 | L139: 23 | M139: 3
A140: =Clavet!A140 -> 2019/06/06 15:00:00 | B140: 0.062 | C140: 0.66 | D140: 0.719 | E140: 53.786 | F140: 3.229 | G140: 0 | H140: 19.845 | I140: 5.654 | J140: 44.562 | K140: 37.865 | L140: 23 | M140: 3
A141: =Clavet!A141 -> 2019/06/06 16:00:00 | B141: 0.104 | C141: 0.512 | D141: 0.614 | E141: 53.437 | F141: 3.891 | G141: 0 | H141: 20.058 | I141: 6.095 | J141: 29.816 | K141: 39.125 | L141: 22 | M141: 3
A142: =Clavet!A142 -> 2019/06/06 17:00:00 | B142: 0.082 | C142: 0.513 | D142: 0.592 | E142: 51.43 | F142: 3.465 | G142: 0 | H142: 19.719 | I142: 6.07 | J142: 28.7 | K142: 42.265 | L142: 23 | M142: 3
A143: =Clavet!A143 -> 2019/06/06 18:00:00 | B143: Z | C143: Z | D143: Z | E143: Z | F143: 3.626 | G143: 0 | H143: 18.9 | I143: 6.104 | J143: 20.851 | K143: 44.71 | L143: 22 | M143: 3
A144: =Clavet!A144 -> 2019/06/06 19:00:00 | B144: 0.037 | C144: 0.594 | D144: 0.629 | E144: 47.899 | F144: 3.866 | G144: 0 | H144: 18.116 | I144: 5.312 | J144: 15.356 | K144: 47.631 | L144: 22 | M144: 3
A145: =Clavet!A145 -> 2019/06/06 20:00:00 | B145: 0.123 | C145: 0.461 | D145: 0.581 | E145: 46.441 | F145: 5.008 | G145: 0 | H145: 16.347 | I145: 4.389 | J145: 14.68 | K145: 52.799 | L145: 21 | M145: 3
A146: =Clavet!A146 -> 2019/06/06 21:00:00 | B146: 0.051 | C146: 0.475 | D146: 0.523 | E146: 46.273 | F146: 3.897 | G146: 0 | H146: 14.88 | I146: 4.346 | J146: 12.177 | K146: 57.055 | L146: 21 | M146: 3
A147: =Clavet!A147 -> 2019/06/06 22:00:00 | B147: 0.086 | C147: 0.399 | D147: 0.482 | E147: 44.142 | F147: 6.679 | G147: 0 | H147: 12.961 | I147: 3.278 | J147: 14.055 | K147: 64.472 | L147: 20 | M147: 3
A148: =Clavet!A148 -> 2019/06/06 23:00:00 | B148: 0.035 | C148: 0.372 | D148: 0.407 | E148: 42.925 | F148: 4.501 | G148: 0 | H148: 11.966 | I148: 3.034 | J148: 11.726 | K148: 69.491 | L148: 17 | M148: 3
A149: =Clavet!A149 -> 2019/06/07 00:00:00 | B149: 0.057 | C149: 0.316 | D149: 0.372 | E149: 40.104 | F149: 5.039 | G149: 0 | H149: 11.753 | I149: 3.713 | J149: 21.358 | K149: 74.732 | L149: 16 | M149: 2
A150: =Clavet!A150 -> 2019/06/07 01:00:00 | B150: 0.081 | C150: 0.268 | D150: 0.348 | E150: 37.334 | F150: 6.439 | G150: 0 | H150: 11.726 | I150: 3.596 | J150: 13.916 | K150: 77.82 | L150: 15 | M150: 2
A151: =Clavet!A151 -> 2019/06/07 02:00:00 | B151: 0.042 | C151: 0.264 | D151: 0.306 | E151: 36.71 | F151: 6.852 | G151: 0 | H151: 11.566 | I151: 3.939 | J151: 11.389 | K151: 78.819 | L151: A | M151: 2
A152: =Clavet!A152 -> 2019/06/07 03:00:00 | B152: 0.031 | C152: 0.3 | D152: 0.331 | E152: 34.986 | F152: 7.412 | G152: 0 | H152: 11.384 | I152: 4.141 | J152: 10.128 | K152: 80.263 | L152: 14 | M152: 2
A153: =Clavet!A153 -> 2019/06/07 04:00:00 | B153: -0.009 | C153: 0.339 | D153: 0.33 | E153: 34.844 | F153: 7.578 | G153: 0 | H153: 11.059 | I153: 4.372 | J153: 14.473 | K153: 82.013 | L153: 16 | M153: 2
A154: =Clavet!A154 -> 2019/06/07 05:00:00 | B154: 0.114 | C154: 0.336 | D154: 0.451 | E154: 32.831 | F154: 7.359 | G154: 0 | H154: 10.559 | I154: 4.776 | J154: 15.697 | K154: 86.107 | L154: 16 | M154: 2
A155: =Clavet!A155 -> 2019/06/07 06:00:00 | B155: 0.146 | C155: 0.309 | D155: 0.457 | E155: 29.181 | F155: 4.058 | G155: 0.06 | H155: 10.328 | I155: 4.176 | J155: 18.76 | K155: 87.302 | L155: 16 | M155: 2
A156: =Clavet!A156 -> 2019/06/07 07:00:00 | B156: -0.006 | C156: 0.226 | D156: 0.221 | E156: 27.552 | F156: 2.524 | G156: 0.64 | H156: 10.283 | I156: 4.6 | J156: 21.516 | K156: 87.351 | L156: 18 | M156: 2
A157: =Clavet!A157 -> 2019/06/07 08:00:00 | B157: -0.043 | C157: 0.265 | D157: 0.224 | E157: 25.064 | F157: 1.882 | G157: 0 | H157: 9.814 | I157: 3.096 | J157: 8.086 | K157: 87.134 | L157: 18 | M157: 2
A158: =Clavet!A158 -> 2019/06/07 09:00:00 | B158: 0.116 | C158: 0.247 | D158: 0.364 | E158: 22.837 | F158: 1.197 | G158: 0 | H158: 9.229 | I158: 3.565 | J158: 21.339 | K158: 88.375 | L158: 18 | M158: 2
A159: =Clavet!A159 -> 2019/06/07 10:00:00 | B159: 0.009 | C159: 0.315 | D159: 0.325 | E159: 22.469 | F159: 1.196 | G159: 0 | H159: 9.2 | I159: 3.825 | J159: 14.76 | K159: 88.735 | L159: 19 | M159: 2
A160: =Clavet!A160 -> 2019/06/07 11:00:00 | B160: 0.062 | C160: 0.212 | D160: 0.276 | E160: 21.756 | F160: 1.189 | G160: 0 | H160: 9.277 | I160: 4.554 | J160: 8.051 | K160: 88.262 | L160: 20 | M160: 2
A161: =Clavet!A161 -> 2019/06/07 12:00:00 | B161: 0.022 | C161: 0.27 | D161: 0.295 | E161: 20.091 | F161: 0.523 | G161: 0 | H161: 9.194 | I161: 3.263 | J161: 353.893 | K161: 87.74 | L161: 22 | M161: 2
A162: =Clavet!A162 -> 2019/06/07 13:00:00 | B162: 0.075 | C162: 0.206 | D162: 0.284 | E162: 18.535 | F162: 0.239 | G162: 0 | H162: 9.263 | I162: 4.058 | J162: 6.367 | K162: 87.243 | L162: 23 | M162: 2
A163: =Clavet!A163 -> 2019/06/07 14:00:00 | B163: 0.081 | C163: 0.279 | D163: 0.363 | E163: 17.441 | F163: 0.157 | G163: 0 | H163: 9.095 | I163: 3.328 | J163: 0.763 | K163: 87.33 | L163: 24 | M163: 2
A164: =Clavet!A164 -> 2019/06/07 15:00:00 | B164: 0.062 | C164: 0.253 | D164: 0.317 | E164: 16.84 | F164: 0.062 | G164: 0 | H164: 8.715 | I164: 3.156 | J164: 350.332 | K164: 87.649 | L164: 25 | M164: 3
A165: =Clavet!A165 -> 2019/06/07 16:00:00 | B165: -0.02 | C165: 0.324 | D165: 0.307 | E165: 17.458 | F165: 0.243 | G165: 0.32 | H165: 8.472 | I165: 2.876 | J165: 306.206 | K165: 87.794 | L165: 25 | M165: 3
A166: =Clavet!A166 -> 2019/06/07 17:00:00 | B166: Z | C166: Z | D166: Z | E166: Z | F166: 5.654 | G166: 0.04 | H166: 8.049 | I166: 3.36 | J166: 287.796 | K166: 87.443 | L166: 25 | M166: 3
A167: =Clavet!A167 -> 2019/06/07 18:00:00 | B167: 0.144 | C167: 0.683 | D167: 0.83 | E167: 17.332 | F167: 3.685 | G167: 0 | H167: 8.1 | I167: 3.147 | J167: 295.298 | K167: 86.968 | L167: 24 | M167: 3
A168: =Clavet!A168 -> 2019/06/07 19:00:00 | B168: -0.029 | C168: 0.494 | D168: 0.469 | E168: 17.698 | F168: 1.587 | G168: 0 | H168: 8.054 | I168: 2.966 | J168: 288.887 | K168: 87.169 | L168: 25 | M168: 3
A169: =Clavet!A169 -> 2019/06/07 20:00:00 | B169: -0.019 | C169: 0.31 | D169: 0.295 | E169: 17.464 | F169: 0.106 | G169: 0 | H169: 7.793 | I169: 2.958 | J169: 284.478 | K169: 87.578 | L169: 25 | M169: 3
A170: =Clavet!A170 -> 2019/06/07 21:00:00 | B170: 0.005 | C170: 0.364 | D170: 0.372 | E170: 19.264 | F170: 0.96 | G170: 0.01 | H170: 7.395 | I170: 3.39 | J170: 278.681 | K170: 86.921 | L170: 23 | M170: 3
A171: =Clavet!A171 -> 2019/06/07 22:00:00 | B171: -0.014 | C171: 0.248 | D171: 0.237 | E171: 21.573 | F171: 2.072 | G171: 0.41 | H171: 6.457 | I171: 4.166 | J171: 280.83 | K171: 85.705 | L171: 23 | M171: 3
A172: =Clavet!A172 -> 2019/06/07 23:00:00 | B172: -0.067 | C172: 0.218 | D172: 0.154 | E172: 19.375 | F172: 0.553 | G172: 0.33 | H172: 5.026 | I172: 4.296 | J172: 280.711 | K172: 85.214 | L172: 22 | M172: 3
A173: =Clavet!A173 -> 2019/06/08 00:00:00 | B173: -0.068 | C173: 0.147 | D173: 0.082 | E173: 19.473 | F173: 0.264 | G173: 0.02 | H173: 4.237 | I173: 4.441 | J173: 283.304 | K173: 84.718 | L173: 21 | M173: 2
A174: =Clavet!A174 -> 2019/06/08 01:00:00 | B174: 0.003 | C174: 0.145 | D174: 0.152 | E174: 19.628 | F174: 0.23 | G174: 0.35 | H174: 4.178 | I174: 4.447 | J174: 282.631 | K174: 83.559 | L174: A | M174: 2
A175: =Clavet!A175 -> 2019/06/08 02:00:00 | B175: 0.006 | C175: 0.088 | D175: 0.097 | E175: 19.595 | F175: 0.21 | G175: 0.03 | H175: 4.184 | I175: 3.996 | J175: 287.959 | K175: 83.908 | L175: 19 | M175: 2
A176: =Clavet!A176 -> 2019/06/08 03:00:00 | B176: 0.02 | C176: 0.203 | D176: 0.225 | E176: 19.238 | F176: 1.11 | G176: 0 | H176: 4.361 | I176: 3.419 | J176: 284.219 | K176: 83.586 | L176: 19 | M176: 2
A177: =Clavet!A177 -> 2019/06/08 04:00:00 | B177: -0.12 | C177: 0.224 | D177: 0.107 | E177: 18.204 | F177: 0.751 | G177: 0 | H177: 4.869 | I177: 3.05 | J177: 262.796 | K177: 82.061 | L177: 17 | M177: 2
A178: =Clavet!A178 -> 2019/06/08 05:00:00 | B178: -0.035 | C178: 0.595 | D178: 0.562 | E178: 16.689 | F178: 1.17 | G178: 0 | H178: 4.686 | I178: 3.224 | J178: 258.268 | K178: 81.373 | L178: 17 | M178: 2
A179: =Clavet!A179 -> 2019/06/08 06:00:00 | B179: 0.118 | C179: 0.847 | D179: 0.967 | E179: 16.195 | F179: 1.783 | G179: 0 | H179: 4.969 | I179: 3.541 | J179: 276.385 | K179: 80.333 | L179: 15 | M179: 2
A180: =Clavet!A180 -> 2019/06/08 07:00:00 | B180: 0.306 | C180: 1.156 | D180: 1.466 | E180: 15.832 | F180: 2.975 | G180: 0 | H180: 4.963 | I180: 3.723 | J180: 275.283 | K180: 78.885 | L180: 14 | M180: 2
A181: =Clavet!A181 -> 2019/06/08 08:00:00 | B181: 0.431 | C181: 0.912 | D181: 1.346 | E181: 16.6 | F181: 2.803 | G181: 0 | H181: 4.911 | I181: 4.122 | J181: 280.591 | K181: 77.705 | L181: 17 | M181: 2
A182: =Clavet!A182 -> 2019/06/08 09:00:00 | B182: 0.399 | C182: 0.622 | D182: 1.023 | E182: 18.454 | F182: 2.298 | G182: 0 | H182: 5.745 | I182: 4.422 | J182: 284.726 | K182: 74.079 | L182: 20 | M182: 2
A183: =Clavet!A183 -> 2019/06/08 10:00:00 | B183: 0.208 | C183: 0.419 | D183: 0.631 | E183: 22.102 | F183: 2.01 | G183: 0 | H183: 6.973 | I183: 4.19 | J183: 285.305 | K183: 68.537 | L183: 22 | M183: 2
A184: =Clavet!A184 -> 2019/06/08 11:00:00 | B184: 0.142 | C184: 0.216 | D184: 0.361 | E184: 24.684 | F184: 0.703 | G184: 0 | H184: 8.634 | I184: 4.418 | J184: 287.297 | K184: 61.476 | L184: 23 | M184: 2
A185: =Clavet!A185 -> 2019/06/08 12:00:00 | B185: 0.206 | C185: 0.277 | D185: 0.485 | E185: 26.403 | F185: 0.315 | G185: 0 | H185: 9.941 | I185: 4.31 | J185: 284.595 | K185: 55.184 | L185: 24 | M185: 2
A186: =Clavet!A186 -> 2019/06/08 13:00:00 | B186: 0.215 | C186: 0.286 | D186: 0.504 | E186: 27.942 | F186: 0.405 | G186: 0 | H186: 11.193 | I186: 4.305 | J186: 278.125 | K186: 50.478 | L186: 24 | M186: 3
A187: =Clavet!A187 -> 2019/06/08 14:00:00 | B187: 0.109 | C187: 0.306 | D187: 0.418 | E187: 30.021 | F187: 0.484 | G187: 0 | H187: 11.642 | I187: 4.436 | J187: 284.665 | K187: 46.644 | L187: 24 | M187: 3
A188: =Clavet!A188 -> 2019/06/08 15:00:00 | B188: 0.159 | C188: 0.318 | D188: 0.479 | E188: 29.583 | F188: 0.476 | G188: 0 | H188: 11.662 | I188: 4.362 | J188: 283.584 | K188: 45.735 | L188: 24 | M188: 3
A189: =Clavet!A189 -> 2019/06/08 16:00:00 | B189: Z | C189: Z | D189: Z | E189: Z | F189: 0.631 | G189: 0 | H189: 12.378 | I189: 4.049 | J189: 288.366 | K189: 45.161 | L189: 24 | M189: 3
A190: =Clavet!A190 -> 2019/06/08 17:00:00 | B190: 0.308 | C190: 0.41 | D190: 0.72 | E190: 30.428 | F190: 1.048 | G190: 0 | H190: 13.191 | I190: 3.834 | J190: 285.842 | K190: 42.66 | L190: 26 | M190: 3
A191: =Clavet!A191 -> 2019/06/08 18:00:00 | B191: 0.244 | C191: 0.326 | D191: 0.571 | E191: 31.168 | F191: 1.686 | G191: 0 | H191: 13.457 | I191: 4.166 | J191: 287.877 | K191: 39.869 | L191: 25 | M191: 3
A192: =Clavet!A192 -> 2019/06/08 19:00:00 | B192: 0.18 | C192: 0.509 | D192: 0.691 | E192: 29.872 | F192: 2.58 | G192: 0 | H192: 12.673 | I192: 2.969 | J192: 311.021 | K192: 41.663 | L192: 25 | M192: 3
A193: =Clavet!A193 -> 2019/06/08 20:00:00 | B193: 0.169 | C193: 0.397 | D193: 0.57 | E193: 29.597 | F193: 4.331 | G193: 0 | H193: 12.479 | I193: 2.613 | J193: 311.699 | K193: 41.403 | L193: 23 | M193: 3
A194: =Clavet!A194 -> 2019/06/08 21:00:00 | B194: 0.223 | C194: 0.341 | D194: 0.566 | E194: 28.676 | F194: 1.878 | G194: 0 | H194: 11.669 | I194: 2.021 | J194: 330.317 | K194: 44.958 | L194: 25 | M194: 3
A195: =Clavet!A195 -> 2019/06/08 22:00:00 | B195: 0.152 | C195: 0.308 | D195: 0.461 | E195: 26.153 | F195: 0.898 | G195: 0 | H195: 9.947 | I195: 1.365 | J195: 352.822 | K195: 52.992 | L195: 24 | M195: 3
A196: =Clavet!A196 -> 2019/06/08 23:00:00 | B196: 0.059 | C196: 0.298 | D196: 0.361 | E196: 22.628 | F196: 0.895 | G196: 0 | H196: 6.542 | I196: 0.329 | J196: 171.66 | K196: 68.003 | L196: 23 | M196: 3
A197: =Clavet!A197 -> 2019/06/09 00:00:00 | B197: 0.23 | C197: 0.509 | D197: 0.742 | E197: 15.77 | F197: 0.983 | G197: 0 | H197: 4.204 | I197: 0.459 | J197: 183.003 | K197: 79.344 | L197: A | M197: 3
A198: =Clavet!A198 -> 2019/06/09 01:00:00 | B198: 0.049 | C198: 0.466 | D198: 0.517 | E198: 14.301 | F198: 0.79 | G198: 0 | H198: 4.448 | I198: 0.378 | J198: 184.534 | K198: 79.64 | L198: 21 | M198: 3
A199: =Clavet!A199 -> 2019/06/09 02:00:00 | B199: 0.15 | C199: 0.459 | D199: 0.61 | E199: 9.393 | F199: 0.797 | G199: 0 | H199: 4.378 | I199: 0.609 | J199: 178.62 | K199: 82.49 | L199: 19 | M199: 3
A200: =Clavet!A200 -> 2019/06/09 03:00:00 | B200: 0 | C200: 0.317 | D200: 0.32 | E200: 10.569 | F200: 0.939 | G200: 0 | H200: 4.722 | I200: 0.501 | J200: 182.851 | K200: 81.591 | L200: 19 | M200: 2
A201: =Clavet!A201 -> 2019/06/09 04:00:00 | B201: 0.13 | C201: 0.274 | D201: 0.407 | E201: 7.97 | F201: 1.144 | G201: 0 | H201: 4.389 | I201: 0.509 | J201: 153.425 | K201: 84.276 | L201: 18 | M201: 2
... 532 more rows
